Body,Body Name,Posted Fiscal Date,Amount,Transaction Number,Supplier Name,Directorate,Service,Activity,Cost Centre Name,Subjective Name
http://opendatacommunities.org/doc/london-borough-council/havering,London Borough of Havering,16/06/2015,3915.41,JUN15L3,Canon (UK) Ltd,oneSource Shared,oS ICT Services,oS Commercial Services,Communications Business Unit,PHOTOCOPYING
http://opendatacommunities.org/doc/london-borough-council/havering,London Borough of Havering,10/06/2015,1000.00,JUN15L13,Corbets Tey School,"Children, Adults & Housing",DSG Learning & Achievement Service,Special Educational Needs and Disabilities - DSG,SEND Team ? 5-19 years - DSG,PROFESSIONAL SERVICES - GENERAL
http://opendatacommunities.org/doc/london-borough-council/havering,London Borough of Havering,23/06/2015,550.00,JUN15L17,Adoption UK,"Children, Adults & Housing",Childrens Services,Adoption,Adoptions Costs,MEMBERSHIP AND SUBSCRIPTIONS
http://opendatacommunities.org/doc/london-borough-council/havering,London Borough of Havering,30/06/2015,550.00,JUN15L18,Adoption UK,"Children, Adults & Housing",Childrens Services,Adoption,Adoptions Costs,MEMBERSHIP AND SUBSCRIPTIONS
http://opendatacommunities.org/doc/london-borough-council/havering,London Borough of Havering,23/06/2015,1250.00,JUN15L19,Adoption UK,"Children, Adults & Housing",Childrens Services,Adoption,Adoptions Costs,MEMBERSHIP AND SUBSCRIPTIONS
http://opendatacommunities.org/doc/london-borough-council/havering,London Borough of Havering,08/06/2015,2100.00,JUN15L20,Hemming Group Ltd,Community and Resources,Business & Performance,SC & L Management,SCL Directors Budget,GENERAL OFFICE EXPENSES
http://opendatacommunities.org/doc/london-borough-council/havering,London Borough of Havering,18/06/2015,584.43,JUN15L40,Annodata Ltd,oneSource Shared,oS Asset Management Services,oS Health & Safety,Corp.Support Svs Section,INTERNAL RECHARGES
http://opendatacommunities.org/doc/london-borough-council/havering,London Borough of Havering,24/06/2015,510.00,JUN15L42,Sanders School,Community and Resources,Policy & Community Manager,Community Safety,Building Safer Communities Fund,PRIVATE CONTRACTORS PAYMENT - OTHER
http://opendatacommunities.org/doc/london-borough-council/havering,London Borough of Havering,09/06/2015,10170.00,JUN15L54,Ravensbourne School,"Children, Adults & Housing",DSG Learning & Achievement Service,SEN - DSG,LAC out of Borough Recoupment,PRIVATE CONTRACTORS PAYMENT - OTHER
http://opendatacommunities.org/doc/london-borough-council/havering,London Borough of Havering,04/06/2015,6000.00,JUN15L58,London Borough of Tower Hamlets (Income Services),"Children, Adults & Housing",Childrens Services,Adoption,Adoptions Costs,MEMBERSHIP AND SUBSCRIPTIONS
http://opendatacommunities.org/doc/london-borough-council/havering,London Borough of Havering,26/06/2015,433.00,JUN15L59,Jordan Publishing Ltd,oneSource Shared,oS Legal & Governance,oS Legal,Legal Services,INTERNET COSTS
http://opendatacommunities.org/doc/london-borough-council/havering,London Borough of Havering,08/06/2015,775.63,JUN15L60,Royal Mail Group Plc,oneSource Shared,oS Exchequer & Transactional Services,oS Benefits,Benefits Processing,INTERNAL RECHARGES
http://opendatacommunities.org/doc/london-borough-council/havering,London Borough of Havering,08/06/2015,1539.71,JUN15L61,Royal Mail Group Plc,oneSource Shared,oS Exchequer & Transactional Services,oS Transactional Services,Transactional Payroll,INTERNAL RECHARGES
http://opendatacommunities.org/doc/london-borough-council/havering,London Borough of Havering,08/06/2015,1385.30,JUN15L62,Royal Mail Group Plc,oneSource Shared,oS Legal & Governance,oS Democratic & Electoral Services,Electoral Registration,POSTAGE AND COURIER SERVICES
http://opendatacommunities.org/doc/london-borough-council/havering,London Borough of Havering,11/06/2015,533.00,JUN15L63,Royal Mail Group Plc,oneSource Shared,oS Exchequer & Transactional Services,oS Benefits,Benefits Processing,INTERNAL RECHARGES
http://opendatacommunities.org/doc/london-borough-council/havering,London Borough of Havering,11/06/2015,1218.49,JUN15L64,Royal Mail Group Plc,oneSource Shared,oS Exchequer & Transactional Services,oS Debt Management & Recovery,Revenues - Enforcement,INTERNAL RECHARGES
http://opendatacommunities.org/doc/london-borough-council/havering,London Borough of Havering,23/06/2015,1107.02,JUN15L65,Royal Mail Group Plc,oneSource Shared,oS Exchequer & Transactional Services,oS Benefits,Benefits Processing,INTERNAL RECHARGES
http://opendatacommunities.org/doc/london-borough-council/havering,London Borough of Havering,11/06/2015,18525.97,JUN15L73,Cablecom Investment Ltd,"Children, Adults & Housing",Housing (HRA),Maintenance,Cablecom,CYCLICAL/PLANNED MAINTENANCE - BUILDING
http://opendatacommunities.org/doc/london-borough-council/havering,London Borough of Havering,11/06/2015,1364.04,JUN15L74,Cablecom Investment Ltd,"Children, Adults & Housing",Housing (HRA),Maintenance,Cablecom,PRIVATE CONTRACTORS PAYMENT - OTHER
http://opendatacommunities.org/doc/london-borough-council/havering,London Borough of Havering,11/06/2015,96846.02,JUN15L75,Cablecom Investment Ltd,"Children, Adults & Housing",Housing (HRA),Maintenance,Cablecom,PRIVATE CONTRACTORS PAYMENT - OTHER
http://opendatacommunities.org/doc/london-borough-council/havering,London Borough of Havering,11/06/2015,18756.87,JUN15L76,Cablecom Investment Ltd,"Children, Adults & Housing",Housing (HRA),Maintenance,Cablecom,PRIVATE CONTRACTORS PAYMENT - OTHER
http://opendatacommunities.org/doc/london-borough-council/havering,London Borough of Havering,11/06/2015,789.96,JUN15L77,Cablecom Investment Ltd,"Children, Adults & Housing",Housing (HRA),Maintenance,Cablecom,CYCLICAL/PLANNED MAINTENANCE - BUILDING
http://opendatacommunities.org/doc/london-borough-council/havering,London Borough of Havering,03/06/2015,5170.00,JUN15L80,"Barking, Havering and Redbridge University Hospitals NHS Trust",Community and Resources,Regulatory Services,Environmental Health,Mortuary Charges,PAYMENT TO OTHER LOCAL AUTHORITIES
http://opendatacommunities.org/doc/london-borough-council/havering,London Borough of Havering,16/06/2015,36600.88,JUN15L81,"Barking, Havering and Redbridge University Hospitals NHS Trust",Public Health,Public Health,PH - Sexual Health,SH - Contraception,PRIVATE CONTRACTORS PAYMENT - OTHER
http://opendatacommunities.org/doc/london-borough-council/havering,London Borough of Havering,16/06/2015,86004.00,JUN15L82,"Barking, Havering and Redbridge University Hospitals NHS Trust",Public Health,Public Health,PH - Sexual Health,SH - STI Testing and Treatment,PRIVATE CONTRACTORS PAYMENT - OTHER
http://opendatacommunities.org/doc/london-borough-council/havering,London Borough of Havering,03/06/2015,-6000.00,JUN15L83,London Borough of Tower Hamlets,"Children, Adults & Housing",Childrens Services,Adoption,Adoptions Costs,MEMBERSHIP AND SUBSCRIPTIONS
http://opendatacommunities.org/doc/london-borough-council/havering,London Borough of Havering,01/06/2015,6000.00,JUN15L84,London Borough of Tower Hamlets,"Children, Adults & Housing",Childrens Services,Adoption,Adoptions Costs,MEMBERSHIP AND SUBSCRIPTIONS
http://opendatacommunities.org/doc/london-borough-council/havering,London Borough of Havering,02/06/2015,900.00,JUN15L85,Local Government Association,Community and Resources,Business & Performance,SC & L Management,SCL Directors Budget,STAFF DEVELOPMENT AND TRAINING
http://opendatacommunities.org/doc/london-borough-council/havering,London Borough of Havering,02/06/2015,900.00,JUN15L86,Local Government Association,oneSource Non-Shared LBH,Legal & Democratic Svs,Democratic Services,Expenses Of The Council,STAFF DEVELOPMENT AND TRAINING
http://opendatacommunities.org/doc/london-borough-council/havering,London Borough of Havering,02/06/2015,2010.36,JUN15L87,Local Government Association,oneSource Non-Shared LBH,Legal & Democratic Svs,Legal Services,Local Land Charges,LEGAL FEES
http://opendatacommunities.org/doc/london-borough-council/havering,London Borough of Havering,17/06/2015,4205.50,JUN15L90,LoTSA CIC,Community and Resources,Regulatory Services,Trading Standards,Trading Standards,MEMBERSHIP AND SUBSCRIPTIONS
http://opendatacommunities.org/doc/london-borough-council/havering,London Borough of Havering,26/06/2015,425.67,JUN15L93,Havering Indoor Bowls Club Ltd,"Children, Adults & Housing",Learning & Achievement,Schools Provision and Commissioning,Early Years School Provision and Commissioning,GENERAL OFFICE EXPENSES
http://opendatacommunities.org/doc/london-borough-council/havering,London Borough of Havering,04/06/2015,706.67,JUN15L94,DHL Supply Chain Ltd t/a NHS Supply Chain,Community and Resources,Streetcare,Refuse Coll & Waste Dis,Clinical Waste,"PURCHASE - EQUIPMENT, FURNITURE AND MATERIALS"
http://opendatacommunities.org/doc/london-borough-council/havering,London Borough of Havering,04/06/2015,500.00,JUN15L95,DHL Supply Chain Ltd t/a NHS Supply Chain,Community and Resources,Streetcare,Refuse Coll & Waste Dis,Clinical Waste,"PURCHASE - EQUIPMENT, FURNITURE AND MATERIALS"
http://opendatacommunities.org/doc/london-borough-council/havering,London Borough of Havering,01/06/2015,471.42,JUN15L104,Wernick Hire Ltd,"Children, Adults & Housing",Housing (HRA),Community Support Services,TMO Services,PRIVATE CONTRACTORS PAYMENT - OTHER
http://opendatacommunities.org/doc/london-borough-council/havering,London Borough of Havering,10/06/2015,487.16,JUN15L105,Wernick Hire Ltd,"Children, Adults & Housing",Housing (HRA),Community Support Services,TMO Services,PRIVATE CONTRACTORS PAYMENT - OTHER
http://opendatacommunities.org/doc/london-borough-council/havering,London Borough of Havering,01/06/2015,8674.00,JUN15L106,City of London,Community and Resources,Corporate Financial Matters,Corp Fin Transactions,Concessionary Fares,PRIVATE CONTRACTORS PAYMENT - OTHER
http://opendatacommunities.org/doc/london-borough-council/havering,London Borough of Havering,09/06/2015,700.00,JUN15L107,City of London,"Children, Adults & Housing",Housing (HRA),Head Of Service,HRA Retained Service Performance & Quality,MEMBERSHIP AND SUBSCRIPTIONS
http://opendatacommunities.org/doc/london-borough-council/havering,London Borough of Havering,11/06/2015,1500.00,JUN15L108,City of London,Community and Resources,Streetcare,Parking Facilities,Onstreet Parking,PAYMENT TO OTHER LOCAL AUTHORITIES
http://opendatacommunities.org/doc/london-borough-council/havering,London Borough of Havering,25/06/2015,9605.57,JUN15L109,British Telecommunications plc,Community and Resources,Streetcare,Borough Roads B & TS,Road Adoption Costs,PRIVATE CONTRACTORS PAYMENT - OTHER
http://opendatacommunities.org/doc/london-borough-council/havering,London Borough of Havering,15/06/2015,450.00,JUN15L110,Archant London,oneSource Non-Shared LBH,Asset Management,Prop & Land Hldgs,Romford Market,"ADVERTISING, PUBLICITY AND MARKETING"
http://opendatacommunities.org/doc/london-borough-council/havering,London Borough of Havering,15/06/2015,533.12,JUN15L111,Archant London,Community and Resources,Streetcare,Borough Roads,New Rds And St Works Act,FEES & CHARGES INCOME - OTHER
http://opendatacommunities.org/doc/london-borough-council/havering,London Borough of Havering,15/06/2015,700.00,JUN15L112,Archant London,"Children, Adults & Housing",Childrens Services,Childrens Social Services Other,Children And Families Transformation Programme,"ADVERTISING, PUBLICITY AND MARKETING"
http://opendatacommunities.org/doc/london-borough-council/havering,London Borough of Havering,15/06/2015,705.60,JUN15L113,Archant London,Community and Resources,Streetcare,Borough Roads B & TS,Road Adoption Costs,STORAGE AND ARCHIVING
http://opendatacommunities.org/doc/london-borough-council/havering,London Borough of Havering,15/06/2015,888.42,JUN15L114,Archant London,Community and Resources,Regulatory Services,Development Control Svs,Planning Control,"ADVERTISING, PUBLICITY AND MARKETING"
http://opendatacommunities.org/doc/london-borough-council/havering,London Borough of Havering,15/06/2015,1750.00,JUN15L115,Archant London,oneSource Shared,oS Legal & Governance,oS Democratic & Electoral Services,Electoral Registration,"ADVERTISING, PUBLICITY AND MARKETING"
http://opendatacommunities.org/doc/london-borough-council/havering,London Borough of Havering,15/06/2015,5454.52,JUN15L116,Archant London,Community and Resources,Streetcare,Parking Facilities,Parking-Minor Safety Imps (Bor Rds),"ADVERTISING, PUBLICITY AND MARKETING"
http://opendatacommunities.org/doc/london-borough-council/havering,London Borough of Havering,23/06/2015,5829.16,JUN15L117,Archant London,"Children, Adults & Housing",Learning & Achievement,Adult Education,HCAE - Central Office,"ADVERTISING, PUBLICITY AND MARKETING"
http://opendatacommunities.org/doc/london-borough-council/havering,London Borough of Havering,08/06/2015,492.08,JUN15L118,PHS Group Plc,Community and Resources,Culture & Leisure,My Place Centres,My Place Centres,CLEANING SERVICES
http://opendatacommunities.org/doc/london-borough-council/havering,London Borough of Havering,10/06/2015,7032.00,JUN15L119,St John's Catholic School_a,"Children, Adults & Housing",DSG Learning & Achievement Service,SEN - DSG,Post-16 High Needs Top- up DSG,GENERAL CONTINGENCY
http://opendatacommunities.org/doc/london-borough-council/havering,London Borough of Havering,25/06/2015,2024.00,JUN15L120,JKH Carriage Service,oneSource Shared,oS ICT Services,oS Commercial Services,Educational Computer Centre,VEHICLE HIRE
http://opendatacommunities.org/doc/london-borough-council/havering,London Borough of Havering,24/06/2015,7865.00,JUN15L123,Care Works Ltd,"Children, Adults & Housing",Childrens Services,Youth Offending,Youth Offending Team,PRIVATE CONTRACTORS PAYMENT - OTHER
http://opendatacommunities.org/doc/london-borough-council/havering,London Borough of Havering,11/06/2015,638.32,JUN15L131,G4S Cash Solutions (UK) Ltd,Community and Resources,Streetcare,Parking Facilities,M Storey Car Pk Dir Costs,PRIVATE CONTRACTORS PAYMENT - OTHER
http://opendatacommunities.org/doc/london-borough-council/havering,London Borough of Havering,10/06/2015,695.67,JUN15L132,G4S Cash Solutions (UK) Ltd,Community and Resources,Culture & Leisure,Library Service,Libraries Admin,PRIVATE CONTRACTORS PAYMENT - OTHER
http://opendatacommunities.org/doc/london-borough-council/havering,London Borough of Havering,11/06/2015,969.16,JUN15L133,G4S Cash Solutions (UK) Ltd,Community and Resources,Streetcare,Parking Facilities,M Storey Car Pk Dir Costs,PRIVATE CONTRACTORS PAYMENT - OTHER
http://opendatacommunities.org/doc/london-borough-council/havering,London Borough of Havering,11/06/2015,1138.40,JUN15L134,G4S Cash Solutions (UK) Ltd,Community and Resources,Streetcare,Parking Facilities,M Storey Car Pk Dir Costs,PRIVATE CONTRACTORS PAYMENT - OTHER
http://opendatacommunities.org/doc/london-borough-council/havering,London Borough of Havering,11/06/2015,1200.18,JUN15L135,G4S Cash Solutions (UK) Ltd,Community and Resources,Streetcare,Parking Facilities,M Storey Car Pk Dir Costs,PRIVATE CONTRACTORS PAYMENT - OTHER
http://opendatacommunities.org/doc/london-borough-council/havering,London Borough of Havering,02/06/2015,1575.00,JUN15L139,Interquest Group UK Ltd,"Children, Adults & Housing",Childrens Services,Childrens Social Services Other,Contact Point,CONSULTANCY FEES
http://opendatacommunities.org/doc/london-borough-council/havering,London Borough of Havering,02/06/2015,1575.00,JUN15L140,Interquest Group UK Ltd,"Children, Adults & Housing",Childrens Services,Childrens Social Services Other,Contact Point,CONSULTANCY FEES
http://opendatacommunities.org/doc/london-borough-council/havering,London Borough of Havering,02/06/2015,2205.00,JUN15L141,Interquest Group UK Ltd,"Children, Adults & Housing",Childrens Services,Childrens Social Services Other,Contact Point,CONSULTANCY FEES
http://opendatacommunities.org/doc/london-borough-council/havering,London Borough of Havering,10/06/2015,1260.00,JUN15L142,Interquest Group UK Ltd,"Children, Adults & Housing",Childrens Services,Childrens Social Services Other,Contact Point,CONSULTANCY FEES
http://opendatacommunities.org/doc/london-borough-council/havering,London Borough of Havering,10/06/2015,1575.00,JUN15L143,Interquest Group UK Ltd,"Children, Adults & Housing",Childrens Services,Childrens Social Services Other,Contact Point,CONSULTANCY FEES
http://opendatacommunities.org/doc/london-borough-council/havering,London Borough of Havering,10/06/2015,1575.00,JUN15L144,Interquest Group UK Ltd,"Children, Adults & Housing",Childrens Services,Childrens Social Services Other,Contact Point,CONSULTANCY FEES
http://opendatacommunities.org/doc/london-borough-council/havering,London Borough of Havering,15/06/2015,400.00,JUN15L163,AT Graphics Ltd,oneSource Non-Shared LBH,Asset Management,Prop & Land Hldgs,Romford Market,LAND FILL TAX
http://opendatacommunities.org/doc/london-borough-council/havering,London Borough of Havering,26/06/2015,7500.00,JUN15L170,Gidea Park School,Community and Resources,Corporate Financial Matters,Ins Trading Account,Ins Trading Account,INSURANCE (EXCL PREMISES AND TRANSPORT)
http://opendatacommunities.org/doc/london-borough-council/havering,London Borough of Havering,26/06/2015,8235.00,JUN15L171,London Borough of Newham,"Children, Adults & Housing",Childrens Services,Safeguarding Unit,Safeguard And Service Standards Unit,AGENCY STAFF
http://opendatacommunities.org/doc/london-borough-council/havering,London Borough of Havering,23/06/2015,1344520.60,JUN15L172,London Borough of Newham,oneSource Shared,oS ICT Services,oS Application and Development,ICT Service Delivery Team 1,PAYMENT TO OTHER LOCAL AUTHORITIES
http://opendatacommunities.org/doc/london-borough-council/havering,London Borough of Havering,18/06/2015,635.58,JUN15L173,Gunnebo UK Ltd,oneSource Non-Shared LBH,Asset Management,Premises Management,Corporate Landlord-LBH,CYCLICAL/PLANNED MAINTENANCE - BUILDING
http://opendatacommunities.org/doc/london-borough-council/havering,London Borough of Havering,02/06/2015,671.16,JUN15L174,Dr J C F O`Moore,Community and Resources,Regulatory Services,Crematorium & Cems,Bereavement Customer Services,PRIVATE CONTRACTORS PAYMENT - OTHER
http://opendatacommunities.org/doc/london-borough-council/havering,London Borough of Havering,02/06/2015,456.96,JUN15L175,Dr I P Humberstone,Community and Resources,Regulatory Services,Crematorium & Cems,Bereavement Customer Services,PRIVATE CONTRACTORS PAYMENT - OTHER
http://opendatacommunities.org/doc/london-borough-council/havering,London Borough of Havering,17/06/2015,3500.00,JUN15L176,Havering Mayesbrook Athletic Club,Community and Resources,Culture & Leisure,Sports Dev & Outdoor Ctrs,Hornchurch Stadium,GROUNDS MAINTENANCE
http://opendatacommunities.org/doc/london-borough-council/havering,London Borough of Havering,01/06/2015,505.00,JUN15L177,Bond Solon Training Ltd,Community and Resources,Regulatory Services,Trading Standards,Metrology Service,STAFF DEVELOPMENT AND TRAINING
http://opendatacommunities.org/doc/london-borough-council/havering,London Borough of Havering,23/06/2015,9363.00,JUN15L178,PricewaterhouseCoopers LLP,Community and Resources,Corporate Financial Matters,Corp Fin Transactions,Corporate Expenses,PRIVATE CONTRACTORS PAYMENT - OTHER
http://opendatacommunities.org/doc/london-borough-council/havering,London Borough of Havering,23/06/2015,21570.00,JUN15L179,PricewaterhouseCoopers LLP,Community and Resources,Corporate Financial Matters,Corp Fin Transactions,Corporate Expenses,PRIVATE CONTRACTORS PAYMENT - OTHER
http://opendatacommunities.org/doc/london-borough-council/havering,London Borough of Havering,23/06/2015,202459.00,JUN15L180,PricewaterhouseCoopers LLP,Community and Resources,Corporate Financial Matters,Corp Fin Transactions,Corporate Expenses,PRIVATE CONTRACTORS PAYMENT - OTHER
http://opendatacommunities.org/doc/london-borough-council/havering,London Borough of Havering,23/06/2015,-9635.00,JUN15L181,PricewaterhouseCoopers LLP,Community and Resources,Corporate Financial Matters,Corp Fin Transactions,Corporate Expenses,PRIVATE CONTRACTORS PAYMENT - OTHER
http://opendatacommunities.org/doc/london-borough-council/havering,London Borough of Havering,25/06/2015,3879.94,JUN15L182,Allpay Ltd,oneSource Shared,oS Exchequer & Transactional Services,oS Council Tax,Revenues - Council Tax,PRIVATE CONTRACTORS PAYMENT - OTHER
http://opendatacommunities.org/doc/london-borough-council/havering,London Borough of Havering,10/06/2015,6867.62,JUN15L183,Allpay Ltd,"Children, Adults & Housing",Housing (HRA),Community Support Services,Rents (HRA),PRIVATE CONTRACTORS PAYMENT - OTHER
http://opendatacommunities.org/doc/london-borough-council/havering,London Borough of Havering,25/06/2015,5880.44,JUN15L184,Allpay Ltd,oneSource Shared,oS Exchequer & Transactional Services,oS Council Tax,Revenues - Council Tax,PRIVATE CONTRACTORS PAYMENT - OTHER
http://opendatacommunities.org/doc/london-borough-council/havering,London Borough of Havering,25/06/2015,1000.00,JUN15L185,Allpay Ltd,oneSource Non-Shared LBH,Exchequer Services,Revenues Subsidy,Iman,PRIVATE CONTRACTORS PAYMENT - OTHER
http://opendatacommunities.org/doc/london-borough-council/havering,London Borough of Havering,11/06/2015,6000.00,JUN15L186,London Borough of Haringey,Public Health,Public Health,PH - Non Commissioned Services,Public Health Team,MEMBERSHIP AND SUBSCRIPTIONS
http://opendatacommunities.org/doc/london-borough-council/havering,London Borough of Havering,10/06/2015,4400.00,JUN15L187,Groupcall Ltd,"Children, Adults & Housing",Learning & Achievement,Traded Services,Fin & Admin It Supp- Sims,ICT LICENCES
http://opendatacommunities.org/doc/london-borough-council/havering,London Borough of Havering,16/06/2015,5687.50,JUN15L188,Shaw Trust Ltd,"Children, Adults & Housing",Adult Services,Learning Disabilities,Avelon Centre,PRIVATE CONTRACTORS PAYMENT - OTHER
http://opendatacommunities.org/doc/london-borough-council/havering,London Borough of Havering,16/06/2015,-5687.50,JUN15L189,Shaw Trust Ltd,"Children, Adults & Housing",Adult Services,Learning Disabilities,Avelon Centre,PRIVATE CONTRACTORS PAYMENT - OTHER
http://opendatacommunities.org/doc/london-borough-council/havering,London Borough of Havering,29/06/2015,479.39,JUN15L190,The Association of Electoral Administrators (AEA),oneSource Shared,oS Legal & Governance,oS Democratic & Electoral Services,Electoral Registration,MISCELLANEOUS EXPENSES
http://opendatacommunities.org/doc/london-borough-council/havering,London Borough of Havering,26/06/2015,1849.04,JUN15L191,Cedars Care Home for the Elderly_a,"Children, Adults & Housing",Adult Services,Adult Community Team,Physical Support,RESIDENTIAL PLACEMENTS - PRIVATE CONTRACTORS PAYMENT
http://opendatacommunities.org/doc/london-borough-council/havering,London Borough of Havering,12/06/2015,3170.00,JUN15L193,Ocean Media Group Ltd,"Children, Adults & Housing",Housing (HRA),Head Of Service,Head Of Service - HRA,STAFF DEVELOPMENT AND TRAINING
http://opendatacommunities.org/doc/london-borough-council/havering,London Borough of Havering,22/06/2015,693.69,JUN15L194,British Gas Trading Ltd,"Children, Adults & Housing",Housing Services,Strategy,Private Housing Solutions Team,PRIVATE CONTRACTORS PAYMENT - OTHER
http://opendatacommunities.org/doc/london-borough-council/havering,London Borough of Havering,02/06/2015,485.75,JUN15L195,British Gas Trading Ltd,"Children, Adults & Housing",Housing Services,Strategy,Private Housing Solutions Team,PRIVATE CONTRACTORS PAYMENT - OTHER
http://opendatacommunities.org/doc/london-borough-council/havering,London Borough of Havering,30/06/2015,414.08,JUN15L196,British Gas Trading Ltd t/as British Gas Business,"Children, Adults & Housing",Mental Health,Mental Health - Non Section 75,1 Lynmouth Hse-Group Home,GAS
http://opendatacommunities.org/doc/london-borough-council/havering,London Borough of Havering,10/06/2015,435.37,JUN15L197,British Gas Trading Ltd t/as British Gas Business,Community and Resources,Culture & Leisure,Sports Dev & Outdoor Ctrs,Hornchurch Stadium,GAS
http://opendatacommunities.org/doc/london-borough-council/havering,London Borough of Havering,03/06/2015,861.72,JUN15L198,British Gas Trading Ltd t/as British Gas Business,Community and Resources,Culture & Leisure,Sports Dev & Outdoor Ctrs,Hornchurch Stadium,ELECTRICITY
http://opendatacommunities.org/doc/london-borough-council/havering,London Borough of Havering,23/06/2015,62619.89,JUN15L199,British Gas Trading Ltd t/as British Gas Business,"Children, Adults & Housing",Housing (HRA),Maintenance,Estate Contracts,ELECTRICITY
http://opendatacommunities.org/doc/london-borough-council/havering,London Borough of Havering,15/06/2015,1808.66,JUN15L200,Emerson Network Power Ltd,oneSource Shared,oS ICT Services,oS Unified Communications,Networking,PRIVATE CONTRACTORS PAYMENT - OTHER
http://opendatacommunities.org/doc/london-borough-council/havering,London Borough of Havering,11/06/2015,795.50,JUN15L201,Parkeon Ltd,Community and Resources,Streetcare,Parking Facilities,M Storey Car Pk Dir Costs,PRIVATE CONTRACTORS PAYMENT - OTHER
http://opendatacommunities.org/doc/london-borough-council/havering,London Borough of Havering,11/06/2015,795.50,JUN15L202,Parkeon Ltd,Community and Resources,Streetcare,Parking Facilities,M Storey Car Pk Dir Costs,PRIVATE CONTRACTORS PAYMENT - OTHER
http://opendatacommunities.org/doc/london-borough-council/havering,London Borough of Havering,11/06/2015,1715.00,JUN15L203,Parkeon Ltd,Community and Resources,Streetcare,Parking Facilities,M Storey Car Pk Dir Costs,PRIVATE CONTRACTORS PAYMENT - OTHER
http://opendatacommunities.org/doc/london-borough-council/havering,London Borough of Havering,11/06/2015,795.50,JUN15L204,Parkeon Ltd,Community and Resources,Streetcare,Parking Facilities,M Storey Car Pk Dir Costs,PRIVATE CONTRACTORS PAYMENT - OTHER
http://opendatacommunities.org/doc/london-borough-council/havering,London Borough of Havering,29/06/2015,704.65,JUN15L205,Northgate Information Solutions UK Ltd,oneSource Shared,oS ICT Services,oS Application and Development,Applications Management,ICT SOFTWARE
http://opendatacommunities.org/doc/london-borough-council/havering,London Borough of Havering,10/06/2015,710.99,JUN15L206,Northgate Information Solutions UK Ltd,oneSource Shared,oS ICT Services,oS Application and Development,Applications Management,ICT SOFTWARE
http://opendatacommunities.org/doc/london-borough-council/havering,London Borough of Havering,10/06/2015,5000.00,JUN15L207,Northgate Information Solutions UK Ltd,oneSource Shared,oS ICT Services,oS Application and Development,Applications Management,ICT SOFTWARE
http://opendatacommunities.org/doc/london-borough-council/havering,London Borough of Havering,25/06/2015,600.00,JUN15L208,Northgate Information Solutions UK Ltd,oneSource Shared,oS ICT Services,oS Application and Development,Applications Management,ICT SOFTWARE
http://opendatacommunities.org/doc/london-borough-council/havering,London Borough of Havering,10/06/2015,1283.40,JUN15L209,Northgate Information Solutions UK Ltd,Community and Resources,Corporate & Customer Transformation,CRM,Blue Badge Scheme,PRIVATE CONTRACTORS PAYMENT - OTHER
http://opendatacommunities.org/doc/london-borough-council/havering,London Borough of Havering,08/06/2015,573.24,JUN15L210,EE Ltd,oneSource Shared,oS ICT Services,oS Unified Communications,Corporate Telephone Systems,MOBILE PHONE COSTS
http://opendatacommunities.org/doc/london-borough-council/havering,London Borough of Havering,08/06/2015,833.08,JUN15L211,EE Ltd,oneSource Shared,oS ICT Services,oS Unified Communications,Corporate Telephone Systems,MOBILE PHONE COSTS
http://opendatacommunities.org/doc/london-borough-council/havering,London Borough of Havering,23/06/2015,1485.00,JUN15L212,Post Office Ltd (Vehicle Licence Renewals),oneSource Non-Shared LBH,Asset Management,Transport Accounts,Vehicle & Plant,VEHICLE LICENSING
http://opendatacommunities.org/doc/london-borough-council/havering,London Borough of Havering,24/06/2015,855.00,JUN15L213,British Youth Council,"Children, Adults & Housing",Childrens Services,Early Help,Early Help Advisory Team,PRIVATE CONTRACTORS PAYMENT - OTHER
http://opendatacommunities.org/doc/london-borough-council/havering,London Borough of Havering,10/06/2015,1377.00,JUN15L214,Sacred Heart of Mary Girls School Academy,"Children, Adults & Housing",DSG Learning & Achievement Service,Education Finance Support Quality and Assurance - DSG,Chbk Academy Holding Code,GENERAL CONTINGENCY
http://opendatacommunities.org/doc/london-borough-council/havering,London Borough of Havering,09/06/2015,27680.00,JUN15L215,Virgin Media Payments Ltd,Community and Resources,Culture & Leisure,Library Service,Information & ICT Services,ICT SOFTWARE
http://opendatacommunities.org/doc/london-borough-council/havering,London Borough of Havering,01/06/2015,2383.00,JUN15L216,A V Parts Master Ltd t/a AV Partsmaster,oneSource Shared,oS ICT Services,oS Commercial Services,Educational Computer Centre,PRIVATE CONTRACTORS PAYMENT - OTHER
http://opendatacommunities.org/doc/london-borough-council/havering,London Borough of Havering,03/06/2015,1400.00,JUN15L217,Parasol Ltd,"Children, Adults & Housing",Adult Services,Transforming Health and Social Care,Care Act Programme,CONSULTANCY FEES
http://opendatacommunities.org/doc/london-borough-council/havering,London Borough of Havering,03/06/2015,1800.00,JUN15L218,Parasol Ltd,"Children, Adults & Housing",Adult Services,Transforming Health and Social Care,Care Act Programme,CONSULTANCY FEES
http://opendatacommunities.org/doc/london-borough-council/havering,London Borough of Havering,03/06/2015,1600.00,JUN15L219,Parasol Ltd,"Children, Adults & Housing",Adult Services,Transforming Health and Social Care,Care Act Programme,CONSULTANCY FEES
http://opendatacommunities.org/doc/london-borough-council/havering,London Borough of Havering,03/06/2015,1400.00,JUN15L220,Parasol Ltd,"Children, Adults & Housing",Adult Services,Transforming Health and Social Care,Care Act Programme,CONSULTANCY FEES
http://opendatacommunities.org/doc/london-borough-council/havering,London Borough of Havering,29/06/2015,1200.00,JUN15L221,Parasol Ltd,"Children, Adults & Housing",Adult Services,Transforming Health and Social Care,Care Act Programme,CONSULTANCY FEES
http://opendatacommunities.org/doc/london-borough-council/havering,London Borough of Havering,29/06/2015,1800.00,JUN15L222,Parasol Ltd,"Children, Adults & Housing",Adult Services,Transforming Health and Social Care,Care Act Programme,CONSULTANCY FEES
http://opendatacommunities.org/doc/london-borough-council/havering,London Borough of Havering,29/06/2015,2000.00,JUN15L223,Parasol Ltd,"Children, Adults & Housing",Adult Services,Transforming Health and Social Care,Care Act Programme,CONSULTANCY FEES
http://opendatacommunities.org/doc/london-borough-council/havering,London Borough of Havering,10/06/2015,600.00,JUN15L224,Havering Tennis Club,Community and Resources,Culture & Leisure,Sports Dev & Outdoor Ctrs,Physical Activity,PRIVATE CONTRACTORS PAYMENT - OTHER
http://opendatacommunities.org/doc/london-borough-council/havering,London Borough of Havering,10/06/2015,3525.00,JUN15L225,Drapers Academy,"Children, Adults & Housing",DSG Learning & Achievement Service,Education Finance Support Quality and Assurance - DSG,Chbk Academy Holding Code,GENERAL CONTINGENCY
http://opendatacommunities.org/doc/london-borough-council/havering,London Borough of Havering,17/06/2015,496.00,JUN15L226,Southend University Hospital NHS Foundation Trust,Public Health,Public Health,PH - Sexual Health,SH - STI Testing and Treatment,PRIVATE CONTRACTORS PAYMENT - OTHER
http://opendatacommunities.org/doc/london-borough-council/havering,London Borough of Havering,08/06/2015,434.00,JUN15L227,Citibank Europe Plc,"Children, Adults & Housing",Adult Services,Adult Community Team,Sensory Support,DIRECT PAYMENTS
http://opendatacommunities.org/doc/london-borough-council/havering,London Borough of Havering,08/06/2015,1114.00,JUN15L228,Citibank Europe Plc,"Children, Adults & Housing",Learning & Achievement,Children With Disabilities,C&F Direct Payments,DIRECT PAYMENTS
http://opendatacommunities.org/doc/london-borough-council/havering,London Borough of Havering,08/06/2015,3608.00,JUN15L229,Citibank Europe Plc,"Children, Adults & Housing",Adult Services,Learning Disabilities,Learning Disability Support,DIRECT PAYMENTS
http://opendatacommunities.org/doc/london-borough-council/havering,London Borough of Havering,08/06/2015,6193.00,JUN15L230,Citibank Europe Plc,"Children, Adults & Housing",Adult Services,Adult Community Team,Physical Support,DIRECT PAYMENTS
http://opendatacommunities.org/doc/london-borough-council/havering,London Borough of Havering,22/06/2015,2000.00,JUN15L231,Citibank Europe Plc,"Children, Adults & Housing",Adult Services,Prevention,PD Equipment,"PURCHASE - EQUIPMENT, FURNITURE AND MATERIALS"
http://opendatacommunities.org/doc/london-borough-council/havering,London Borough of Havering,10/06/2015,11854.39,JUN15L232,Woodcroft School Ltd,"Children, Adults & Housing",DSG Learning & Achievement Service,SEN - DSG,Residential School Budget,PRIVATE CONTRACTORS PAYMENT - OTHER
http://opendatacommunities.org/doc/london-borough-council/havering,London Borough of Havering,18/06/2015,700.00,JUN15L233,Abbs Cross Academy & Arts College,"Children, Adults & Housing",Childrens Services,Early Help,Troubled Families,PRIVATE CONTRACTORS PAYMENT - OTHER
http://opendatacommunities.org/doc/london-borough-council/havering,London Borough of Havering,10/06/2015,7213.00,JUN15L234,Abbs Cross Academy & Arts College,"Children, Adults & Housing",DSG Learning & Achievement Service,Education Finance Support Quality and Assurance - DSG,Chbk Academy Holding Code,GENERAL CONTINGENCY
http://opendatacommunities.org/doc/london-borough-council/havering,London Borough of Havering,10/06/2015,3324.00,JUN15L235,Brittons Academy Trust,"Children, Adults & Housing",DSG Learning & Achievement Service,Education Finance Support Quality and Assurance - DSG,Chbk Academy Holding Code,GENERAL CONTINGENCY
http://opendatacommunities.org/doc/london-borough-council/havering,London Borough of Havering,10/06/2015,2479.00,JUN15L236,The Coopers Company and Coborn School Academy,"Children, Adults & Housing",DSG Learning & Achievement Service,Education Finance Support Quality and Assurance - DSG,Chbk Academy Holding Code,GENERAL CONTINGENCY
http://opendatacommunities.org/doc/london-borough-council/havering,London Borough of Havering,10/06/2015,3566.59,JUN15L237,Orange Payment Processing,oneSource Shared,oS ICT Services,oS Unified Communications,Corporate Telephone Systems,MOBILE PHONE COSTS
http://opendatacommunities.org/doc/london-borough-council/havering,London Borough of Havering,10/06/2015,2881.91,JUN15L238,Orange Payment Processing,oneSource Shared,oS ICT Services,oS Unified Communications,Corporate Telephone Systems,MOBILE PHONE COSTS
http://opendatacommunities.org/doc/london-borough-council/havering,London Borough of Havering,10/06/2015,798.00,JUN15L239,Orange Payment Processing,oneSource Shared,oS ICT Services,oS Unified Communications,Corporate Telephone Systems,MOBILE PHONE COSTS
http://opendatacommunities.org/doc/london-borough-council/havering,London Borough of Havering,16/06/2015,443.29,JUN15L240,Brake Bros Ltd,"Children, Adults & Housing",Learning & Achievement,Borough Catering,Catering - R J Mitchell,CATERING AND VENDING SUPPLIES
http://opendatacommunities.org/doc/london-borough-council/havering,London Borough of Havering,16/06/2015,525.14,JUN15L241,Brake Bros Ltd,"Children, Adults & Housing",Learning & Achievement,Borough Catering,Catering - La Salette,CATERING AND VENDING SUPPLIES
http://opendatacommunities.org/doc/london-borough-council/havering,London Borough of Havering,16/06/2015,558.07,JUN15L242,Brake Bros Ltd,"Children, Adults & Housing",Learning & Achievement,Borough Catering,Catering - Scotts,CATERING AND VENDING SUPPLIES
http://opendatacommunities.org/doc/london-borough-council/havering,London Borough of Havering,16/06/2015,615.67,JUN15L243,Brake Bros Ltd,"Children, Adults & Housing",Learning & Achievement,Borough Catering,Catering - Elm Park,CATERING AND VENDING SUPPLIES
http://opendatacommunities.org/doc/london-borough-council/havering,London Borough of Havering,16/06/2015,630.56,JUN15L244,Brake Bros Ltd,"Children, Adults & Housing",Learning & Achievement,Borough Catering,Catering - Oglethorpe,CATERING AND VENDING SUPPLIES
http://opendatacommunities.org/doc/london-borough-council/havering,London Borough of Havering,16/06/2015,651.64,JUN15L245,Brake Bros Ltd,"Children, Adults & Housing",Learning & Achievement,Borough Catering,Catering - Suttons,CATERING AND VENDING SUPPLIES
http://opendatacommunities.org/doc/london-borough-council/havering,London Borough of Havering,16/06/2015,689.64,JUN15L246,Brake Bros Ltd,"Children, Adults & Housing",Learning & Achievement,Borough Catering,Catering - St Josephs,CATERING AND VENDING SUPPLIES
http://opendatacommunities.org/doc/london-borough-council/havering,London Borough of Havering,16/06/2015,716.40,JUN15L247,Brake Bros Ltd,"Children, Adults & Housing",Learning & Achievement,Borough Catering,Catering - St Peters,CATERING AND VENDING SUPPLIES
http://opendatacommunities.org/doc/london-borough-council/havering,London Borough of Havering,16/06/2015,738.22,JUN15L248,Brake Bros Ltd,"Children, Adults & Housing",Learning & Achievement,Borough Catering,Catering - Gidea Park,CATERING AND VENDING SUPPLIES
http://opendatacommunities.org/doc/london-borough-council/havering,London Borough of Havering,16/06/2015,776.08,JUN15L249,Brake Bros Ltd,"Children, Adults & Housing",Learning & Achievement,Borough Catering,Catering - St Albans,CATERING AND VENDING SUPPLIES
http://opendatacommunities.org/doc/london-borough-council/havering,London Borough of Havering,16/06/2015,828.25,JUN15L250,Brake Bros Ltd,"Children, Adults & Housing",Learning & Achievement,Borough Catering,Catering - Mawney,CATERING AND VENDING SUPPLIES
http://opendatacommunities.org/doc/london-borough-council/havering,London Borough of Havering,16/06/2015,837.16,JUN15L251,Brake Bros Ltd,"Children, Adults & Housing",Learning & Achievement,Borough Catering,Catering - Whybridge,CATERING AND VENDING SUPPLIES
http://opendatacommunities.org/doc/london-borough-council/havering,London Borough of Havering,16/06/2015,853.64,JUN15L252,Brake Bros Ltd,"Children, Adults & Housing",Learning & Achievement,Borough Catering,Catering - Harold Wood,CATERING AND VENDING SUPPLIES
http://opendatacommunities.org/doc/london-borough-council/havering,London Borough of Havering,16/06/2015,858.77,JUN15L253,Brake Bros Ltd,"Children, Adults & Housing",Learning & Achievement,Borough Catering,Catering - Brookside,CATERING AND VENDING SUPPLIES
http://opendatacommunities.org/doc/london-borough-council/havering,London Borough of Havering,16/06/2015,866.59,JUN15L254,Brake Bros Ltd,"Children, Adults & Housing",Learning & Achievement,Borough Catering,Catering - Benhurst,CATERING AND VENDING SUPPLIES
http://opendatacommunities.org/doc/london-borough-council/havering,London Borough of Havering,16/06/2015,879.93,JUN15L255,Brake Bros Ltd,"Children, Adults & Housing",Learning & Achievement,Borough Catering,Catering - Nelmes,CATERING AND VENDING SUPPLIES
http://opendatacommunities.org/doc/london-borough-council/havering,London Borough of Havering,16/06/2015,881.42,JUN15L256,Brake Bros Ltd,"Children, Adults & Housing",Learning & Achievement,Borough Catering,Catering - Ardleigh Green,CATERING AND VENDING SUPPLIES
http://opendatacommunities.org/doc/london-borough-council/havering,London Borough of Havering,16/06/2015,883.95,JUN15L257,Brake Bros Ltd,"Children, Adults & Housing",Learning & Achievement,Borough Catering,Catering - Bower Park,CATERING AND VENDING SUPPLIES
http://opendatacommunities.org/doc/london-borough-council/havering,London Borough of Havering,16/06/2015,883.99,JUN15L258,Brake Bros Ltd,"Children, Adults & Housing",Learning & Achievement,Borough Catering,Catering - Hacton,CATERING AND VENDING SUPPLIES
http://opendatacommunities.org/doc/london-borough-council/havering,London Borough of Havering,16/06/2015,887.29,JUN15L259,Brake Bros Ltd,"Children, Adults & Housing",Learning & Achievement,Borough Catering,Catering - Pyrgo Priory,CATERING AND VENDING SUPPLIES
http://opendatacommunities.org/doc/london-borough-council/havering,London Borough of Havering,16/06/2015,929.64,JUN15L260,Brake Bros Ltd,"Children, Adults & Housing",Learning & Achievement,Borough Catering,Catering - St Patricks,CATERING AND VENDING SUPPLIES
http://opendatacommunities.org/doc/london-borough-council/havering,London Borough of Havering,16/06/2015,934.38,JUN15L261,Brake Bros Ltd,"Children, Adults & Housing",Learning & Achievement,Borough Catering,Catering - St Bede's Catholic Primary School,CATERING AND VENDING SUPPLIES
http://opendatacommunities.org/doc/london-borough-council/havering,London Borough of Havering,16/06/2015,951.73,JUN15L262,Brake Bros Ltd,"Children, Adults & Housing",Learning & Achievement,Borough Catering,Catering - Harold Court,CATERING AND VENDING SUPPLIES
http://opendatacommunities.org/doc/london-borough-council/havering,London Borough of Havering,16/06/2015,980.13,JUN15L263,Brake Bros Ltd,"Children, Adults & Housing",Learning & Achievement,Borough Catering,Catering - Wykeham,CATERING AND VENDING SUPPLIES
http://opendatacommunities.org/doc/london-borough-council/havering,London Borough of Havering,16/06/2015,1005.18,JUN15L264,Brake Bros Ltd,"Children, Adults & Housing",Learning & Achievement,Borough Catering,Catering - Broadford,CATERING AND VENDING SUPPLIES
http://opendatacommunities.org/doc/london-borough-council/havering,London Borough of Havering,16/06/2015,1028.41,JUN15L265,Brake Bros Ltd,"Children, Adults & Housing",Learning & Achievement,Borough Catering,Catering - Hylands,CATERING AND VENDING SUPPLIES
http://opendatacommunities.org/doc/london-borough-council/havering,London Borough of Havering,16/06/2015,1084.37,JUN15L266,Brake Bros Ltd,"Children, Adults & Housing",Learning & Achievement,Borough Catering,Catering - Newtons,CATERING AND VENDING SUPPLIES
http://opendatacommunities.org/doc/london-borough-council/havering,London Borough of Havering,16/06/2015,1140.74,JUN15L267,Brake Bros Ltd,"Children, Adults & Housing",Learning & Achievement,Borough Catering,Catering - Langtons,CATERING AND VENDING SUPPLIES
http://opendatacommunities.org/doc/london-borough-council/havering,London Borough of Havering,16/06/2015,1190.60,JUN15L268,Brake Bros Ltd,"Children, Adults & Housing",Learning & Achievement,Borough Catering,Catering - St Marys,CATERING AND VENDING SUPPLIES
http://opendatacommunities.org/doc/london-borough-council/havering,London Borough of Havering,16/06/2015,1195.88,JUN15L269,Brake Bros Ltd,"Children, Adults & Housing",Learning & Achievement,Borough Catering,Catering - Crownfield,CATERING AND VENDING SUPPLIES
http://opendatacommunities.org/doc/london-borough-council/havering,London Borough of Havering,16/06/2015,1202.11,JUN15L270,Brake Bros Ltd,"Children, Adults & Housing",Learning & Achievement,Borough Catering,Catering - Scargill,CATERING AND VENDING SUPPLIES
http://opendatacommunities.org/doc/london-borough-council/havering,London Borough of Havering,16/06/2015,1202.89,JUN15L271,Brake Bros Ltd,"Children, Adults & Housing",Learning & Achievement,Borough Catering,Catering - Redden Court,CATERING AND VENDING SUPPLIES
http://opendatacommunities.org/doc/london-borough-council/havering,London Borough of Havering,16/06/2015,1237.80,JUN15L272,Brake Bros Ltd,"Children, Adults & Housing",Learning & Achievement,Borough Catering,Catering - Brittons,CATERING AND VENDING SUPPLIES
http://opendatacommunities.org/doc/london-borough-council/havering,London Borough of Havering,16/06/2015,1256.10,JUN15L273,Brake Bros Ltd,"Children, Adults & Housing",Learning & Achievement,Borough Catering,Catering - Clockhouse,CATERING AND VENDING SUPPLIES
http://opendatacommunities.org/doc/london-borough-council/havering,London Borough of Havering,16/06/2015,1296.49,JUN15L274,Brake Bros Ltd,"Children, Adults & Housing",Learning & Achievement,Borough Catering,Catering - St Ursulas,CATERING AND VENDING SUPPLIES
http://opendatacommunities.org/doc/london-borough-council/havering,London Borough of Havering,16/06/2015,1304.32,JUN15L275,Brake Bros Ltd,"Children, Adults & Housing",Learning & Achievement,Borough Catering,Catering - Hilldene,CATERING AND VENDING SUPPLIES
http://opendatacommunities.org/doc/london-borough-council/havering,London Borough of Havering,16/06/2015,1344.47,JUN15L276,Brake Bros Ltd,"Children, Adults & Housing",Learning & Achievement,Borough Catering,Catering - Branfil,CATERING AND VENDING SUPPLIES
http://opendatacommunities.org/doc/london-borough-council/havering,London Borough of Havering,16/06/2015,1381.95,JUN15L277,Brake Bros Ltd,"Children, Adults & Housing",Learning & Achievement,Borough Catering,Catering - Towers,CATERING AND VENDING SUPPLIES
http://opendatacommunities.org/doc/london-borough-council/havering,London Borough of Havering,16/06/2015,1383.14,JUN15L278,Brake Bros Ltd,"Children, Adults & Housing",Learning & Achievement,Borough Catering,Catering - Rainham,CATERING AND VENDING SUPPLIES
http://opendatacommunities.org/doc/london-borough-council/havering,London Borough of Havering,16/06/2015,1420.43,JUN15L279,Brake Bros Ltd,"Children, Adults & Housing",Learning & Achievement,Borough Catering,Catering - St Edwards Primary,CATERING AND VENDING SUPPLIES
http://opendatacommunities.org/doc/london-borough-council/havering,London Borough of Havering,16/06/2015,1451.57,JUN15L280,Brake Bros Ltd,"Children, Adults & Housing",Learning & Achievement,Borough Catering,Catering - Squirrels Heath,CATERING AND VENDING SUPPLIES
http://opendatacommunities.org/doc/london-borough-council/havering,London Borough of Havering,16/06/2015,1521.93,JUN15L281,Brake Bros Ltd,"Children, Adults & Housing",Learning & Achievement,Borough Catering,Catering - Engayne,CATERING AND VENDING SUPPLIES
http://opendatacommunities.org/doc/london-borough-council/havering,London Borough of Havering,16/06/2015,1569.66,JUN15L282,Brake Bros Ltd,"Children, Adults & Housing",Learning & Achievement,Borough Catering,Catering - Parsonage Farm,CATERING AND VENDING SUPPLIES
http://opendatacommunities.org/doc/london-borough-council/havering,London Borough of Havering,16/06/2015,1642.36,JUN15L283,Brake Bros Ltd,"Children, Adults & Housing",Learning & Achievement,Borough Catering,Catering - Crowlands,CATERING AND VENDING SUPPLIES
http://opendatacommunities.org/doc/london-borough-council/havering,London Borough of Havering,16/06/2015,1677.97,JUN15L284,Brake Bros Ltd,"Children, Adults & Housing",Learning & Achievement,Borough Catering,Catering - Sanders Draper,CATERING AND VENDING SUPPLIES
http://opendatacommunities.org/doc/london-borough-council/havering,London Borough of Havering,16/06/2015,1737.08,JUN15L285,Brake Bros Ltd,"Children, Adults & Housing",Learning & Achievement,Borough Catering,Catering - Mead,CATERING AND VENDING SUPPLIES
http://opendatacommunities.org/doc/london-borough-council/havering,London Borough of Havering,16/06/2015,1886.21,JUN15L286,Brake Bros Ltd,"Children, Adults & Housing",Learning & Achievement,Borough Catering,Catering - Parklands,CATERING AND VENDING SUPPLIES
http://opendatacommunities.org/doc/london-borough-council/havering,London Borough of Havering,16/06/2015,2162.80,JUN15L287,Brake Bros Ltd,"Children, Adults & Housing",Learning & Achievement,Borough Catering,Catering - Upminster,CATERING AND VENDING SUPPLIES
http://opendatacommunities.org/doc/london-borough-council/havering,London Borough of Havering,16/06/2015,2198.49,JUN15L288,Brake Bros Ltd,"Children, Adults & Housing",Learning & Achievement,Borough Catering,Catering - Frances Bardsley,CATERING AND VENDING SUPPLIES
http://opendatacommunities.org/doc/london-borough-council/havering,London Borough of Havering,16/06/2015,2622.70,JUN15L289,Brake Bros Ltd,"Children, Adults & Housing",Learning & Achievement,Borough Catering,Catering - Royal Liberty,CATERING AND VENDING SUPPLIES
http://opendatacommunities.org/doc/london-borough-council/havering,London Borough of Havering,16/06/2015,3688.01,JUN15L290,Brake Bros Ltd,"Children, Adults & Housing",Learning & Achievement,Borough Catering,Catering - Hall Mead,CATERING AND VENDING SUPPLIES
http://opendatacommunities.org/doc/london-borough-council/havering,London Borough of Havering,17/06/2015,402.08,JUN15L291,Thomas Ridley & Sons Ltd,"Children, Adults & Housing",Learning & Achievement,Borough Catering,Catering - Elm Park,CATERING AND VENDING SUPPLIES
http://opendatacommunities.org/doc/london-borough-council/havering,London Borough of Havering,17/06/2015,424.00,JUN15L292,Thomas Ridley & Sons Ltd,"Children, Adults & Housing",Learning & Achievement,Borough Catering,Catering - Scotts,CATERING AND VENDING SUPPLIES
http://opendatacommunities.org/doc/london-borough-council/havering,London Borough of Havering,17/06/2015,468.22,JUN15L293,Thomas Ridley & Sons Ltd,"Children, Adults & Housing",Learning & Achievement,Borough Catering,Catering - Pyrgo Priory,CATERING AND VENDING SUPPLIES
http://opendatacommunities.org/doc/london-borough-council/havering,London Borough of Havering,17/06/2015,483.59,JUN15L294,Thomas Ridley & Sons Ltd,"Children, Adults & Housing",Learning & Achievement,Borough Catering,Catering - St Ursulas,CATERING AND VENDING SUPPLIES
http://opendatacommunities.org/doc/london-borough-council/havering,London Borough of Havering,17/06/2015,487.54,JUN15L295,Thomas Ridley & Sons Ltd,"Children, Adults & Housing",Learning & Achievement,Borough Catering,Catering - La Salette,CATERING AND VENDING SUPPLIES
http://opendatacommunities.org/doc/london-borough-council/havering,London Borough of Havering,17/06/2015,497.58,JUN15L296,Thomas Ridley & Sons Ltd,"Children, Adults & Housing",Learning & Achievement,Borough Catering,Catering - Rainham,CATERING AND VENDING SUPPLIES
http://opendatacommunities.org/doc/london-borough-council/havering,London Borough of Havering,17/06/2015,498.43,JUN15L297,Thomas Ridley & Sons Ltd,"Children, Adults & Housing",Learning & Achievement,Borough Catering,Catering - Oglethorpe,CATERING AND VENDING SUPPLIES
http://opendatacommunities.org/doc/london-borough-council/havering,London Borough of Havering,17/06/2015,533.50,JUN15L298,Thomas Ridley & Sons Ltd,"Children, Adults & Housing",Learning & Achievement,Borough Catering,Catering - St Peters,CATERING AND VENDING SUPPLIES
http://opendatacommunities.org/doc/london-borough-council/havering,London Borough of Havering,17/06/2015,538.68,JUN15L299,Thomas Ridley & Sons Ltd,"Children, Adults & Housing",Learning & Achievement,Borough Catering,Catering - Brookside,CATERING AND VENDING SUPPLIES
http://opendatacommunities.org/doc/london-borough-council/havering,London Borough of Havering,17/06/2015,558.90,JUN15L300,Thomas Ridley & Sons Ltd,"Children, Adults & Housing",Learning & Achievement,Borough Catering,Catering - Wykeham,CATERING AND VENDING SUPPLIES
http://opendatacommunities.org/doc/london-borough-council/havering,London Borough of Havering,17/06/2015,568.36,JUN15L301,Thomas Ridley & Sons Ltd,"Children, Adults & Housing",Learning & Achievement,Borough Catering,Catering - Parsonage Farm,CATERING AND VENDING SUPPLIES
http://opendatacommunities.org/doc/london-borough-council/havering,London Borough of Havering,17/06/2015,578.23,JUN15L302,Thomas Ridley & Sons Ltd,"Children, Adults & Housing",Learning & Achievement,Borough Catering,Catering - Ardleigh Green,CATERING AND VENDING SUPPLIES
http://opendatacommunities.org/doc/london-borough-council/havering,London Borough of Havering,17/06/2015,590.19,JUN15L303,Thomas Ridley & Sons Ltd,"Children, Adults & Housing",Learning & Achievement,Borough Catering,Catering - Harold Court,CATERING AND VENDING SUPPLIES
http://opendatacommunities.org/doc/london-borough-council/havering,London Borough of Havering,17/06/2015,601.73,JUN15L304,Thomas Ridley & Sons Ltd,"Children, Adults & Housing",Learning & Achievement,Borough Catering,Catering - Gidea Park,CATERING AND VENDING SUPPLIES
http://opendatacommunities.org/doc/london-borough-council/havering,London Borough of Havering,17/06/2015,603.44,JUN15L305,Thomas Ridley & Sons Ltd,"Children, Adults & Housing",Learning & Achievement,Borough Catering,Catering - Mawney,CATERING AND VENDING SUPPLIES
http://opendatacommunities.org/doc/london-borough-council/havering,London Borough of Havering,17/06/2015,605.97,JUN15L306,Thomas Ridley & Sons Ltd,"Children, Adults & Housing",Learning & Achievement,Borough Catering,Catering - Branfil,CATERING AND VENDING SUPPLIES
http://opendatacommunities.org/doc/london-borough-council/havering,London Borough of Havering,17/06/2015,607.97,JUN15L307,Thomas Ridley & Sons Ltd,"Children, Adults & Housing",Learning & Achievement,Borough Catering,Catering - Hacton,CATERING AND VENDING SUPPLIES
http://opendatacommunities.org/doc/london-borough-council/havering,London Borough of Havering,17/06/2015,612.96,JUN15L308,Thomas Ridley & Sons Ltd,"Children, Adults & Housing",Learning & Achievement,Borough Catering,Catering - Nelmes,CATERING AND VENDING SUPPLIES
http://opendatacommunities.org/doc/london-borough-council/havering,London Borough of Havering,17/06/2015,662.89,JUN15L309,Thomas Ridley & Sons Ltd,"Children, Adults & Housing",Learning & Achievement,Borough Catering,Catering - Benhurst,CATERING AND VENDING SUPPLIES
http://opendatacommunities.org/doc/london-borough-council/havering,London Borough of Havering,17/06/2015,688.30,JUN15L310,Thomas Ridley & Sons Ltd,"Children, Adults & Housing",Learning & Achievement,Borough Catering,Catering - Hilldene,CATERING AND VENDING SUPPLIES
http://opendatacommunities.org/doc/london-borough-council/havering,London Borough of Havering,17/06/2015,701.90,JUN15L311,Thomas Ridley & Sons Ltd,"Children, Adults & Housing",Learning & Achievement,Borough Catering,Catering - Scargill,CATERING AND VENDING SUPPLIES
http://opendatacommunities.org/doc/london-borough-council/havering,London Borough of Havering,17/06/2015,712.96,JUN15L312,Thomas Ridley & Sons Ltd,"Children, Adults & Housing",Learning & Achievement,Borough Catering,Catering - St Albans,CATERING AND VENDING SUPPLIES
http://opendatacommunities.org/doc/london-borough-council/havering,London Borough of Havering,17/06/2015,734.35,JUN15L313,Thomas Ridley & Sons Ltd,"Children, Adults & Housing",Learning & Achievement,Borough Catering,Catering - Newtons,CATERING AND VENDING SUPPLIES
http://opendatacommunities.org/doc/london-borough-council/havering,London Borough of Havering,17/06/2015,737.32,JUN15L314,Thomas Ridley & Sons Ltd,"Children, Adults & Housing",Learning & Achievement,Borough Catering,Catering - Meals on Wheels,CATERING AND VENDING SUPPLIES
http://opendatacommunities.org/doc/london-borough-council/havering,London Borough of Havering,17/06/2015,762.55,JUN15L315,Thomas Ridley & Sons Ltd,"Children, Adults & Housing",Learning & Achievement,Borough Catering,Catering - Broadford,CATERING AND VENDING SUPPLIES
http://opendatacommunities.org/doc/london-borough-council/havering,London Borough of Havering,17/06/2015,766.70,JUN15L316,Thomas Ridley & Sons Ltd,"Children, Adults & Housing",Learning & Achievement,Borough Catering,Catering - Clockhouse,CATERING AND VENDING SUPPLIES
http://opendatacommunities.org/doc/london-borough-council/havering,London Borough of Havering,17/06/2015,773.44,JUN15L317,Thomas Ridley & Sons Ltd,"Children, Adults & Housing",Learning & Achievement,Borough Catering,Catering - Squirrels Heath,CATERING AND VENDING SUPPLIES
http://opendatacommunities.org/doc/london-borough-council/havering,London Borough of Havering,17/06/2015,797.71,JUN15L318,Thomas Ridley & Sons Ltd,"Children, Adults & Housing",Learning & Achievement,Borough Catering,Catering - Towers,CATERING AND VENDING SUPPLIES
http://opendatacommunities.org/doc/london-borough-council/havering,London Borough of Havering,17/06/2015,801.35,JUN15L319,Thomas Ridley & Sons Ltd,"Children, Adults & Housing",Learning & Achievement,Borough Catering,Catering - Mead,CATERING AND VENDING SUPPLIES
http://opendatacommunities.org/doc/london-borough-council/havering,London Borough of Havering,17/06/2015,817.19,JUN15L320,Thomas Ridley & Sons Ltd,"Children, Adults & Housing",Learning & Achievement,Borough Catering,Catering - Engayne,CATERING AND VENDING SUPPLIES
http://opendatacommunities.org/doc/london-borough-council/havering,London Borough of Havering,17/06/2015,819.46,JUN15L321,Thomas Ridley & Sons Ltd,"Children, Adults & Housing",Learning & Achievement,Borough Catering,Catering - Whybridge,CATERING AND VENDING SUPPLIES
http://opendatacommunities.org/doc/london-borough-council/havering,London Borough of Havering,17/06/2015,830.00,JUN15L322,Thomas Ridley & Sons Ltd,"Children, Adults & Housing",Learning & Achievement,Borough Catering,Catering - Harold Wood,CATERING AND VENDING SUPPLIES
http://opendatacommunities.org/doc/london-borough-council/havering,London Borough of Havering,17/06/2015,839.76,JUN15L323,Thomas Ridley & Sons Ltd,"Children, Adults & Housing",Learning & Achievement,Borough Catering,Catering - Langtons,CATERING AND VENDING SUPPLIES
http://opendatacommunities.org/doc/london-borough-council/havering,London Borough of Havering,17/06/2015,924.49,JUN15L324,Thomas Ridley & Sons Ltd,"Children, Adults & Housing",Learning & Achievement,Borough Catering,Catering - St Patricks,CATERING AND VENDING SUPPLIES
http://opendatacommunities.org/doc/london-borough-council/havering,London Borough of Havering,17/06/2015,930.38,JUN15L325,Thomas Ridley & Sons Ltd,"Children, Adults & Housing",Learning & Achievement,Borough Catering,Catering - Parklands,CATERING AND VENDING SUPPLIES
http://opendatacommunities.org/doc/london-borough-council/havering,London Borough of Havering,17/06/2015,941.67,JUN15L326,Thomas Ridley & Sons Ltd,"Children, Adults & Housing",Learning & Achievement,Borough Catering,Catering - Crownfield,CATERING AND VENDING SUPPLIES
http://opendatacommunities.org/doc/london-borough-council/havering,London Borough of Havering,17/06/2015,945.26,JUN15L327,Thomas Ridley & Sons Ltd,"Children, Adults & Housing",Learning & Achievement,Borough Catering,Catering - Rise Park,CATERING AND VENDING SUPPLIES
http://opendatacommunities.org/doc/london-borough-council/havering,London Borough of Havering,17/06/2015,985.96,JUN15L328,Thomas Ridley & Sons Ltd,"Children, Adults & Housing",Learning & Achievement,Borough Catering,Catering - Crowlands,CATERING AND VENDING SUPPLIES
http://opendatacommunities.org/doc/london-borough-council/havering,London Borough of Havering,17/06/2015,995.68,JUN15L329,Thomas Ridley & Sons Ltd,"Children, Adults & Housing",Learning & Achievement,Borough Catering,Catering - Bower Park,CATERING AND VENDING SUPPLIES
http://opendatacommunities.org/doc/london-borough-council/havering,London Borough of Havering,17/06/2015,1059.75,JUN15L330,Thomas Ridley & Sons Ltd,"Children, Adults & Housing",Learning & Achievement,Borough Catering,Catering - Upminster,CATERING AND VENDING SUPPLIES
http://opendatacommunities.org/doc/london-borough-council/havering,London Borough of Havering,17/06/2015,1077.30,JUN15L331,Thomas Ridley & Sons Ltd,"Children, Adults & Housing",Learning & Achievement,Borough Catering,Catering - St Edwards Primary,CATERING AND VENDING SUPPLIES
http://opendatacommunities.org/doc/london-borough-council/havering,London Borough of Havering,17/06/2015,1154.55,JUN15L332,Thomas Ridley & Sons Ltd,"Children, Adults & Housing",Learning & Achievement,Borough Catering,Catering - Sanders Draper,CATERING AND VENDING SUPPLIES
http://opendatacommunities.org/doc/london-borough-council/havering,London Borough of Havering,17/06/2015,1364.67,JUN15L333,Thomas Ridley & Sons Ltd,"Children, Adults & Housing",Learning & Achievement,Borough Catering,Catering - Redden Court,CATERING AND VENDING SUPPLIES
http://opendatacommunities.org/doc/london-borough-council/havering,London Borough of Havering,17/06/2015,1544.57,JUN15L334,Thomas Ridley & Sons Ltd,"Children, Adults & Housing",Learning & Achievement,Borough Catering,Catering - Frances Bardsley,CATERING AND VENDING SUPPLIES
http://opendatacommunities.org/doc/london-borough-council/havering,London Borough of Havering,17/06/2015,1623.27,JUN15L335,Thomas Ridley & Sons Ltd,"Children, Adults & Housing",Learning & Achievement,Borough Catering,Catering - Royal Liberty,CATERING AND VENDING SUPPLIES
http://opendatacommunities.org/doc/london-borough-council/havering,London Borough of Havering,17/06/2015,1840.57,JUN15L336,Thomas Ridley & Sons Ltd,"Children, Adults & Housing",Learning & Achievement,Borough Catering,Catering - Town Hall,CATERING AND VENDING SUPPLIES
http://opendatacommunities.org/doc/london-borough-council/havering,London Borough of Havering,17/06/2015,2096.34,JUN15L337,Thomas Ridley & Sons Ltd,"Children, Adults & Housing",Learning & Achievement,Borough Catering,Catering - Hall Mead,CATERING AND VENDING SUPPLIES
http://opendatacommunities.org/doc/london-borough-council/havering,London Borough of Havering,17/06/2015,2263.25,JUN15L338,Thomas Ridley & Sons Ltd,"Children, Adults & Housing",Learning & Achievement,Borough Catering,Catering - Brittons,CATERING AND VENDING SUPPLIES
http://opendatacommunities.org/doc/london-borough-council/havering,London Borough of Havering,09/06/2015,9920.83,JUN15L339,P&MM Ltd Re Cycleplus,oneSource Shared,oS Exchequer & Transactional Services,oS Exchequer & Transactional Management,ISS Supplies & Services,FEES & CHARGES INCOME - OTHER
http://opendatacommunities.org/doc/london-borough-council/havering,London Borough of Havering,10/06/2015,2278.00,JUN15L340,Emerson Park Academy,"Children, Adults & Housing",DSG Learning & Achievement Service,Education Finance Support Quality and Assurance - DSG,Chbk Academy Holding Code,GENERAL CONTINGENCY
http://opendatacommunities.org/doc/london-borough-council/havering,London Borough of Havering,10/06/2015,21408.00,JUN15L341,Redden Court School Academy,"Children, Adults & Housing",DSG Learning & Achievement Service,Education Finance Support Quality and Assurance - DSG,Chbk Academy Holding Code,GENERAL CONTINGENCY
http://opendatacommunities.org/doc/london-borough-council/havering,London Borough of Havering,10/06/2015,15450.00,JUN15L342,JGP Resourcing Ltd,oneSource Shared,oS Strategic & Operational HR,oS Strategic & Operational HR,Operational HR,PRIVATE CONTRACTORS PAYMENT - OTHER
http://opendatacommunities.org/doc/london-borough-council/havering,London Borough of Havering,03/06/2015,1500.00,JUN15L343,Health In Balance,"Children, Adults & Housing",Adult Services,Transforming Health and Social Care,NHS Support for Social Care,PRIVATE CONTRACTORS PAYMENT - OTHER
http://opendatacommunities.org/doc/london-borough-council/havering,London Borough of Havering,15/06/2015,4400.00,JUN15L344,People First (Havering),"Children, Adults & Housing",Adult Services,Learning Disabilities,Block Contract,PRIVATE CONTRACTORS PAYMENT - OTHER
http://opendatacommunities.org/doc/london-borough-council/havering,London Borough of Havering,04/06/2015,992.92,JUN15L345,Dr Mike Blows,"Children, Adults & Housing",Childrens Services,Prevention & Intervention,Legal Costs - Children'S Social Care,LEGAL FEES
http://opendatacommunities.org/doc/london-borough-council/havering,London Borough of Havering,11/06/2015,479.92,JUN15L346,EDF Energy Customers Plc (Dual Fuel),"Children, Adults & Housing",Housing Services,Strategy,Private Housing Solutions Team,PRIVATE CONTRACTORS PAYMENT - OTHER
http://opendatacommunities.org/doc/london-borough-council/havering,London Borough of Havering,15/06/2015,6910.00,JUN15L347,HWA,Community and Resources,Policy & Community Manager,Community Safety,Building Safer Communities Fund,PRIVATE CONTRACTORS PAYMENT - OTHER
http://opendatacommunities.org/doc/london-borough-council/havering,London Borough of Havering,24/06/2015,2040.00,JUN15L348,Senate House Services Ltd,Community and Resources,Transformation Agenda,People And Change Transformation,Reward & Recognition,PRIVATE CONTRACTORS PAYMENT - OTHER
http://opendatacommunities.org/doc/london-borough-council/havering,London Borough of Havering,24/06/2015,2097.12,JUN15L349,Senate House Services Ltd,Community and Resources,Transformation Agenda,People And Change Transformation,Reward & Recognition,PRIVATE CONTRACTORS PAYMENT - OTHER
http://opendatacommunities.org/doc/london-borough-council/havering,London Borough of Havering,10/06/2015,601.00,JUN15L352,Upminster Infant School Academy,"Children, Adults & Housing",DSG Learning & Achievement Service,Education Finance Support Quality and Assurance - DSG,Chbk Academy Holding Code,GENERAL CONTINGENCY
http://opendatacommunities.org/doc/london-borough-council/havering,London Borough of Havering,23/06/2015,1448.70,JUN15L353,Marula House Ltd,"Children, Adults & Housing",Mental Health,Mental Health - Non Section 75,Mental Health Support,LONG TERM SUPPORT - COMMUNITY: SUPPORTED LIVING
http://opendatacommunities.org/doc/london-borough-council/havering,London Borough of Havering,23/06/2015,1281.30,JUN15L354,Marula House Ltd,"Children, Adults & Housing",Mental Health,Mental Health - Non Section 75,Mental Health Support,LONG TERM SUPPORT - COMMUNITY: SUPPORTED LIVING
http://opendatacommunities.org/doc/london-borough-council/havering,London Borough of Havering,23/06/2015,1197.90,JUN15L355,Marula House Ltd,"Children, Adults & Housing",Mental Health,Mental Health - Non Section 75,Mental Health Support,LONG TERM SUPPORT - COMMUNITY: SUPPORTED LIVING
http://opendatacommunities.org/doc/london-borough-council/havering,London Borough of Havering,23/06/2015,3171.30,JUN15L356,Marula House Ltd,"Children, Adults & Housing",Mental Health,Mental Health - Non Section 75,Mental Health Support,LONG TERM SUPPORT - COMMUNITY: SUPPORTED LIVING
http://opendatacommunities.org/doc/london-borough-council/havering,London Borough of Havering,23/06/2015,1680.00,JUN15L357,Marula House Ltd,"Children, Adults & Housing",Mental Health,Mental Health - Non Section 75,Mental Health Support,LONG TERM SUPPORT - COMMUNITY: SUPPORTED LIVING
http://opendatacommunities.org/doc/london-borough-council/havering,London Borough of Havering,10/06/2015,3418.00,JUN15L358,Bower Park Academy,"Children, Adults & Housing",DSG Learning & Achievement Service,Education Finance Support Quality and Assurance - DSG,Chbk Academy Holding Code,GENERAL CONTINGENCY
http://opendatacommunities.org/doc/london-borough-council/havering,London Borough of Havering,16/06/2015,568.88,JUN15L359,Headway East London,"Children, Adults & Housing",Adult Services,Adult Community Team,Support for Social Isolation - Other,DAYCARE - PRIVATE CONTRACTORS PAYMENT
http://opendatacommunities.org/doc/london-borough-council/havering,London Borough of Havering,23/06/2015,2579.00,JUN15L360,123Comms Ltd,"Children, Adults & Housing",Learning & Achievement,Adult Education,HCAE - Central Office,MEMBERSHIP AND SUBSCRIPTIONS
http://opendatacommunities.org/doc/london-borough-council/havering,London Borough of Havering,26/06/2015,8480.00,JUN15L361,Cambian Learning Disabilities Ltd,"Children, Adults & Housing",Adult Services,Learning Disabilities,Learning Disability Support,RESIDENTIAL PLACEMENTS - PRIVATE CONTRACTORS PAYMENT
http://opendatacommunities.org/doc/london-borough-council/havering,London Borough of Havering,30/06/2015,555.00,JUN15L362,NOCN,"Children, Adults & Housing",Learning & Achievement,Adult Education,HCAE - Central Office,EXAM FEES
http://opendatacommunities.org/doc/london-borough-council/havering,London Borough of Havering,12/06/2015,1065.75,JUN15L363,Randstad CPE,Community and Resources,Regulatory Services,Development Control Svs,Planning Control,AGENCY STAFF
http://opendatacommunities.org/doc/london-borough-council/havering,London Borough of Havering,12/06/2015,1160.00,JUN15L364,Randstad CPE,Community and Resources,Regulatory Services,Development Control Svs,Planning Control,AGENCY STAFF
http://opendatacommunities.org/doc/london-borough-council/havering,London Borough of Havering,12/06/2015,1160.00,JUN15L365,Randstad CPE,Community and Resources,Regulatory Services,Development Control Svs,Planning Control,AGENCY STAFF
http://opendatacommunities.org/doc/london-borough-council/havering,London Borough of Havering,12/06/2015,848.25,JUN15L366,Randstad CPE,Community and Resources,Regulatory Services,Development Control Svs,Planning Control,AGENCY STAFF
http://opendatacommunities.org/doc/london-borough-council/havering,London Borough of Havering,18/06/2015,1160.00,JUN15L367,Randstad CPE,Community and Resources,Regulatory Services,Development Control Svs,Planning Control,AGENCY STAFF
http://opendatacommunities.org/doc/london-borough-council/havering,London Borough of Havering,18/06/2015,1170.00,JUN15L368,Randstad CPE,Community and Resources,Regulatory Services,Development Control Svs,Planning Control,AGENCY STAFF
http://opendatacommunities.org/doc/london-borough-council/havering,London Borough of Havering,18/06/2015,1097.07,JUN15L369,Randstad CPE,Community and Resources,Regulatory Services,Development Control Svs,Planning Control,AGENCY STAFF
http://opendatacommunities.org/doc/london-borough-council/havering,London Borough of Havering,25/06/2015,1170.00,JUN15L370,Randstad CPE,Community and Resources,Regulatory Services,Development Control Svs,Planning Control,AGENCY STAFF
http://opendatacommunities.org/doc/london-borough-council/havering,London Borough of Havering,25/06/2015,1160.00,JUN15L371,Randstad CPE,Community and Resources,Regulatory Services,Development Control Svs,Planning Control,AGENCY STAFF
http://opendatacommunities.org/doc/london-borough-council/havering,London Borough of Havering,24/06/2015,1102.00,JUN15L372,Randstad CPE,Community and Resources,Regulatory Services,Development Control Svs,Planning Control,AGENCY STAFF
http://opendatacommunities.org/doc/london-borough-council/havering,London Borough of Havering,15/06/2015,6480.00,JUN15L373,Weight Watchers (UK) Ltd,Public Health,Public Health,PH - Obesity,Obesity - Adults,PRIVATE CONTRACTORS PAYMENT - OTHER
http://opendatacommunities.org/doc/london-borough-council/havering,London Borough of Havering,11/06/2015,556.04,JUN15L374,Direct Boot & Shoe Supplies Ltd,Community and Resources,Streetcare,On Street Parking,On/Off Street Parking Enforcement,"CLOTHES, UNIFORM AND LAUNDRY"
http://opendatacommunities.org/doc/london-borough-council/havering,London Borough of Havering,26/06/2015,549.29,JUN15L375,St Elizabeth's School,"Children, Adults & Housing",Adult Services,Adult Community Team,Support for Social Isolation - Other,RESPITE CARE - PRIVATE CONTRACTORS PAYMENT
http://opendatacommunities.org/doc/london-borough-council/havering,London Borough of Havering,22/06/2015,662.35,JUN15L376,Biffa Waste Services Ltd,oneSource Non-Shared LBH,Asset Management,Prop & Land Hldgs,Romford Market,VEHICLE HIRE
http://opendatacommunities.org/doc/london-borough-council/havering,London Borough of Havering,22/06/2015,780.50,JUN15L377,Biffa Waste Services Ltd,Community and Resources,Streetcare,Refuse Coll & Waste Dis,Disp Ind & Comm Waste-ELWA,WASTE DISPOSAL COSTS
http://opendatacommunities.org/doc/london-borough-council/havering,London Borough of Havering,22/06/2015,640.76,JUN15L378,Biffa Waste Services Ltd,oneSource Non-Shared LBH,Asset Management,Prop & Land Hldgs,Romford Market,VEHICLE HIRE
http://opendatacommunities.org/doc/london-borough-council/havering,London Borough of Havering,17/06/2015,3348.00,JUN15L379,Guy's & St Thomas' NHS Foundation Trust,Public Health,Public Health,PH - Sexual Health,SH - STI Testing and Treatment,PRIVATE CONTRACTORS PAYMENT - OTHER
http://opendatacommunities.org/doc/london-borough-council/havering,London Borough of Havering,16/06/2015,6518.51,JUN15L380,Chelsea & Westminster Hospital NHS Foundation Trust,Public Health,Public Health,PH - Sexual Health,SH - STI Testing and Treatment,PRIVATE CONTRACTORS PAYMENT - OTHER
http://opendatacommunities.org/doc/london-borough-council/havering,London Borough of Havering,23/06/2015,670.00,JUN15L381,**Redacted Personal Data**,"Children, Adults & Housing",Learning & Achievement,Education Finance Support Quality and Assurance,Administration,MEMBERSHIP AND SUBSCRIPTIONS
http://opendatacommunities.org/doc/london-borough-council/havering,London Borough of Havering,03/06/2015,2850.00,JUN15L382,**Redacted Personal Data**,"Children, Adults & Housing",Adult Services,Transforming Health and Social Care,Care Act Programme,CONSULTANCY FEES
http://opendatacommunities.org/doc/london-borough-council/havering,London Borough of Havering,10/06/2015,1358.00,JUN15L383,Drapers Brookside Junior School,"Children, Adults & Housing",DSG Learning & Achievement Service,Education Finance Support Quality and Assurance - DSG,Chbk Academy Holding Code,GENERAL CONTINGENCY
http://opendatacommunities.org/doc/london-borough-council/havering,London Borough of Havering,09/06/2015,4720.00,JUN15L384,Harradines Removals Ltd,oneSource Non-Shared LBH,Legal & Democratic Svs,Election Services,Borough Elections,PRIVATE CONTRACTORS PAYMENT - OTHER
http://opendatacommunities.org/doc/london-borough-council/havering,London Borough of Havering,25/06/2015,1425.00,JUN15L385,Choice Teachers (South) Ltd,"Children, Adults & Housing",DSG Learning & Achievement Service,Alternative Provision including LAC education - DSG,Social Inclusion,AGENCY STAFF
http://opendatacommunities.org/doc/london-borough-council/havering,London Borough of Havering,25/06/2015,1425.00,JUN15L386,Choice Teachers (South) Ltd,"Children, Adults & Housing",DSG Learning & Achievement Service,Alternative Provision including LAC education - DSG,Social Inclusion,AGENCY STAFF
http://opendatacommunities.org/doc/london-borough-council/havering,London Borough of Havering,25/06/2015,1425.00,JUN15L387,Choice Teachers (South) Ltd,"Children, Adults & Housing",DSG Learning & Achievement Service,Alternative Provision including LAC education - DSG,Social Inclusion,AGENCY STAFF
http://opendatacommunities.org/doc/london-borough-council/havering,London Borough of Havering,24/06/2015,14583.33,JUN15L388,Citizens Advice Bureau,"Children, Adults & Housing",Housing Services,Strategy,Private Housing Solutions Team,AGENCY STAFF
http://opendatacommunities.org/doc/london-borough-council/havering,London Borough of Havering,03/06/2015,12110.77,JUN15L389,Cornerways Childrens Services Ltd,"Children, Adults & Housing",Childrens Services,Existing Placements,LAC Placements,RESIDENTIAL PLACEMENTS - PRIVATE CONTRACTORS PAYMENT
http://opendatacommunities.org/doc/london-borough-council/havering,London Borough of Havering,03/06/2015,908.70,JUN15L390,Cornerways Childrens Services Ltd,"Children, Adults & Housing",Childrens Services,Existing Placements,LAC Placements,PRIVATE CONTRACTORS PAYMENT - OTHER
http://opendatacommunities.org/doc/london-borough-council/havering,London Borough of Havering,26/06/2015,11720.10,JUN15L391,Cornerways Childrens Services Ltd,"Children, Adults & Housing",Childrens Services,Existing Placements,LAC Placements,RESIDENTIAL PLACEMENTS - PRIVATE CONTRACTORS PAYMENT
http://opendatacommunities.org/doc/london-borough-council/havering,London Borough of Havering,03/06/2015,908.70,JUN15L392,Cornerways Childrens Services Ltd,"Children, Adults & Housing",Childrens Services,Existing Placements,LAC Placements,PRIVATE CONTRACTORS PAYMENT - OTHER
http://opendatacommunities.org/doc/london-borough-council/havering,London Borough of Havering,26/06/2015,908.70,JUN15L393,Cornerways Childrens Services Ltd,"Children, Adults & Housing",Childrens Services,Existing Placements,LAC Placements,PRIVATE CONTRACTORS PAYMENT - OTHER
http://opendatacommunities.org/doc/london-borough-council/havering,London Borough of Havering,26/06/2015,908.70,JUN15L394,Cornerways Childrens Services Ltd,"Children, Adults & Housing",Childrens Services,Existing Placements,LAC Placements,PRIVATE CONTRACTORS PAYMENT - OTHER
http://opendatacommunities.org/doc/london-borough-council/havering,London Borough of Havering,26/06/2015,908.70,JUN15L395,Cornerways Childrens Services Ltd,"Children, Adults & Housing",Childrens Services,Existing Placements,LAC Placements,PRIVATE CONTRACTORS PAYMENT - OTHER
http://opendatacommunities.org/doc/london-borough-council/havering,London Borough of Havering,29/06/2015,3613.36,JUN15L396,Stor-a-File Ltd,oneSource Shared,oS Exchequer & Transactional Services,oS Transactional Services,Transactional Payables and Purchases,PRIVATE CONTRACTORS PAYMENT - OTHER
http://opendatacommunities.org/doc/london-borough-council/havering,London Borough of Havering,26/06/2015,2002.24,JUN15L397,Barnardos,"Children, Adults & Housing",Childrens Services,Existing Placements,LAC Placements,FOSTERING AGENCY PLACEMENTS - PRIVATE CONTRACTORS PAYMENT
http://opendatacommunities.org/doc/london-borough-council/havering,London Borough of Havering,26/06/2015,3754.20,JUN15L398,Barnardos,"Children, Adults & Housing",Childrens Services,Existing Placements,LAC Placements,FOSTERING AGENCY PLACEMENTS - PRIVATE CONTRACTORS PAYMENT
http://opendatacommunities.org/doc/london-borough-council/havering,London Borough of Havering,26/06/2015,3879.34,JUN15L399,Barnardos,"Children, Adults & Housing",Childrens Services,Existing Placements,LAC Placements,FOSTERING AGENCY PLACEMENTS - PRIVATE CONTRACTORS PAYMENT
http://opendatacommunities.org/doc/london-borough-council/havering,London Borough of Havering,16/06/2015,460.00,JUN15L400,G B Sport & Leisure UK Ltd,Community and Resources,Culture & Leisure,Parks & Outdoor Sports,Parks&Open Spaces Gen Exp,PRIVATE CONTRACTORS PAYMENT - OTHER
http://opendatacommunities.org/doc/london-borough-council/havering,London Borough of Havering,16/06/2015,8295.00,JUN15L401,London Grid Ltd t/a London PSN,Community and Resources,Business & Performance,"Complaints, Information & Communication",Research And Development Team,ICT LICENCES
http://opendatacommunities.org/doc/london-borough-council/havering,London Borough of Havering,16/06/2015,30419.00,JUN15L402,London Grid Ltd t/a London PSN,oneSource Shared,oS ICT Services,oS Unified Communications,Networking,PRIVATE CONTRACTORS PAYMENT - OTHER
http://opendatacommunities.org/doc/london-borough-council/havering,London Borough of Havering,01/06/2015,2000.00,JUN15L403,NorthgateArinso UK Ltd,Community and Resources,Transformation Agenda,People And Change Transformation,Reward & Recognition,PRIVATE CONTRACTORS PAYMENT - OTHER
http://opendatacommunities.org/doc/london-borough-council/havering,London Borough of Havering,25/06/2015,975.00,JUN15L404,NorthgateArinso UK Ltd,Community and Resources,Transformation Agenda,People And Change Transformation,Reward & Recognition,PRIVATE CONTRACTORS PAYMENT - OTHER
http://opendatacommunities.org/doc/london-borough-council/havering,London Borough of Havering,01/06/2015,18000.00,JUN15L405,NorthgateArinso UK Ltd,Community and Resources,Transformation Agenda,People And Change Transformation,Reward & Recognition,PRIVATE CONTRACTORS PAYMENT - OTHER
http://opendatacommunities.org/doc/london-borough-council/havering,London Borough of Havering,03/06/2015,707.00,JUN15L406,Social Landlords Crime and Nuisance Group,"Children, Adults & Housing",Housing (HRA),Hsg Needs & Strategy,Business Improvement (HRA),MEMBERSHIP AND SUBSCRIPTIONS
http://opendatacommunities.org/doc/london-borough-council/havering,London Borough of Havering,08/06/2015,420.00,JUN15L407,Courtview Consultants,"Children, Adults & Housing",Childrens Services,Fostering,Fostering Carers Costs,PRIVATE CONTRACTORS PAYMENT - OTHER
http://opendatacommunities.org/doc/london-borough-council/havering,London Borough of Havering,02/06/2015,600.00,JUN15L408,Deafblind Enablement Ltd,"Children, Adults & Housing",Adult Services,Health & Social Care Other,Adults Social Care Workforce Grant,STAFF DEVELOPMENT AND TRAINING
http://opendatacommunities.org/doc/london-borough-council/havering,London Borough of Havering,09/06/2015,425.00,JUN15L409,LA Training,"Children, Adults & Housing",Childrens Services,Prevention & Intervention,Social Work Improvement Team,STAFF DEVELOPMENT AND TRAINING
http://opendatacommunities.org/doc/london-borough-council/havering,London Borough of Havering,30/06/2015,425.00,JUN15L410,LA Training,"Children, Adults & Housing",Childrens Services,Prevention & Intervention,Social Work Improvement Team,STAFF DEVELOPMENT AND TRAINING
http://opendatacommunities.org/doc/london-borough-council/havering,London Borough of Havering,16/06/2015,495.00,JUN15L411,Benchmarq Ltd,Community and Resources,Streetcare,Streetcare Management,Street Care Support Costs,STAFF DEVELOPMENT AND TRAINING
http://opendatacommunities.org/doc/london-borough-council/havering,London Borough of Havering,17/06/2015,1240.00,JUN15L412,ANA Treatment Centres Ltd,Public Health,Public Health,PH - Substance Misuse,Alcohol Misuse - Adults,RESPITE CARE - PRIVATE CONTRACTORS PAYMENT
http://opendatacommunities.org/doc/london-borough-council/havering,London Borough of Havering,03/06/2015,-2800.00,JUN15L413,Time for Children Ltd,"Children, Adults & Housing",Childrens Services,Existing Placements,LAC Placements,FOSTERING AGENCY PLACEMENTS - PRIVATE CONTRACTORS PAYMENT
http://opendatacommunities.org/doc/london-borough-council/havering,London Borough of Havering,26/06/2015,-2800.00,JUN15L414,Time for Children Ltd,"Children, Adults & Housing",Childrens Services,Existing Placements,LAC Placements,FOSTERING AGENCY PLACEMENTS - PRIVATE CONTRACTORS PAYMENT
http://opendatacommunities.org/doc/london-borough-council/havering,London Borough of Havering,26/06/2015,-2800.00,JUN15L415,Time for Children Ltd,"Children, Adults & Housing",Childrens Services,Existing Placements,LAC Placements,FOSTERING AGENCY PLACEMENTS - PRIVATE CONTRACTORS PAYMENT
http://opendatacommunities.org/doc/london-borough-council/havering,London Borough of Havering,26/06/2015,440.00,JUN15L416,Time for Children Ltd,"Children, Adults & Housing",Childrens Services,Existing Placements,LAC Placements,PUBLIC TRANSPORT FOR CLIENTS
http://opendatacommunities.org/doc/london-borough-council/havering,London Borough of Havering,03/06/2015,3000.00,JUN15L417,Time for Children Ltd,"Children, Adults & Housing",Childrens Services,Existing Placements,LAC Placements,FOSTERING AGENCY PLACEMENTS - PRIVATE CONTRACTORS PAYMENT
http://opendatacommunities.org/doc/london-borough-council/havering,London Borough of Havering,26/06/2015,3000.00,JUN15L418,Time for Children Ltd,"Children, Adults & Housing",Childrens Services,Existing Placements,LAC Placements,FOSTERING AGENCY PLACEMENTS - PRIVATE CONTRACTORS PAYMENT
http://opendatacommunities.org/doc/london-borough-council/havering,London Borough of Havering,26/06/2015,3000.00,JUN15L419,Time for Children Ltd,"Children, Adults & Housing",Childrens Services,Existing Placements,LAC Placements,FOSTERING AGENCY PLACEMENTS - PRIVATE CONTRACTORS PAYMENT
http://opendatacommunities.org/doc/london-borough-council/havering,London Borough of Havering,26/06/2015,1600.00,JUN15L420,Time for Children Ltd,"Children, Adults & Housing",Childrens Services,Existing Placements,LAC Placements,FOSTERING AGENCY PLACEMENTS - PRIVATE CONTRACTORS PAYMENT
http://opendatacommunities.org/doc/london-borough-council/havering,London Borough of Havering,26/06/2015,1600.00,JUN15L421,Time for Children Ltd,"Children, Adults & Housing",Childrens Services,Existing Placements,LAC Placements,FOSTERING AGENCY PLACEMENTS - PRIVATE CONTRACTORS PAYMENT
http://opendatacommunities.org/doc/london-borough-council/havering,London Borough of Havering,26/06/2015,2000.00,JUN15L422,Crown Commercial Service,"Children, Adults & Housing",Adult Services,Transforming Health and Social Care,NHS Support for Social Care,STAFF DEVELOPMENT AND TRAINING
http://opendatacommunities.org/doc/london-borough-council/havering,London Borough of Havering,22/06/2015,2730.00,JUN15L423,**Redacted Personal Data**,oneSource Non-Shared LBH,Exchequer Services,Revenues Administration,Exchequer Resilience,LEGAL FEES
http://opendatacommunities.org/doc/london-borough-council/havering,London Borough of Havering,11/06/2015,2250.00,JUN15L424,CCS Adoption,"Children, Adults & Housing",Childrens Services,Permanent Placement Allowances,Adoption Prescriptions,ADOPTION ALLOWANCE - PRIVATE CONTRACTORS PAYMENT
http://opendatacommunities.org/doc/london-borough-council/havering,London Borough of Havering,11/06/2015,2250.00,JUN15L425,CCS Adoption,"Children, Adults & Housing",Childrens Services,Permanent Placement Allowances,Adoption Prescriptions,ADOPTION ALLOWANCE - PRIVATE CONTRACTORS PAYMENT
http://opendatacommunities.org/doc/london-borough-council/havering,London Borough of Havering,26/06/2015,1525.00,JUN15L426,APAC LTD,"Children, Adults & Housing",Childrens Services,Fostering,Fostering Team,STAFF DEVELOPMENT AND TRAINING
http://opendatacommunities.org/doc/london-borough-council/havering,London Borough of Havering,01/06/2015,789.00,JUN15L427,Knowledge Academy Ltd,"Children, Adults & Housing",Adult Services,Health & Social Care Other,Adults Social Care Workforce Grant,STAFF DEVELOPMENT AND TRAINING
http://opendatacommunities.org/doc/london-borough-council/havering,London Borough of Havering,11/06/2015,2413.00,JUN15L428,Knowledge Academy Ltd,"Children, Adults & Housing",Adult Services,Strategy and Commissioning,Strategy & Commissioning,STAFF DEVELOPMENT AND TRAINING
http://opendatacommunities.org/doc/london-borough-council/havering,London Borough of Havering,22/06/2015,831.40,JUN15L429,Hunt & Hunt Solicitors LLP,"Children, Adults & Housing",Childrens Services,Prevention & Intervention,Legal Costs - Children'S Social Care,LEGAL FEES
http://opendatacommunities.org/doc/london-borough-council/havering,London Borough of Havering,16/06/2015,1556.50,JUN15L430,Mid Essex Hospital NHS Trust,Public Health,Public Health,PH - Sexual Health,SH - STI Testing and Treatment,PRIVATE CONTRACTORS PAYMENT - OTHER
http://opendatacommunities.org/doc/london-borough-council/havering,London Borough of Havering,09/06/2015,1428.57,JUN15L431,Reflexion Care Group Ltd,"Children, Adults & Housing",Childrens Services,Existing Placements,LAC Placements,SUPPORTED OTHER ACCOMMODATION - PRIVATE CONTRACTORS PAYMENT
http://opendatacommunities.org/doc/london-borough-council/havering,London Borough of Havering,09/06/2015,2000.00,JUN15L432,Reflexion Care Group Ltd,"Children, Adults & Housing",Childrens Services,Existing Placements,LAC Placements,SUPPORTED OTHER ACCOMMODATION - PRIVATE CONTRACTORS PAYMENT
http://opendatacommunities.org/doc/london-borough-council/havering,London Borough of Havering,09/06/2015,17726.41,JUN15L433,Reflexion Care Group Ltd,"Children, Adults & Housing",Childrens Services,Existing Placements,LAC Placements,SUPPORTED OTHER ACCOMMODATION - PRIVATE CONTRACTORS PAYMENT
http://opendatacommunities.org/doc/london-borough-council/havering,London Borough of Havering,09/06/2015,23892.13,JUN15L434,Reflexion Care Group Ltd,"Children, Adults & Housing",Childrens Services,Existing Placements,LAC Placements,SUPPORTED OTHER ACCOMMODATION - PRIVATE CONTRACTORS PAYMENT
http://opendatacommunities.org/doc/london-borough-council/havering,London Borough of Havering,09/06/2015,-3428.57,JUN15L435,Reflexion Care Group Ltd,"Children, Adults & Housing",Childrens Services,Existing Placements,LAC Placements,SUPPORTED OTHER ACCOMMODATION - PRIVATE CONTRACTORS PAYMENT
http://opendatacommunities.org/doc/london-borough-council/havering,London Borough of Havering,02/06/2015,13500.00,JUN15L436,Duncan Lewis (Solicitors) Ltd,"Children, Adults & Housing",Childrens Services,Prevention & Intervention,Legal Costs - Children'S Social Care,LEGAL FEES
http://opendatacommunities.org/doc/london-borough-council/havering,London Borough of Havering,05/06/2015,1500.00,JUN15L437,The Romford Salvation Army,"Children, Adults & Housing",Housing (HRA),Head Of Service,Head Of Service - HRA,STAFF DEVELOPMENT AND TRAINING
http://opendatacommunities.org/doc/london-borough-council/havering,London Borough of Havering,05/06/2015,630.00,JUN15L438,The Romford Salvation Army,"Children, Adults & Housing",Housing (HRA),Head Of Service,Head Of Service - HRA,STAFF DEVELOPMENT AND TRAINING
http://opendatacommunities.org/doc/london-borough-council/havering,London Borough of Havering,15/06/2015,2380.00,JUN15L439,The Romford Salvation Army,Public Health,Public Health,PH - Substance Misuse,Alcohol Misuse - Adults,RESPITE CARE - PRIVATE CONTRACTORS PAYMENT
http://opendatacommunities.org/doc/london-borough-council/havering,London Borough of Havering,17/06/2015,775.76,JUN15L440,Computershare Voucher Services,oneSource Non-Shared LBH,Internal Shared Services,Shared Services,Payroll - Childcare Vouchers,PRIVATE CONTRACTORS PAYMENT - OTHER
http://opendatacommunities.org/doc/london-borough-council/havering,London Borough of Havering,17/06/2015,25858.62,JUN15L441,Computershare Voucher Services,oneSource Non-Shared LBH,Internal Shared Services,Shared Services,Payroll - Childcare Vouchers,PRIVATE CONTRACTORS PAYMENT - OTHER
http://opendatacommunities.org/doc/london-borough-council/havering,London Borough of Havering,11/06/2015,610.00,JUN15L442,Work Stress Management Ltd,oneSource Non-Shared LBH,Strategic HR & OD,People & Change,Organisational Development,PRIVATE CONTRACTORS PAYMENT - OTHER
http://opendatacommunities.org/doc/london-borough-council/havering,London Borough of Havering,10/06/2015,1167.56,JUN15L443,Fretwell-Downing Hospitality,"Children, Adults & Housing",Learning & Achievement,Borough Catering,Catering - Central Costs,ICT LICENCES
http://opendatacommunities.org/doc/london-borough-council/havering,London Borough of Havering,11/06/2015,783.97,JUN15L444,ELA Group,oneSource Non-Shared LBH,Asset Management,Premises Management,Corporate Landlord-LBH,CYCLICAL/PLANNED MAINTENANCE - BUILDING
http://opendatacommunities.org/doc/london-borough-council/havering,London Borough of Havering,11/06/2015,3177.88,JUN15L445,ELA Group,"Children, Adults & Housing",Housing (HRA),Maintenance,Responsive Repairs (HRA),RESPONSIVE REPAIRS - MECHANICAL AND ELECTRICAL
http://opendatacommunities.org/doc/london-borough-council/havering,London Borough of Havering,16/06/2015,840.48,JUN15L446,ELA Group,oneSource Non-Shared LBH,Asset Management,Premises Management,Corporate Landlord-LBH,CYCLICAL/PLANNED MAINTENANCE - BUILDING
http://opendatacommunities.org/doc/london-borough-council/havering,London Borough of Havering,16/06/2015,1200.00,JUN15L447,ELA Group,oneSource Non-Shared LBH,Asset Management,Premises Management,Corporate Landlord-LBH,CYCLICAL/PLANNED MAINTENANCE - BUILDING
http://opendatacommunities.org/doc/london-borough-council/havering,London Borough of Havering,17/06/2015,2107.21,JUN15L448,ELA Group,"Children, Adults & Housing",Housing (HRA),Maintenance,Responsive Repairs (HRA),RESPONSIVE REPAIRS - MECHANICAL AND ELECTRICAL
http://opendatacommunities.org/doc/london-borough-council/havering,London Borough of Havering,16/06/2015,912.51,JUN15L449,ELA Group,"Children, Adults & Housing",Housing (HRA),Maintenance,Responsive Repairs (HRA),RESPONSIVE REPAIRS - MECHANICAL AND ELECTRICAL
http://opendatacommunities.org/doc/london-borough-council/havering,London Borough of Havering,16/06/2015,912.51,JUN15L450,ELA Group,"Children, Adults & Housing",Housing (HRA),Maintenance,Responsive Repairs (HRA),RESPONSIVE REPAIRS - MECHANICAL AND ELECTRICAL
http://opendatacommunities.org/doc/london-borough-council/havering,London Borough of Havering,16/06/2015,837.54,JUN15L451,ELA Group,oneSource Non-Shared LBH,Asset Management,Premises Management,Corporate Landlord-LBH,CYCLICAL/PLANNED MAINTENANCE - BUILDING
http://opendatacommunities.org/doc/london-borough-council/havering,London Borough of Havering,17/06/2015,570.24,JUN15L452,ELA Group,"Children, Adults & Housing",Housing (HRA),Maintenance,Responsive Repairs (HRA),RESPONSIVE REPAIRS - MECHANICAL AND ELECTRICAL
http://opendatacommunities.org/doc/london-borough-council/havering,London Borough of Havering,16/06/2015,1732.10,JUN15L453,ELA Group,"Children, Adults & Housing",Housing (HRA),Maintenance,Responsive Repairs (HRA),RESPONSIVE REPAIRS - MECHANICAL AND ELECTRICAL
http://opendatacommunities.org/doc/london-borough-council/havering,London Borough of Havering,16/06/2015,1732.10,JUN15L454,ELA Group,"Children, Adults & Housing",Housing (HRA),Maintenance,Responsive Repairs (HRA),RESPONSIVE REPAIRS - MECHANICAL AND ELECTRICAL
http://opendatacommunities.org/doc/london-borough-council/havering,London Borough of Havering,16/06/2015,427.68,JUN15L455,ELA Group,oneSource Non-Shared LBH,Asset Management,Premises Management,Corporate Landlord-LBH,CYCLICAL/PLANNED MAINTENANCE - BUILDING
http://opendatacommunities.org/doc/london-borough-council/havering,London Borough of Havering,16/06/2015,997.92,JUN15L456,ELA Group,oneSource Non-Shared LBH,Asset Management,Premises Management,Corporate Landlord-LBH,CYCLICAL/PLANNED MAINTENANCE - BUILDING
http://opendatacommunities.org/doc/london-borough-council/havering,London Borough of Havering,16/06/2015,911.46,JUN15L457,ELA Group,"Children, Adults & Housing",Housing (HRA),Maintenance,Responsive Repairs (HRA),RESPONSIVE REPAIRS - MECHANICAL AND ELECTRICAL
http://opendatacommunities.org/doc/london-borough-council/havering,London Borough of Havering,16/06/2015,1853.28,JUN15L458,ELA Group,oneSource Non-Shared LBH,Asset Management,Premises Management,Corporate Landlord-LBH,CYCLICAL/PLANNED MAINTENANCE - BUILDING
http://opendatacommunities.org/doc/london-borough-council/havering,London Borough of Havering,10/06/2015,17936.00,JUN15L459,Hall Mead School Academy,"Children, Adults & Housing",DSG Learning & Achievement Service,Education Finance Support Quality and Assurance - DSG,Chbk Academy Holding Code,GENERAL CONTINGENCY
http://opendatacommunities.org/doc/london-borough-council/havering,London Borough of Havering,24/06/2015,12678.08,JUN15L460,Savills (UK) Ltd,Community and Resources,Streetcare,Borough Roads,Bor Rds Highways General,PRIVATE CONTRACTORS PAYMENT - OTHER
http://opendatacommunities.org/doc/london-borough-council/havering,London Borough of Havering,23/06/2015,3878.30,JUN15L461,Savills (UK) Ltd,oneSource Non-Shared LBH,Asset Management,Premises Management,M.Hse Facilities Manag.,RENTS PAYABLE
http://opendatacommunities.org/doc/london-borough-council/havering,London Borough of Havering,29/06/2015,31774.50,JUN15L462,Savills (UK) Ltd,oneSource Non-Shared LBH,Asset Management,Premises Management,Public Sector Supermarket,RENTS PAYABLE
http://opendatacommunities.org/doc/london-borough-council/havering,London Borough of Havering,30/06/2015,2184.00,JUN15L463,Wells Security UK Ltd,Community and Resources,Policy & Community Manager,Community Safety,Building Safer Communities Fund,PRIVATE CONTRACTORS PAYMENT - OTHER
http://opendatacommunities.org/doc/london-borough-council/havering,London Borough of Havering,10/06/2015,1560.00,JUN15L464,PCS Social Work Consultancy,"Children, Adults & Housing",Childrens Services,Prevention & Intervention,Social Work Improvement Team,STAFF DEVELOPMENT AND TRAINING
http://opendatacommunities.org/doc/london-borough-council/havering,London Borough of Havering,17/06/2015,1667.00,JUN15L465,Havcare,"Children, Adults & Housing",Adult Services,Learning Disabilities,Block Contract,PRIVATE CONTRACTORS PAYMENT - OTHER
http://opendatacommunities.org/doc/london-borough-council/havering,London Borough of Havering,03/06/2015,6192.60,JUN15L466,Foster Care Associates Ltd,"Children, Adults & Housing",Childrens Services,Existing Placements,LAC Placements,FOSTERING AGENCY PLACEMENTS - PRIVATE CONTRACTORS PAYMENT
http://opendatacommunities.org/doc/london-borough-council/havering,London Borough of Havering,23/06/2015,166515.00,JUN15L469,Barking & Dagenham College,"Children, Adults & Housing",DSG Learning & Achievement Service,SEN - DSG,Post-16 High Needs Top- up DSG,GENERAL CONTINGENCY
http://opendatacommunities.org/doc/london-borough-council/havering,London Borough of Havering,03/06/2015,650.00,JUN15L470,Central Law Training Ltd,oneSource Shared,oS Legal & Governance,oS Legal,Legal Services,STAFF DEVELOPMENT AND TRAINING
http://opendatacommunities.org/doc/london-borough-council/havering,London Borough of Havering,17/06/2015,19190.00,JUN15L481,Pitney Bowes Ltd t/as Pitney Bowes Purchase Power,oneSource Shared,oS Asset Management Services,oS Health & Safety,Corp.Support Svs Section,INTERNAL RECHARGES
http://opendatacommunities.org/doc/london-borough-council/havering,London Borough of Havering,10/06/2015,1053.00,JUN15L485,Langtons Junior Academy,"Children, Adults & Housing",DSG Learning & Achievement Service,Education Finance Support Quality and Assurance - DSG,Chbk Academy Holding Code,GENERAL CONTINGENCY
http://opendatacommunities.org/doc/london-borough-council/havering,London Borough of Havering,04/06/2015,1270.00,JUN15L486,The Duke of Edinburgh's Award,Community and Resources,Culture & Leisure,Youth Facilitation,Youth Facilitation - T4 - Based around Collier Row,PRIVATE CONTRACTORS PAYMENT - OTHER
http://opendatacommunities.org/doc/london-borough-council/havering,London Borough of Havering,25/06/2015,9762.07,JUN15L487,Misco,oneSource Shared,oS ICT Services,oS Commercial Services,Educational Computer Centre,PRIVATE CONTRACTORS PAYMENT - OTHER
http://opendatacommunities.org/doc/london-borough-council/havering,London Borough of Havering,25/06/2015,1498.90,JUN15L488,Misco,oneSource Shared,oS ICT Services,oS Commercial Services,Educational Computer Centre,PRIVATE CONTRACTORS PAYMENT - OTHER
http://opendatacommunities.org/doc/london-borough-council/havering,London Borough of Havering,25/06/2015,869.70,JUN15L489,Misco,oneSource Shared,oS ICT Services,oS Commercial Services,Educational Computer Centre,PRIVATE CONTRACTORS PAYMENT - OTHER
http://opendatacommunities.org/doc/london-borough-council/havering,London Borough of Havering,09/06/2015,409.21,JUN15L500,Prescott-Thomas Ltd,"Children, Adults & Housing",Learning & Achievement,Borough Catering,Catering - Hilldene,CATERING AND VENDING SUPPLIES
http://opendatacommunities.org/doc/london-borough-council/havering,London Borough of Havering,09/06/2015,422.89,JUN15L501,Prescott-Thomas Ltd,"Children, Adults & Housing",Learning & Achievement,Borough Catering,Catering - Upminster,CATERING AND VENDING SUPPLIES
http://opendatacommunities.org/doc/london-borough-council/havering,London Borough of Havering,09/06/2015,428.91,JUN15L502,Prescott-Thomas Ltd,"Children, Adults & Housing",Learning & Achievement,Borough Catering,Catering - Engayne,CATERING AND VENDING SUPPLIES
http://opendatacommunities.org/doc/london-borough-council/havering,London Borough of Havering,09/06/2015,1837.83,JUN15L505,Hanson Aggregates,Community and Resources,Streetcare,Highways Cost Recovery Account,Highways Cost Recovery Account,PRIVATE CONTRACTORS PAYMENT - OTHER
http://opendatacommunities.org/doc/london-borough-council/havering,London Borough of Havering,09/06/2015,780.79,JUN15L506,Hanson Aggregates,Community and Resources,Streetcare,Highways Cost Recovery Account,Highways Cost Recovery Account,PRIVATE CONTRACTORS PAYMENT - OTHER
http://opendatacommunities.org/doc/london-borough-council/havering,London Borough of Havering,09/06/2015,534.53,JUN15L507,Hanson Aggregates,Community and Resources,Streetcare,Highways Cost Recovery Account,Highways Cost Recovery Account,PRIVATE CONTRACTORS PAYMENT - OTHER
http://opendatacommunities.org/doc/london-borough-council/havering,London Borough of Havering,09/06/2015,621.62,JUN15L508,Hanson Aggregates,Community and Resources,Streetcare,Highways Cost Recovery Account,Highways Cost Recovery Account,PRIVATE CONTRACTORS PAYMENT - OTHER
http://opendatacommunities.org/doc/london-borough-council/havering,London Borough of Havering,09/06/2015,414.41,JUN15L509,Hanson Aggregates,Community and Resources,Streetcare,Highways Cost Recovery Account,Highways Cost Recovery Account,PRIVATE CONTRACTORS PAYMENT - OTHER
http://opendatacommunities.org/doc/london-borough-council/havering,London Borough of Havering,09/06/2015,1990.99,JUN15L510,Hanson Aggregates,Community and Resources,Streetcare,Highways Cost Recovery Account,Highways Cost Recovery Account,PRIVATE CONTRACTORS PAYMENT - OTHER
http://opendatacommunities.org/doc/london-borough-council/havering,London Borough of Havering,10/06/2015,531.54,JUN15L511,Hanson Aggregates,Community and Resources,Streetcare,Highways Cost Recovery Account,Highways Cost Recovery Account,PRIVATE CONTRACTORS PAYMENT - OTHER
http://opendatacommunities.org/doc/london-borough-council/havering,London Borough of Havering,10/06/2015,552.55,JUN15L512,Hanson Aggregates,Community and Resources,Streetcare,Highways Cost Recovery Account,Highways Cost Recovery Account,PRIVATE CONTRACTORS PAYMENT - OTHER
http://opendatacommunities.org/doc/london-borough-council/havering,London Borough of Havering,18/06/2015,2219.22,JUN15L513,Hanson Aggregates,Community and Resources,Streetcare,Highways Cost Recovery Account,Highways Cost Recovery Account,PRIVATE CONTRACTORS PAYMENT - OTHER
http://opendatacommunities.org/doc/london-borough-council/havering,London Borough of Havering,18/06/2015,480.48,JUN15L514,Hanson Aggregates,Community and Resources,Streetcare,Highways Cost Recovery Account,Highways Cost Recovery Account,PRIVATE CONTRACTORS PAYMENT - OTHER
http://opendatacommunities.org/doc/london-borough-council/havering,London Borough of Havering,25/06/2015,1435.44,JUN15L515,Hanson Aggregates,Community and Resources,Streetcare,Highways Cost Recovery Account,Highways Cost Recovery Account,PRIVATE CONTRACTORS PAYMENT - OTHER
http://opendatacommunities.org/doc/london-borough-council/havering,London Borough of Havering,25/06/2015,453.45,JUN15L516,Hanson Aggregates,Community and Resources,Streetcare,Highways Cost Recovery Account,Highways Cost Recovery Account,PRIVATE CONTRACTORS PAYMENT - OTHER
http://opendatacommunities.org/doc/london-borough-council/havering,London Borough of Havering,25/06/2015,507.51,JUN15L517,Hanson Aggregates,Community and Resources,Streetcare,Highways Cost Recovery Account,Highways Cost Recovery Account,PRIVATE CONTRACTORS PAYMENT - OTHER
http://opendatacommunities.org/doc/london-borough-council/havering,London Borough of Havering,12/06/2015,2650.00,JUN15L518,Essex & East London Tree Services,Community and Resources,Streetcare,Highways Cost Recovery Account,Highways Cost Recovery Account,PRIVATE CONTRACTORS PAYMENT - OTHER
http://opendatacommunities.org/doc/london-borough-council/havering,London Borough of Havering,04/06/2015,1440.00,JUN15L521,Tynetec Ltd,"Children, Adults & Housing",Housing (HRA),Hsg Needs & Strategy,Havering Telecare Centre,"PURCHASE - EQUIPMENT, FURNITURE AND MATERIALS"
http://opendatacommunities.org/doc/london-borough-council/havering,London Borough of Havering,22/06/2015,5890.00,JUN15L522,Tynetec Ltd,"Children, Adults & Housing",Housing (HRA),Hsg Needs & Strategy,Havering Telecare Centre,"PURCHASE - EQUIPMENT, FURNITURE AND MATERIALS"
http://opendatacommunities.org/doc/london-borough-council/havering,London Borough of Havering,22/06/2015,3028.21,JUN15L523,Greenleaf Trust,"Children, Adults & Housing",Childrens Services,Early Help,Early Help Advisory Team,PRIVATE CONTRACTORS PAYMENT - OTHER
http://opendatacommunities.org/doc/london-borough-council/havering,London Borough of Havering,22/06/2015,1530.00,JUN15L524,Greenleaf Trust,"Children, Adults & Housing",Childrens Services,Youth Offending,Youth Offending Team,PRIVATE CONTRACTORS PAYMENT - OTHER
http://opendatacommunities.org/doc/london-borough-council/havering,London Borough of Havering,02/06/2015,5189.08,JUN15L525,EDF Energy Customers Plc,Community and Resources,Culture & Leisure,Indoor Sports & Recreation,Chafford Sports Complex,ELECTRICITY
http://opendatacommunities.org/doc/london-borough-council/havering,London Borough of Havering,08/06/2015,-5189.08,JUN15L526,EDF Energy Customers Plc,Community and Resources,Culture & Leisure,Indoor Sports & Recreation,Chafford Sports Complex,ELECTRICITY
http://opendatacommunities.org/doc/london-borough-council/havering,London Borough of Havering,08/06/2015,5136.93,JUN15L527,EDF Energy Customers Plc,Community and Resources,Culture & Leisure,Indoor Sports & Recreation,Chafford Sports Complex,ELECTRICITY
http://opendatacommunities.org/doc/london-borough-council/havering,London Borough of Havering,18/06/2015,-6457.98,JUN15L528,EDF Energy Customers Plc,Community and Resources,Culture & Leisure,Indoor Sports & Recreation,Chafford Sports Complex,ELECTRICITY
http://opendatacommunities.org/doc/london-borough-council/havering,London Borough of Havering,18/06/2015,-5136.93,JUN15L529,EDF Energy Customers Plc,Community and Resources,Culture & Leisure,Indoor Sports & Recreation,Chafford Sports Complex,ELECTRICITY
http://opendatacommunities.org/doc/london-borough-council/havering,London Borough of Havering,18/06/2015,5136.66,JUN15L530,EDF Energy Customers Plc,Community and Resources,Culture & Leisure,Indoor Sports & Recreation,Chafford Sports Complex,ELECTRICITY
http://opendatacommunities.org/doc/london-borough-council/havering,London Borough of Havering,18/06/2015,5252.01,JUN15L531,EDF Energy Customers Plc,Community and Resources,Culture & Leisure,Indoor Sports & Recreation,Chafford Sports Complex,ELECTRICITY
http://opendatacommunities.org/doc/london-borough-council/havering,London Borough of Havering,16/06/2015,2583.70,JUN15L532,Survey Express Services,"Children, Adults & Housing",Housing (HRA),Maintenance,Responsive Repairs (HRA),RESPONSIVE REPAIRS - BUILDING
http://opendatacommunities.org/doc/london-borough-council/havering,London Borough of Havering,26/06/2015,5968.68,JUN15L533,NAS Services Limited,"Children, Adults & Housing",Adult Services,Learning Disabilities,Learning Disability Support,HOME CARE - PRIVATE CONTRACTORS PAYMENT
http://opendatacommunities.org/doc/london-borough-council/havering,London Borough of Havering,29/06/2015,1850.00,JUN15L534,Advanced Transport Research Ltd,Community and Resources,Economic Development,Housing Zone,Rainham & Beam Park Housing Zone,CONSULTANCY FEES
http://opendatacommunities.org/doc/london-borough-council/havering,London Borough of Havering,04/06/2015,17000.00,JUN15L535,Viridian Housing - London and South East Office_a,"Children, Adults & Housing",Adult Services,Learning Disabilities,Learning Disability Support,RESIDENTIAL PLACEMENTS - PRIVATE CONTRACTORS PAYMENT
http://opendatacommunities.org/doc/london-borough-council/havering,London Borough of Havering,15/06/2015,1250.00,JUN15L536,Abbey Hose Co Ltd_a,oneSource Non-Shared LBH,Asset Management,Transport Accounts,Transport Workshop,"PURCHASE - EQUIPMENT, FURNITURE AND MATERIALS"
http://opendatacommunities.org/doc/london-borough-council/havering,London Borough of Havering,08/06/2015,445.76,JUN15L537,Ulverscroft Large Print Books Ltd_a,Community and Resources,Culture & Leisure,Library Service,Bibliographical Services,"BOOKS, PUBLICATIONS AND RESOURCES"
http://opendatacommunities.org/doc/london-borough-council/havering,London Borough of Havering,08/06/2015,445.76,JUN15L538,Ulverscroft Large Print Books Ltd_a,Community and Resources,Culture & Leisure,Library Service,Bibliographical Services,"BOOKS, PUBLICATIONS AND RESOURCES"
http://opendatacommunities.org/doc/london-borough-council/havering,London Borough of Havering,08/06/2015,445.76,JUN15L539,Ulverscroft Large Print Books Ltd_a,Community and Resources,Culture & Leisure,Library Service,Bibliographical Services,"BOOKS, PUBLICATIONS AND RESOURCES"
http://opendatacommunities.org/doc/london-borough-council/havering,London Borough of Havering,22/06/2015,837.32,JUN15L540,Ulverscroft Large Print Books Ltd_a,Community and Resources,Culture & Leisure,Library Service,Bibliographical Services,"BOOKS, PUBLICATIONS AND RESOURCES"
http://opendatacommunities.org/doc/london-borough-council/havering,London Borough of Havering,22/06/2015,830.12,JUN15L541,Ulverscroft Large Print Books Ltd_a,Community and Resources,Culture & Leisure,Library Service,Bibliographical Services,"BOOKS, PUBLICATIONS AND RESOURCES"
http://opendatacommunities.org/doc/london-borough-council/havering,London Borough of Havering,22/06/2015,832.52,JUN15L542,Ulverscroft Large Print Books Ltd_a,Community and Resources,Culture & Leisure,Library Service,Bibliographical Services,"BOOKS, PUBLICATIONS AND RESOURCES"
http://opendatacommunities.org/doc/london-borough-council/havering,London Borough of Havering,26/06/2015,1951.80,JUN15L543,Bupa Care Homes - Hutton Village_a,"Children, Adults & Housing",Adult Services,Adult Community Team,Physical Support,NURSING HOMES - PRIVATE CONTRACTORS PAYMENT
http://opendatacommunities.org/doc/london-borough-council/havering,London Borough of Havering,11/06/2015,871.01,JUN15L544,Morepower Ltd t/a Aqs Homecare_a,"Children, Adults & Housing",Adult Services,Adult Community Team,Physical Support,HOME CARE - PRIVATE CONTRACTORS PAYMENT
http://opendatacommunities.org/doc/london-borough-council/havering,London Borough of Havering,11/06/2015,615.78,JUN15L545,Morepower Ltd t/a Aqs Homecare_a,"Children, Adults & Housing",Adult Services,Adult Community Team,Physical Support,HOME CARE - PRIVATE CONTRACTORS PAYMENT
http://opendatacommunities.org/doc/london-borough-council/havering,London Borough of Havering,11/06/2015,819.72,JUN15L546,Morepower Ltd t/a Aqs Homecare_a,"Children, Adults & Housing",Adult Services,Adult Community Team,Support with Memory & Cognition,HOME CARE - PRIVATE CONTRACTORS PAYMENT
http://opendatacommunities.org/doc/london-borough-council/havering,London Borough of Havering,11/06/2015,1016.43,JUN15L547,Morepower Ltd t/a Aqs Homecare_a,"Children, Adults & Housing",Adult Services,Adult Community Team,Physical Support,HOME CARE - PRIVATE CONTRACTORS PAYMENT
http://opendatacommunities.org/doc/london-borough-council/havering,London Borough of Havering,11/06/2015,439.48,JUN15L548,Morepower Ltd t/a Aqs Homecare_a,"Children, Adults & Housing",Adult Services,Adult Community Team,Physical Support,HOME CARE - PRIVATE CONTRACTORS PAYMENT
http://opendatacommunities.org/doc/london-borough-council/havering,London Borough of Havering,11/06/2015,432.52,JUN15L549,Morepower Ltd t/a Aqs Homecare_a,"Children, Adults & Housing",Adult Services,Adult Community Team,Physical Support,HOME CARE - PRIVATE CONTRACTORS PAYMENT
http://opendatacommunities.org/doc/london-borough-council/havering,London Borough of Havering,11/06/2015,454.93,JUN15L550,Morepower Ltd t/a Aqs Homecare_a,"Children, Adults & Housing",Adult Services,Adult Community Team,Physical Support,HOME CARE - PRIVATE CONTRACTORS PAYMENT
http://opendatacommunities.org/doc/london-borough-council/havering,London Borough of Havering,11/06/2015,1500.23,JUN15L551,Morepower Ltd t/a Aqs Homecare_a,"Children, Adults & Housing",Adult Services,Adult Community Team,Physical Support,HOME CARE - PRIVATE CONTRACTORS PAYMENT
http://opendatacommunities.org/doc/london-borough-council/havering,London Borough of Havering,11/06/2015,1510.18,JUN15L552,Morepower Ltd t/a Aqs Homecare_a,"Children, Adults & Housing",Adult Services,Adult Community Team,Physical Support,HOME CARE - PRIVATE CONTRACTORS PAYMENT
http://opendatacommunities.org/doc/london-borough-council/havering,London Borough of Havering,11/06/2015,611.04,JUN15L553,Morepower Ltd t/a Aqs Homecare_a,"Children, Adults & Housing",Adult Services,Adult Community Team,Physical Support,HOME CARE - PRIVATE CONTRACTORS PAYMENT
http://opendatacommunities.org/doc/london-borough-council/havering,London Borough of Havering,11/06/2015,830.91,JUN15L554,Morepower Ltd t/a Aqs Homecare_a,"Children, Adults & Housing",Adult Services,Adult Community Team,Physical Support,HOME CARE - PRIVATE CONTRACTORS PAYMENT
http://opendatacommunities.org/doc/london-borough-council/havering,London Borough of Havering,11/06/2015,559.01,JUN15L555,Morepower Ltd t/a Aqs Homecare_a,"Children, Adults & Housing",Adult Services,Adult Community Team,Physical Support,HOME CARE - PRIVATE CONTRACTORS PAYMENT
http://opendatacommunities.org/doc/london-borough-council/havering,London Borough of Havering,11/06/2015,1009.20,JUN15L556,Morepower Ltd t/a Aqs Homecare_a,"Children, Adults & Housing",Adult Services,Adult Community Team,Physical Support,HOME CARE - PRIVATE CONTRACTORS PAYMENT
http://opendatacommunities.org/doc/london-borough-council/havering,London Borough of Havering,11/06/2015,1434.24,JUN15L557,Morepower Ltd t/a Aqs Homecare_a,"Children, Adults & Housing",Adult Services,Adult Community Team,Physical Support,HOME CARE - PRIVATE CONTRACTORS PAYMENT
http://opendatacommunities.org/doc/london-borough-council/havering,London Borough of Havering,11/06/2015,465.64,JUN15L558,Morepower Ltd t/a Aqs Homecare_a,"Children, Adults & Housing",Adult Services,Adult Community Team,Physical Support,HOME CARE - PRIVATE CONTRACTORS PAYMENT
http://opendatacommunities.org/doc/london-borough-council/havering,London Borough of Havering,11/06/2015,445.20,JUN15L559,Morepower Ltd t/a Aqs Homecare_a,"Children, Adults & Housing",Adult Services,Adult Community Team,Physical Support,HOME CARE - PRIVATE CONTRACTORS PAYMENT
http://opendatacommunities.org/doc/london-borough-council/havering,London Borough of Havering,11/06/2015,912.34,JUN15L560,Morepower Ltd t/a Aqs Homecare_a,"Children, Adults & Housing",Adult Services,Adult Community Team,Physical Support,HOME CARE - PRIVATE CONTRACTORS PAYMENT
http://opendatacommunities.org/doc/london-borough-council/havering,London Borough of Havering,11/06/2015,706.42,JUN15L561,Morepower Ltd t/a Aqs Homecare_a,"Children, Adults & Housing",Adult Services,Adult Community Team,Physical Support,HOME CARE - PRIVATE CONTRACTORS PAYMENT
http://opendatacommunities.org/doc/london-borough-council/havering,London Borough of Havering,11/06/2015,417.58,JUN15L562,Morepower Ltd t/a Aqs Homecare_a,"Children, Adults & Housing",Adult Services,Adult Community Team,Physical Support,HOME CARE - PRIVATE CONTRACTORS PAYMENT
http://opendatacommunities.org/doc/london-borough-council/havering,London Borough of Havering,11/06/2015,749.75,JUN15L563,Morepower Ltd t/a Aqs Homecare_a,"Children, Adults & Housing",Adult Services,Adult Community Team,Physical Support,HOME CARE - PRIVATE CONTRACTORS PAYMENT
http://opendatacommunities.org/doc/london-borough-council/havering,London Borough of Havering,11/06/2015,523.64,JUN15L564,Morepower Ltd t/a Aqs Homecare_a,"Children, Adults & Housing",Adult Services,Adult Community Team,Physical Support,HOME CARE - PRIVATE CONTRACTORS PAYMENT
http://opendatacommunities.org/doc/london-borough-council/havering,London Borough of Havering,11/06/2015,430.53,JUN15L565,Morepower Ltd t/a Aqs Homecare_a,"Children, Adults & Housing",Adult Services,Adult Community Team,Physical Support,HOME CARE - PRIVATE CONTRACTORS PAYMENT
http://opendatacommunities.org/doc/london-borough-council/havering,London Borough of Havering,11/06/2015,409.12,JUN15L566,Morepower Ltd t/a Aqs Homecare_a,"Children, Adults & Housing",Adult Services,Adult Community Team,Physical Support,HOME CARE - PRIVATE CONTRACTORS PAYMENT
http://opendatacommunities.org/doc/london-borough-council/havering,London Borough of Havering,11/06/2015,788.34,JUN15L567,Morepower Ltd t/a Aqs Homecare_a,"Children, Adults & Housing",Adult Services,Adult Community Team,Physical Support,HOME CARE - PRIVATE CONTRACTORS PAYMENT
http://opendatacommunities.org/doc/london-borough-council/havering,London Borough of Havering,11/06/2015,419.56,JUN15L568,Morepower Ltd t/a Aqs Homecare_a,"Children, Adults & Housing",Adult Services,Adult Community Team,Physical Support,HOME CARE - PRIVATE CONTRACTORS PAYMENT
http://opendatacommunities.org/doc/london-borough-council/havering,London Borough of Havering,11/06/2015,647.35,JUN15L569,Morepower Ltd t/a Aqs Homecare_a,"Children, Adults & Housing",Adult Services,Adult Community Team,Physical Support,HOME CARE - PRIVATE CONTRACTORS PAYMENT
http://opendatacommunities.org/doc/london-borough-council/havering,London Borough of Havering,11/06/2015,1898.13,JUN15L570,Morepower Ltd t/a Aqs Homecare_a,"Children, Adults & Housing",Adult Services,Adult Community Team,Physical Support,HOME CARE - PRIVATE CONTRACTORS PAYMENT
http://opendatacommunities.org/doc/london-borough-council/havering,London Borough of Havering,11/06/2015,456.42,JUN15L571,Morepower Ltd t/a Aqs Homecare_a,"Children, Adults & Housing",Adult Services,Adult Community Team,Physical Support,HOME CARE - PRIVATE CONTRACTORS PAYMENT
http://opendatacommunities.org/doc/london-borough-council/havering,London Borough of Havering,11/06/2015,657.85,JUN15L572,Morepower Ltd t/a Aqs Homecare_a,"Children, Adults & Housing",Adult Services,Adult Community Team,Physical Support,HOME CARE - PRIVATE CONTRACTORS PAYMENT
http://opendatacommunities.org/doc/london-borough-council/havering,London Borough of Havering,11/06/2015,439.50,JUN15L573,Morepower Ltd t/a Aqs Homecare_a,"Children, Adults & Housing",Adult Services,Adult Community Team,Physical Support,HOME CARE - PRIVATE CONTRACTORS PAYMENT
http://opendatacommunities.org/doc/london-borough-council/havering,London Borough of Havering,11/06/2015,440.48,JUN15L574,Morepower Ltd t/a Aqs Homecare_a,"Children, Adults & Housing",Adult Services,Adult Community Team,Physical Support,HOME CARE - PRIVATE CONTRACTORS PAYMENT
http://opendatacommunities.org/doc/london-borough-council/havering,London Borough of Havering,11/06/2015,626.73,JUN15L575,Morepower Ltd t/a Aqs Homecare_a,"Children, Adults & Housing",Adult Services,Adult Community Team,Physical Support,HOME CARE - PRIVATE CONTRACTORS PAYMENT
http://opendatacommunities.org/doc/london-borough-council/havering,London Borough of Havering,11/06/2015,940.72,JUN15L576,Morepower Ltd t/a Aqs Homecare_a,"Children, Adults & Housing",Adult Services,Adult Community Team,Physical Support,HOME CARE - PRIVATE CONTRACTORS PAYMENT
http://opendatacommunities.org/doc/london-borough-council/havering,London Borough of Havering,11/06/2015,613.04,JUN15L577,Morepower Ltd t/a Aqs Homecare_a,"Children, Adults & Housing",Adult Services,Adult Community Team,Physical Support,HOME CARE - PRIVATE CONTRACTORS PAYMENT
http://opendatacommunities.org/doc/london-borough-council/havering,London Borough of Havering,11/06/2015,554.52,JUN15L578,Morepower Ltd t/a Aqs Homecare_a,"Children, Adults & Housing",Adult Services,Adult Community Team,Physical Support,HOME CARE - PRIVATE CONTRACTORS PAYMENT
http://opendatacommunities.org/doc/london-borough-council/havering,London Borough of Havering,11/06/2015,872.51,JUN15L579,Morepower Ltd t/a Aqs Homecare_a,"Children, Adults & Housing",Adult Services,Adult Community Team,Physical Support,HOME CARE - PRIVATE CONTRACTORS PAYMENT
http://opendatacommunities.org/doc/london-borough-council/havering,London Borough of Havering,11/06/2015,615.32,JUN15L580,Morepower Ltd t/a Aqs Homecare_a,"Children, Adults & Housing",Adult Services,Adult Community Team,Support with Memory & Cognition,HOME CARE - PRIVATE CONTRACTORS PAYMENT
http://opendatacommunities.org/doc/london-borough-council/havering,London Borough of Havering,11/06/2015,508.96,JUN15L581,Morepower Ltd t/a Aqs Homecare_a,"Children, Adults & Housing",Adult Services,Adult Community Team,Physical Support,HOME CARE - PRIVATE CONTRACTORS PAYMENT
http://opendatacommunities.org/doc/london-borough-council/havering,London Borough of Havering,11/06/2015,592.88,JUN15L582,Morepower Ltd t/a Aqs Homecare_a,"Children, Adults & Housing",Adult Services,Adult Community Team,Physical Support,HOME CARE - PRIVATE CONTRACTORS PAYMENT
http://opendatacommunities.org/doc/london-borough-council/havering,London Borough of Havering,11/06/2015,407.88,JUN15L583,Morepower Ltd t/a Aqs Homecare_a,"Children, Adults & Housing",Adult Services,Adult Community Team,Physical Support,HOME CARE - PRIVATE CONTRACTORS PAYMENT
http://opendatacommunities.org/doc/london-borough-council/havering,London Borough of Havering,11/06/2015,1212.88,JUN15L584,Morepower Ltd t/a Aqs Homecare_a,"Children, Adults & Housing",Adult Services,Adult Community Team,Physical Support,HOME CARE - PRIVATE CONTRACTORS PAYMENT
http://opendatacommunities.org/doc/london-borough-council/havering,London Borough of Havering,11/06/2015,1772.38,JUN15L585,Morepower Ltd t/a Aqs Homecare_a,"Children, Adults & Housing",Adult Services,Adult Community Team,Physical Support,HOME CARE - PRIVATE CONTRACTORS PAYMENT
http://opendatacommunities.org/doc/london-borough-council/havering,London Borough of Havering,11/06/2015,557.02,JUN15L586,Morepower Ltd t/a Aqs Homecare_a,"Children, Adults & Housing",Adult Services,Adult Community Team,Physical Support,HOME CARE - PRIVATE CONTRACTORS PAYMENT
http://opendatacommunities.org/doc/london-borough-council/havering,London Borough of Havering,11/06/2015,1867.24,JUN15L587,Morepower Ltd t/a Aqs Homecare_a,"Children, Adults & Housing",Adult Services,Adult Community Team,Physical Support,HOME CARE - PRIVATE CONTRACTORS PAYMENT
http://opendatacommunities.org/doc/london-borough-council/havering,London Borough of Havering,11/06/2015,414.50,JUN15L588,Morepower Ltd t/a Aqs Homecare_a,"Children, Adults & Housing",Adult Services,Adult Community Team,Physical Support,HOME CARE - PRIVATE CONTRACTORS PAYMENT
http://opendatacommunities.org/doc/london-borough-council/havering,London Borough of Havering,11/06/2015,411.09,JUN15L589,Morepower Ltd t/a Aqs Homecare_a,"Children, Adults & Housing",Adult Services,Adult Community Team,Support for Social Isolation - Other,HOME CARE - PRIVATE CONTRACTORS PAYMENT
http://opendatacommunities.org/doc/london-borough-council/havering,London Borough of Havering,11/06/2015,856.56,JUN15L590,Morepower Ltd t/a Aqs Homecare_a,"Children, Adults & Housing",Adult Services,Adult Community Team,Physical Support,HOME CARE - PRIVATE CONTRACTORS PAYMENT
http://opendatacommunities.org/doc/london-borough-council/havering,London Borough of Havering,11/06/2015,687.24,JUN15L591,Morepower Ltd t/a Aqs Homecare_a,"Children, Adults & Housing",Adult Services,Adult Community Team,Physical Support,HOME CARE - PRIVATE CONTRACTORS PAYMENT
http://opendatacommunities.org/doc/london-borough-council/havering,London Borough of Havering,11/06/2015,642.92,JUN15L592,Morepower Ltd t/a Aqs Homecare_a,"Children, Adults & Housing",Adult Services,Adult Community Team,Physical Support,HOME CARE - PRIVATE CONTRACTORS PAYMENT
http://opendatacommunities.org/doc/london-borough-council/havering,London Borough of Havering,26/06/2015,1123.35,JUN15L593,Priory Supporting Care Ltd_a,"Children, Adults & Housing",Adult Services,Adult Community Team,Physical Support,RESPITE CARE - PRIVATE CONTRACTORS PAYMENT
http://opendatacommunities.org/doc/london-borough-council/havering,London Borough of Havering,26/06/2015,2139.04,JUN15L594,Priory Supporting Care Ltd_a,"Children, Adults & Housing",Adult Services,Adult Community Team,Physical Support,RESIDENTIAL PLACEMENTS - PRIVATE CONTRACTORS PAYMENT
http://opendatacommunities.org/doc/london-borough-council/havering,London Borough of Havering,26/06/2015,1849.04,JUN15L595,Priory Supporting Care Ltd_a,"Children, Adults & Housing",Adult Services,Adult Community Team,Physical Support,RESIDENTIAL PLACEMENTS - PRIVATE CONTRACTORS PAYMENT
http://opendatacommunities.org/doc/london-borough-council/havering,London Borough of Havering,26/06/2015,2139.04,JUN15L596,Priory Supporting Care Ltd_a,"Children, Adults & Housing",Adult Services,Adult Community Team,Physical Support,RESIDENTIAL PLACEMENTS - PRIVATE CONTRACTORS PAYMENT
http://opendatacommunities.org/doc/london-borough-council/havering,London Borough of Havering,26/06/2015,2139.04,JUN15L597,Priory Supporting Care Ltd_a,"Children, Adults & Housing",Adult Services,Adult Community Team,Support with Memory & Cognition,RESIDENTIAL PLACEMENTS - PRIVATE CONTRACTORS PAYMENT
http://opendatacommunities.org/doc/london-borough-council/havering,London Borough of Havering,26/06/2015,2139.04,JUN15L598,Priory Supporting Care Ltd_a,"Children, Adults & Housing",Adult Services,Adult Community Team,Physical Support,RESIDENTIAL PLACEMENTS - PRIVATE CONTRACTORS PAYMENT
http://opendatacommunities.org/doc/london-borough-council/havering,London Borough of Havering,26/06/2015,2139.04,JUN15L599,Priory Supporting Care Ltd_a,"Children, Adults & Housing",Adult Services,Adult Community Team,Support with Memory & Cognition,RESIDENTIAL PLACEMENTS - PRIVATE CONTRACTORS PAYMENT
http://opendatacommunities.org/doc/london-borough-council/havering,London Borough of Havering,26/06/2015,1849.04,JUN15L600,Priory Supporting Care Ltd_a,"Children, Adults & Housing",Adult Services,Adult Community Team,Physical Support,RESIDENTIAL PLACEMENTS - PRIVATE CONTRACTORS PAYMENT
http://opendatacommunities.org/doc/london-borough-council/havering,London Borough of Havering,26/06/2015,-1182.40,JUN15L601,Priory Supporting Care Ltd_a,"Children, Adults & Housing",Adult Services,Adult Community Team,Physical Support,RESIDENTIAL CARE INCOME
http://opendatacommunities.org/doc/london-borough-council/havering,London Borough of Havering,26/06/2015,1849.04,JUN15L602,Priory Supporting Care Ltd_a,"Children, Adults & Housing",Adult Services,Adult Community Team,Physical Support,RESIDENTIAL PLACEMENTS - PRIVATE CONTRACTORS PAYMENT
http://opendatacommunities.org/doc/london-borough-council/havering,London Borough of Havering,26/06/2015,-505.20,JUN15L603,Priory Supporting Care Ltd_a,"Children, Adults & Housing",Adult Services,Adult Community Team,Physical Support,RESIDENTIAL CARE INCOME
http://opendatacommunities.org/doc/london-borough-council/havering,London Borough of Havering,26/06/2015,2139.04,JUN15L604,Priory Supporting Care Ltd_a,"Children, Adults & Housing",Adult Services,Adult Community Team,Physical Support,RESIDENTIAL PLACEMENTS - PRIVATE CONTRACTORS PAYMENT
http://opendatacommunities.org/doc/london-borough-council/havering,London Borough of Havering,26/06/2015,-1002.48,JUN15L605,Priory Supporting Care Ltd_a,"Children, Adults & Housing",Adult Services,Adult Community Team,Support with Memory & Cognition,RESIDENTIAL CARE INCOME
http://opendatacommunities.org/doc/london-borough-council/havering,London Borough of Havering,26/06/2015,2139.04,JUN15L606,Priory Supporting Care Ltd_a,"Children, Adults & Housing",Adult Services,Adult Community Team,Support with Memory & Cognition,RESIDENTIAL PLACEMENTS - PRIVATE CONTRACTORS PAYMENT
http://opendatacommunities.org/doc/london-borough-council/havering,London Borough of Havering,26/06/2015,-533.60,JUN15L607,Priory Supporting Care Ltd_a,"Children, Adults & Housing",Adult Services,Adult Community Team,Physical Support,RESIDENTIAL CARE INCOME
http://opendatacommunities.org/doc/london-borough-council/havering,London Borough of Havering,26/06/2015,2139.04,JUN15L608,Priory Supporting Care Ltd_a,"Children, Adults & Housing",Adult Services,Adult Community Team,Physical Support,RESIDENTIAL PLACEMENTS - PRIVATE CONTRACTORS PAYMENT
http://opendatacommunities.org/doc/london-borough-council/havering,London Borough of Havering,26/06/2015,-501.20,JUN15L609,Priory Supporting Care Ltd_a,"Children, Adults & Housing",Adult Services,Adult Community Team,Physical Support,RESIDENTIAL CARE INCOME
http://opendatacommunities.org/doc/london-borough-council/havering,London Borough of Havering,26/06/2015,2139.04,JUN15L610,Priory Supporting Care Ltd_a,"Children, Adults & Housing",Adult Services,Adult Community Team,Physical Support,RESIDENTIAL PLACEMENTS - PRIVATE CONTRACTORS PAYMENT
http://opendatacommunities.org/doc/london-borough-council/havering,London Borough of Havering,26/06/2015,-505.20,JUN15L611,Priory Supporting Care Ltd_a,"Children, Adults & Housing",Adult Services,Adult Community Team,Physical Support,RESIDENTIAL CARE INCOME
http://opendatacommunities.org/doc/london-borough-council/havering,London Borough of Havering,26/06/2015,1849.04,JUN15L612,Priory Supporting Care Ltd_a,"Children, Adults & Housing",Adult Services,Adult Community Team,Physical Support,RESIDENTIAL PLACEMENTS - PRIVATE CONTRACTORS PAYMENT
http://opendatacommunities.org/doc/london-borough-council/havering,London Borough of Havering,26/06/2015,-956.20,JUN15L613,Priory Supporting Care Ltd_a,"Children, Adults & Housing",Adult Services,Adult Community Team,Support with Memory & Cognition,RESIDENTIAL CARE INCOME
http://opendatacommunities.org/doc/london-borough-council/havering,London Borough of Havering,26/06/2015,2139.04,JUN15L614,Priory Supporting Care Ltd_a,"Children, Adults & Housing",Adult Services,Adult Community Team,Support with Memory & Cognition,RESIDENTIAL PLACEMENTS - PRIVATE CONTRACTORS PAYMENT
http://opendatacommunities.org/doc/london-borough-council/havering,London Borough of Havering,26/06/2015,-497.20,JUN15L615,Priory Supporting Care Ltd_a,"Children, Adults & Housing",Adult Services,Adult Community Team,Physical Support,RESIDENTIAL CARE INCOME
http://opendatacommunities.org/doc/london-borough-council/havering,London Borough of Havering,26/06/2015,1849.04,JUN15L616,Priory Supporting Care Ltd_a,"Children, Adults & Housing",Adult Services,Adult Community Team,Physical Support,RESIDENTIAL PLACEMENTS - PRIVATE CONTRACTORS PAYMENT
http://opendatacommunities.org/doc/london-borough-council/havering,London Borough of Havering,26/06/2015,4736.45,JUN15L620,Ash Grove Residential Care Home_a,"Children, Adults & Housing",Adult Services,Adult Community Team,Physical Support,RESIDENTIAL PLACEMENTS - PRIVATE CONTRACTORS PAYMENT
http://opendatacommunities.org/doc/london-borough-council/havering,London Borough of Havering,26/06/2015,2139.04,JUN15L621,Ash Grove Residential Care Home_a,"Children, Adults & Housing",Adult Services,Adult Community Team,Support with Memory & Cognition,RESIDENTIAL PLACEMENTS - PRIVATE CONTRACTORS PAYMENT
http://opendatacommunities.org/doc/london-borough-council/havering,London Borough of Havering,26/06/2015,2139.04,JUN15L622,Ash Grove Residential Care Home_a,"Children, Adults & Housing",Adult Services,Adult Community Team,Physical Support,RESIDENTIAL PLACEMENTS - PRIVATE CONTRACTORS PAYMENT
http://opendatacommunities.org/doc/london-borough-council/havering,London Borough of Havering,26/06/2015,2139.04,JUN15L623,Ash Grove Residential Care Home_a,"Children, Adults & Housing",Adult Services,Adult Community Team,Physical Support,RESIDENTIAL PLACEMENTS - PRIVATE CONTRACTORS PAYMENT
http://opendatacommunities.org/doc/london-borough-council/havering,London Borough of Havering,26/06/2015,1849.04,JUN15L624,Ash Grove Residential Care Home_a,"Children, Adults & Housing",Adult Services,Adult Community Team,Physical Support,RESIDENTIAL PLACEMENTS - PRIVATE CONTRACTORS PAYMENT
http://opendatacommunities.org/doc/london-borough-council/havering,London Borough of Havering,26/06/2015,2139.04,JUN15L625,Ash Grove Residential Care Home_a,"Children, Adults & Housing",Adult Services,Adult Community Team,Physical Support,RESIDENTIAL PLACEMENTS - PRIVATE CONTRACTORS PAYMENT
http://opendatacommunities.org/doc/london-borough-council/havering,London Borough of Havering,26/06/2015,1849.04,JUN15L626,Ash Grove Residential Care Home_a,"Children, Adults & Housing",Adult Services,Adult Community Team,Physical Support,RESIDENTIAL PLACEMENTS - PRIVATE CONTRACTORS PAYMENT
http://opendatacommunities.org/doc/london-borough-council/havering,London Borough of Havering,26/06/2015,2139.04,JUN15L627,Ash Grove Residential Care Home_a,"Children, Adults & Housing",Adult Services,Adult Community Team,Physical Support,RESIDENTIAL PLACEMENTS - PRIVATE CONTRACTORS PAYMENT
http://opendatacommunities.org/doc/london-borough-council/havering,London Borough of Havering,26/06/2015,-709.36,JUN15L628,Ash Grove Residential Care Home_a,"Children, Adults & Housing",Adult Services,Adult Community Team,Support with Memory & Cognition,RESIDENTIAL CARE INCOME
http://opendatacommunities.org/doc/london-borough-council/havering,London Borough of Havering,26/06/2015,2139.04,JUN15L629,Ash Grove Residential Care Home_a,"Children, Adults & Housing",Adult Services,Adult Community Team,Support with Memory & Cognition,RESIDENTIAL PLACEMENTS - PRIVATE CONTRACTORS PAYMENT
http://opendatacommunities.org/doc/london-borough-council/havering,London Borough of Havering,26/06/2015,-1287.28,JUN15L630,Ash Grove Residential Care Home_a,"Children, Adults & Housing",Adult Services,Adult Community Team,Support with Memory & Cognition,RESIDENTIAL CARE INCOME
http://opendatacommunities.org/doc/london-borough-council/havering,London Borough of Havering,26/06/2015,2139.04,JUN15L631,Ash Grove Residential Care Home_a,"Children, Adults & Housing",Adult Services,Adult Community Team,Support with Memory & Cognition,RESIDENTIAL PLACEMENTS - PRIVATE CONTRACTORS PAYMENT
http://opendatacommunities.org/doc/london-borough-council/havering,London Borough of Havering,26/06/2015,534.73,JUN15L632,Ash Grove Residential Care Home_a,"Children, Adults & Housing",Adult Services,Adult Community Team,Physical Support,RESPITE CARE - PRIVATE CONTRACTORS PAYMENT
http://opendatacommunities.org/doc/london-borough-council/havering,London Borough of Havering,23/06/2015,923.23,JUN15L633,Carers Trust EHHR_a,"Children, Adults & Housing",Adult Services,Adult Community Team,Physical Support,HOME CARE - PRIVATE CONTRACTORS PAYMENT
http://opendatacommunities.org/doc/london-borough-council/havering,London Borough of Havering,23/06/2015,565.65,JUN15L634,Carers Trust EHHR_a,"Children, Adults & Housing",Adult Services,Learning Disabilities,Learning Disability Support,HOME CARE - PRIVATE CONTRACTORS PAYMENT
http://opendatacommunities.org/doc/london-borough-council/havering,London Borough of Havering,23/06/2015,910.77,JUN15L635,Carers Trust EHHR_a,"Children, Adults & Housing",Adult Services,Adult Community Team,Physical Support,HOME CARE - PRIVATE CONTRACTORS PAYMENT
http://opendatacommunities.org/doc/london-borough-council/havering,London Borough of Havering,23/06/2015,453.53,JUN15L636,Carers Trust EHHR_a,"Children, Adults & Housing",Adult Services,Learning Disabilities,Learning Disability Support,HOME CARE - PRIVATE CONTRACTORS PAYMENT
http://opendatacommunities.org/doc/london-borough-council/havering,London Borough of Havering,23/06/2015,413.04,JUN15L637,Carers Trust EHHR_a,"Children, Adults & Housing",Adult Services,Learning Disabilities,Learning Disability Support,HOME CARE - PRIVATE CONTRACTORS PAYMENT
http://opendatacommunities.org/doc/london-borough-council/havering,London Borough of Havering,23/06/2015,562.50,JUN15L638,Carers Trust EHHR_a,"Children, Adults & Housing",Adult Services,Learning Disabilities,Learning Disability Support,HOME CARE - PRIVATE CONTRACTORS PAYMENT
http://opendatacommunities.org/doc/london-borough-council/havering,London Borough of Havering,26/06/2015,2033.96,JUN15L639,Bupa Care Homes - Ghyll Grove_a,"Children, Adults & Housing",Adult Services,Adult Community Team,Physical Support,NURSING HOMES - PRIVATE CONTRACTORS PAYMENT
http://opendatacommunities.org/doc/london-borough-council/havering,London Borough of Havering,26/06/2015,2139.04,JUN15L640,Bupa Care Homes - Ghyll Grove_a,"Children, Adults & Housing",Adult Services,Adult Community Team,Support with Memory & Cognition,RESIDENTIAL PLACEMENTS - PRIVATE CONTRACTORS PAYMENT
http://opendatacommunities.org/doc/london-borough-council/havering,London Borough of Havering,26/06/2015,-561.88,JUN15L641,Squirrels Nursing & Residential Home_a,"Children, Adults & Housing",Adult Services,Adult Community Team,Physical Support,RESIDENTIAL CARE INCOME
http://opendatacommunities.org/doc/london-borough-council/havering,London Borough of Havering,26/06/2015,2139.04,JUN15L642,Squirrels Nursing & Residential Home_a,"Children, Adults & Housing",Adult Services,Adult Community Team,Physical Support,RESIDENTIAL PLACEMENTS - PRIVATE CONTRACTORS PAYMENT
http://opendatacommunities.org/doc/london-borough-council/havering,London Borough of Havering,26/06/2015,4804.68,JUN15L643,Clacton Family Trust_a,"Children, Adults & Housing",Adult Services,Learning Disabilities,Learning Disability Support,RESIDENTIAL PLACEMENTS - PRIVATE CONTRACTORS PAYMENT
http://opendatacommunities.org/doc/london-borough-council/havering,London Borough of Havering,26/06/2015,4853.12,JUN15L644,Clacton Family Trust_a,"Children, Adults & Housing",Adult Services,Learning Disabilities,Learning Disability Support,RESIDENTIAL PLACEMENTS - PRIVATE CONTRACTORS PAYMENT
http://opendatacommunities.org/doc/london-borough-council/havering,London Borough of Havering,26/06/2015,4248.76,JUN15L645,Clacton Family Trust_a,"Children, Adults & Housing",Adult Services,Learning Disabilities,Learning Disability Support,RESIDENTIAL PLACEMENTS - PRIVATE CONTRACTORS PAYMENT
http://opendatacommunities.org/doc/london-borough-council/havering,London Borough of Havering,26/06/2015,611.12,JUN15L646,Langley House_a,"Children, Adults & Housing",Adult Services,Adult Community Team,Physical Support,RESPITE CARE - PRIVATE CONTRACTORS PAYMENT
http://opendatacommunities.org/doc/london-borough-council/havering,London Borough of Havering,26/06/2015,1798.64,JUN15L647,Langley House_a,"Children, Adults & Housing",Adult Services,Adult Community Team,Support with Memory & Cognition,RESIDENTIAL PLACEMENTS - PRIVATE CONTRACTORS PAYMENT
http://opendatacommunities.org/doc/london-borough-council/havering,London Borough of Havering,26/06/2015,1849.04,JUN15L648,Langley House_a,"Children, Adults & Housing",Adult Services,Adult Community Team,Physical Support,RESIDENTIAL PLACEMENTS - PRIVATE CONTRACTORS PAYMENT
http://opendatacommunities.org/doc/london-borough-council/havering,London Borough of Havering,26/06/2015,2139.04,JUN15L649,Langley House_a,"Children, Adults & Housing",Adult Services,Adult Community Team,Support with Memory & Cognition,RESIDENTIAL PLACEMENTS - PRIVATE CONTRACTORS PAYMENT
http://opendatacommunities.org/doc/london-borough-council/havering,London Borough of Havering,26/06/2015,1849.04,JUN15L650,Langley House_a,"Children, Adults & Housing",Adult Services,Adult Community Team,Physical Support,RESIDENTIAL PLACEMENTS - PRIVATE CONTRACTORS PAYMENT
http://opendatacommunities.org/doc/london-borough-council/havering,London Borough of Havering,26/06/2015,-512.32,JUN15L651,Langley House_a,"Children, Adults & Housing",Adult Services,Adult Community Team,Physical Support,RESIDENTIAL CARE INCOME
http://opendatacommunities.org/doc/london-borough-council/havering,London Borough of Havering,26/06/2015,2139.04,JUN15L652,Langley House_a,"Children, Adults & Housing",Adult Services,Adult Community Team,Physical Support,RESIDENTIAL PLACEMENTS - PRIVATE CONTRACTORS PAYMENT
http://opendatacommunities.org/doc/london-borough-council/havering,London Borough of Havering,26/06/2015,-444.36,JUN15L653,Langley House_a,"Children, Adults & Housing",Adult Services,Adult Community Team,Support with Memory & Cognition,RESIDENTIAL CARE INCOME
http://opendatacommunities.org/doc/london-borough-council/havering,London Borough of Havering,26/06/2015,2139.04,JUN15L654,Langley House_a,"Children, Adults & Housing",Adult Services,Adult Community Team,Support with Memory & Cognition,RESIDENTIAL PLACEMENTS - PRIVATE CONTRACTORS PAYMENT
http://opendatacommunities.org/doc/london-borough-council/havering,London Borough of Havering,26/06/2015,-603.84,JUN15L655,Langley House_a,"Children, Adults & Housing",Adult Services,Adult Community Team,Physical Support,RESIDENTIAL CARE INCOME
http://opendatacommunities.org/doc/london-borough-council/havering,London Borough of Havering,26/06/2015,1849.04,JUN15L656,Langley House_a,"Children, Adults & Housing",Adult Services,Adult Community Team,Physical Support,RESIDENTIAL PLACEMENTS - PRIVATE CONTRACTORS PAYMENT
http://opendatacommunities.org/doc/london-borough-council/havering,London Borough of Havering,26/06/2015,-1254.36,JUN15L657,Langley House_a,"Children, Adults & Housing",Adult Services,Adult Community Team,Support with Memory & Cognition,RESIDENTIAL CARE INCOME
http://opendatacommunities.org/doc/london-borough-council/havering,London Borough of Havering,26/06/2015,2139.04,JUN15L658,Langley House_a,"Children, Adults & Housing",Adult Services,Adult Community Team,Support with Memory & Cognition,RESIDENTIAL PLACEMENTS - PRIVATE CONTRACTORS PAYMENT
http://opendatacommunities.org/doc/london-borough-council/havering,London Borough of Havering,26/06/2015,-498.52,JUN15L659,Langley House_a,"Children, Adults & Housing",Adult Services,Adult Community Team,Physical Support,RESIDENTIAL CARE INCOME
http://opendatacommunities.org/doc/london-borough-council/havering,London Borough of Havering,26/06/2015,1849.04,JUN15L660,Langley House_a,"Children, Adults & Housing",Adult Services,Adult Community Team,Physical Support,RESIDENTIAL PLACEMENTS - PRIVATE CONTRACTORS PAYMENT
http://opendatacommunities.org/doc/london-borough-council/havering,London Borough of Havering,26/06/2015,-505.20,JUN15L661,Langley House_a,"Children, Adults & Housing",Adult Services,Adult Community Team,Support with Memory & Cognition,RESIDENTIAL CARE INCOME
http://opendatacommunities.org/doc/london-borough-council/havering,London Borough of Havering,26/06/2015,2139.04,JUN15L662,Langley House_a,"Children, Adults & Housing",Adult Services,Adult Community Team,Support with Memory & Cognition,RESIDENTIAL PLACEMENTS - PRIVATE CONTRACTORS PAYMENT
http://opendatacommunities.org/doc/london-borough-council/havering,London Borough of Havering,26/06/2015,-505.20,JUN15L663,Langley House_a,"Children, Adults & Housing",Adult Services,Adult Community Team,Physical Support,RESIDENTIAL CARE INCOME
http://opendatacommunities.org/doc/london-borough-council/havering,London Borough of Havering,26/06/2015,1849.04,JUN15L664,Langley House_a,"Children, Adults & Housing",Adult Services,Adult Community Team,Physical Support,RESIDENTIAL PLACEMENTS - PRIVATE CONTRACTORS PAYMENT
http://opendatacommunities.org/doc/london-borough-council/havering,London Borough of Havering,26/06/2015,2900.00,JUN15L665,Ebury Court_a,"Children, Adults & Housing",Adult Services,Learning Disabilities,Learning Disability Support,RESIDENTIAL PLACEMENTS - PRIVATE CONTRACTORS PAYMENT
http://opendatacommunities.org/doc/london-borough-council/havering,London Borough of Havering,26/06/2015,1831.12,JUN15L666,Ebury Court_a,"Children, Adults & Housing",Adult Services,Adult Community Team,Physical Support,RESIDENTIAL PLACEMENTS - PRIVATE CONTRACTORS PAYMENT
http://opendatacommunities.org/doc/london-borough-council/havering,London Borough of Havering,26/06/2015,2118.24,JUN15L667,Ebury Court_a,"Children, Adults & Housing",Adult Services,Adult Community Team,Support with Memory & Cognition,RESIDENTIAL PLACEMENTS - PRIVATE CONTRACTORS PAYMENT
http://opendatacommunities.org/doc/london-borough-council/havering,London Borough of Havering,26/06/2015,2139.04,JUN15L668,Ebury Court_a,"Children, Adults & Housing",Adult Services,Adult Community Team,Physical Support,RESIDENTIAL PLACEMENTS - PRIVATE CONTRACTORS PAYMENT
http://opendatacommunities.org/doc/london-borough-council/havering,London Borough of Havering,26/06/2015,2034.76,JUN15L669,Ebury Court_a,"Children, Adults & Housing",Adult Services,Adult Community Team,Physical Support,NURSING HOMES - PRIVATE CONTRACTORS PAYMENT
http://opendatacommunities.org/doc/london-borough-council/havering,London Borough of Havering,26/06/2015,-637.92,JUN15L670,Ebury Court_a,"Children, Adults & Housing",Adult Services,Adult Community Team,Physical Support,RESIDENTIAL CARE INCOME
http://opendatacommunities.org/doc/london-borough-council/havering,London Borough of Havering,26/06/2015,2139.04,JUN15L671,Ebury Court_a,"Children, Adults & Housing",Adult Services,Adult Community Team,Physical Support,RESIDENTIAL PLACEMENTS - PRIVATE CONTRACTORS PAYMENT
http://opendatacommunities.org/doc/london-borough-council/havering,London Borough of Havering,26/06/2015,-890.72,JUN15L672,Ebury Court_a,"Children, Adults & Housing",Adult Services,Adult Community Team,Physical Support,RESIDENTIAL CARE INCOME
http://opendatacommunities.org/doc/london-borough-council/havering,London Borough of Havering,26/06/2015,2139.04,JUN15L673,Ebury Court_a,"Children, Adults & Housing",Adult Services,Adult Community Team,Physical Support,RESIDENTIAL PLACEMENTS - PRIVATE CONTRACTORS PAYMENT
http://opendatacommunities.org/doc/london-borough-council/havering,London Borough of Havering,26/06/2015,-1123.32,JUN15L674,Ebury Court_a,"Children, Adults & Housing",Adult Services,Adult Community Team,Physical Support,RESIDENTIAL CARE INCOME
http://opendatacommunities.org/doc/london-borough-council/havering,London Borough of Havering,26/06/2015,2139.04,JUN15L675,Ebury Court_a,"Children, Adults & Housing",Adult Services,Adult Community Team,Physical Support,RESIDENTIAL PLACEMENTS - PRIVATE CONTRACTORS PAYMENT
http://opendatacommunities.org/doc/london-borough-council/havering,London Borough of Havering,05/06/2015,6748.05,JUN15L676,Marlborough Pre-School_a,"Children, Adults & Housing",DSG Learning & Achievement Service,Schools Provision and Commissioning - DSG,Nursery Educ - 3 To 4 Yr Olds,PRIVATE CONTRACTORS PAYMENT - OTHER
http://opendatacommunities.org/doc/london-borough-council/havering,London Borough of Havering,05/06/2015,4285.87,JUN15L677,Moor Lane Church Pre-school_a,"Children, Adults & Housing",DSG Learning & Achievement Service,Schools Provision and Commissioning - DSG,Nursery Educ - 3 To 4 Yr Olds,PRIVATE CONTRACTORS PAYMENT - OTHER
http://opendatacommunities.org/doc/london-borough-council/havering,London Borough of Havering,05/06/2015,1442.18,JUN15L678,North Romford Community Centre Playgroup_a,"Children, Adults & Housing",DSG Learning & Achievement Service,Schools Provision and Commissioning - DSG,Nursery Educ - 3 To 4 Yr Olds,PRIVATE CONTRACTORS PAYMENT - OTHER
http://opendatacommunities.org/doc/london-borough-council/havering,London Borough of Havering,05/06/2015,5549.56,JUN15L679,Oakfields Montessori Nursery_a,"Children, Adults & Housing",DSG Learning & Achievement Service,Schools Provision and Commissioning - DSG,Nursery Educ - 3 To 4 Yr Olds,PRIVATE CONTRACTORS PAYMENT - OTHER
http://opendatacommunities.org/doc/london-borough-council/havering,London Borough of Havering,05/06/2015,2065.80,JUN15L680,Oakfields Montessori Nursery_a,"Children, Adults & Housing",DSG Learning & Achievement Service,Schools Provision and Commissioning - DSG,Nursery Education 2Yr Olds,PRIVATE CONTRACTORS PAYMENT - OTHER
http://opendatacommunities.org/doc/london-borough-council/havering,London Borough of Havering,05/06/2015,10648.01,JUN15L681,Cognita Schools Group t/a Oakfields Montessori School_a,"Children, Adults & Housing",DSG Learning & Achievement Service,Schools Provision and Commissioning - DSG,Nursery Educ - 3 To 4 Yr Olds,PRIVATE CONTRACTORS PAYMENT - OTHER
http://opendatacommunities.org/doc/london-borough-council/havering,London Borough of Havering,05/06/2015,3603.26,JUN15L682,Orange Tree Playgroup_a,"Children, Adults & Housing",DSG Learning & Achievement Service,Schools Provision and Commissioning - DSG,Nursery Educ - 3 To 4 Yr Olds,PRIVATE CONTRACTORS PAYMENT - OTHER
http://opendatacommunities.org/doc/london-borough-council/havering,London Borough of Havering,05/06/2015,4137.72,JUN15L683,FIG Playgroup & Playscheme_a,"Children, Adults & Housing",DSG Learning & Achievement Service,Schools Provision and Commissioning - DSG,Nursery Educ - 3 To 4 Yr Olds,PRIVATE CONTRACTORS PAYMENT - OTHER
http://opendatacommunities.org/doc/london-borough-council/havering,London Borough of Havering,05/06/2015,1783.33,JUN15L684,FIG Playgroup & Playscheme_a,"Children, Adults & Housing",DSG Learning & Achievement Service,Schools Provision and Commissioning - DSG,Nursery Education 2Yr Olds,PRIVATE CONTRACTORS PAYMENT - OTHER
http://opendatacommunities.org/doc/london-borough-council/havering,London Borough of Havering,05/06/2015,6831.88,JUN15L685,Playways Playgroup_a,"Children, Adults & Housing",DSG Learning & Achievement Service,Schools Provision and Commissioning - DSG,Nursery Educ - 3 To 4 Yr Olds,PRIVATE CONTRACTORS PAYMENT - OTHER
http://opendatacommunities.org/doc/london-borough-council/havering,London Borough of Havering,05/06/2015,774.84,JUN15L686,Playways Playgroup_a,"Children, Adults & Housing",DSG Learning & Achievement Service,Schools Provision and Commissioning - DSG,Nursery Educ - 3 To 4 Yr Olds,PRIVATE CONTRACTORS PAYMENT - OTHER
http://opendatacommunities.org/doc/london-borough-council/havering,London Borough of Havering,05/06/2015,432.77,JUN15L687,Raphael Independent School_a,"Children, Adults & Housing",DSG Learning & Achievement Service,Schools Provision and Commissioning - DSG,Nursery Educ - 3 To 4 Yr Olds,PRIVATE CONTRACTORS PAYMENT - OTHER
http://opendatacommunities.org/doc/london-borough-council/havering,London Borough of Havering,05/06/2015,3494.63,JUN15L688,Romford United Reformed Church Playgroup_a,"Children, Adults & Housing",DSG Learning & Achievement Service,Schools Provision and Commissioning - DSG,Nursery Educ - 3 To 4 Yr Olds,PRIVATE CONTRACTORS PAYMENT - OTHER
http://opendatacommunities.org/doc/london-borough-council/havering,London Borough of Havering,05/06/2015,4181.10,JUN15L689,Springfield Playgroup_a,"Children, Adults & Housing",DSG Learning & Achievement Service,Schools Provision and Commissioning - DSG,Nursery Educ - 3 To 4 Yr Olds,PRIVATE CONTRACTORS PAYMENT - OTHER
http://opendatacommunities.org/doc/london-borough-council/havering,London Borough of Havering,05/06/2015,4167.37,JUN15L690,Sparrows St Georges Harold Hill_a,"Children, Adults & Housing",DSG Learning & Achievement Service,Schools Provision and Commissioning - DSG,Nursery Educ - 3 To 4 Yr Olds,PRIVATE CONTRACTORS PAYMENT - OTHER
http://opendatacommunities.org/doc/london-borough-council/havering,London Borough of Havering,05/06/2015,4807.44,JUN15L691,Sparrows St Georges Harold Hill_a,"Children, Adults & Housing",DSG Learning & Achievement Service,Schools Provision and Commissioning - DSG,Nursery Education 2Yr Olds,PRIVATE CONTRACTORS PAYMENT - OTHER
http://opendatacommunities.org/doc/london-borough-council/havering,London Borough of Havering,05/06/2015,9562.70,JUN15L692,Val Robinson t/a St Johns Pre-School_a,"Children, Adults & Housing",DSG Learning & Achievement Service,Schools Provision and Commissioning - DSG,Nursery Educ - 3 To 4 Yr Olds,PRIVATE CONTRACTORS PAYMENT - OTHER
http://opendatacommunities.org/doc/london-borough-council/havering,London Borough of Havering,05/06/2015,1997.16,JUN15L693,Val Robinson t/a St Johns Pre-School_a,"Children, Adults & Housing",DSG Learning & Achievement Service,Schools Provision and Commissioning - DSG,Nursery Education 2Yr Olds,PRIVATE CONTRACTORS PAYMENT - OTHER
http://opendatacommunities.org/doc/london-borough-council/havering,London Borough of Havering,05/06/2015,4128.45,JUN15L694,St Laurence Playgroup_a,"Children, Adults & Housing",DSG Learning & Achievement Service,Schools Provision and Commissioning - DSG,Nursery Educ - 3 To 4 Yr Olds,PRIVATE CONTRACTORS PAYMENT - OTHER
http://opendatacommunities.org/doc/london-borough-council/havering,London Borough of Havering,05/06/2015,8606.40,JUN15L695,St Marys Hare Park School_a,"Children, Adults & Housing",DSG Learning & Achievement Service,Schools Provision and Commissioning - DSG,Nursery Educ - 3 To 4 Yr Olds,PRIVATE CONTRACTORS PAYMENT - OTHER
http://opendatacommunities.org/doc/london-borough-council/havering,London Borough of Havering,05/06/2015,3457.80,JUN15L696,St Nicholas Church Playgroup_a,"Children, Adults & Housing",DSG Learning & Achievement Service,Schools Provision and Commissioning - DSG,Nursery Educ - 3 To 4 Yr Olds,PRIVATE CONTRACTORS PAYMENT - OTHER
http://opendatacommunities.org/doc/london-borough-council/havering,London Borough of Havering,05/06/2015,7561.63,JUN15L697,The Old School Playgroup_a,"Children, Adults & Housing",DSG Learning & Achievement Service,Schools Provision and Commissioning - DSG,Nursery Educ - 3 To 4 Yr Olds,PRIVATE CONTRACTORS PAYMENT - OTHER
http://opendatacommunities.org/doc/london-borough-council/havering,London Borough of Havering,05/06/2015,597.08,JUN15L698,The Old School Playgroup_a,"Children, Adults & Housing",DSG Learning & Achievement Service,Schools Provision and Commissioning - DSG,Nursery Education 2Yr Olds,PRIVATE CONTRACTORS PAYMENT - OTHER
http://opendatacommunities.org/doc/london-borough-council/havering,London Borough of Havering,05/06/2015,3487.47,JUN15L699,The Gaynes Park Nursery Ltd_a,"Children, Adults & Housing",DSG Learning & Achievement Service,Schools Provision and Commissioning - DSG,Nursery Educ - 3 To 4 Yr Olds,PRIVATE CONTRACTORS PAYMENT - OTHER
http://opendatacommunities.org/doc/london-borough-council/havering,London Borough of Havering,05/06/2015,3501.52,JUN15L700,Tweed Way Pre-School_a,"Children, Adults & Housing",DSG Learning & Achievement Service,Schools Provision and Commissioning - DSG,Nursery Educ - 3 To 4 Yr Olds,PRIVATE CONTRACTORS PAYMENT - OTHER
http://opendatacommunities.org/doc/london-borough-council/havering,London Borough of Havering,05/06/2015,2988.16,JUN15L701,Wingletye Pre School_a,"Children, Adults & Housing",DSG Learning & Achievement Service,Schools Provision and Commissioning - DSG,Nursery Educ - 3 To 4 Yr Olds,PRIVATE CONTRACTORS PAYMENT - OTHER
http://opendatacommunities.org/doc/london-borough-council/havering,London Borough of Havering,05/06/2015,441.76,JUN15L702,Wingletye Pre School_a,"Children, Adults & Housing",DSG Learning & Achievement Service,Schools Provision and Commissioning - DSG,Nursery Education 2Yr Olds,PRIVATE CONTRACTORS PAYMENT - OTHER
http://opendatacommunities.org/doc/london-borough-council/havering,London Borough of Havering,05/06/2015,5252.20,JUN15L703,Wingletye Playgroup_a,"Children, Adults & Housing",DSG Learning & Achievement Service,Schools Provision and Commissioning - DSG,Nursery Educ - 3 To 4 Yr Olds,PRIVATE CONTRACTORS PAYMENT - OTHER
http://opendatacommunities.org/doc/london-borough-council/havering,London Borough of Havering,26/06/2015,2675.20,JUN15L704,The Cottage Residential Care Home_a,"Children, Adults & Housing",Adult Services,Learning Disabilities,Learning Disability Support,RESIDENTIAL PLACEMENTS - PRIVATE CONTRACTORS PAYMENT
http://opendatacommunities.org/doc/london-borough-council/havering,London Borough of Havering,26/06/2015,3208.38,JUN15L705,The Hornchurch Nursing Centre_a,"Children, Adults & Housing",Adult Services,Adult Community Team,Sensory Support,RESPITE CARE - PRIVATE CONTRACTORS PAYMENT
http://opendatacommunities.org/doc/london-borough-council/havering,London Borough of Havering,26/06/2015,-2569.87,JUN15L706,The Hornchurch Nursing Centre_a,"Children, Adults & Housing",Adult Services,Adult Community Team,Physical Support,NURSING CARE INCOME
http://opendatacommunities.org/doc/london-borough-council/havering,London Borough of Havering,26/06/2015,5560.81,JUN15L707,The Hornchurch Nursing Centre_a,"Children, Adults & Housing",Adult Services,Adult Community Team,Physical Support,NURSING HOMES - PRIVATE CONTRACTORS PAYMENT
http://opendatacommunities.org/doc/london-borough-council/havering,London Borough of Havering,26/06/2015,-5490.42,JUN15L708,The Hornchurch Nursing Centre_a,"Children, Adults & Housing",Adult Services,Adult Community Team,Physical Support,NURSING HOMES - PRIVATE CONTRACTORS PAYMENT
http://opendatacommunities.org/doc/london-borough-council/havering,London Borough of Havering,26/06/2015,2480.18,JUN15L709,The Hornchurch Nursing Centre_a,"Children, Adults & Housing",Adult Services,Adult Community Team,Physical Support,NURSING CARE INCOME
http://opendatacommunities.org/doc/london-borough-council/havering,London Borough of Havering,26/06/2015,-1016.98,JUN15L710,The Hornchurch Nursing Centre_a,"Children, Adults & Housing",Adult Services,Adult Community Team,Support with Memory & Cognition,NURSING HOMES - PRIVATE CONTRACTORS PAYMENT
http://opendatacommunities.org/doc/london-borough-council/havering,London Borough of Havering,26/06/2015,-840.34,JUN15L711,The Hornchurch Nursing Centre_a,"Children, Adults & Housing",Adult Services,Adult Community Team,Support with Memory & Cognition,RESIDENTIAL PLACEMENTS - PRIVATE CONTRACTORS PAYMENT
http://opendatacommunities.org/doc/london-borough-council/havering,London Borough of Havering,26/06/2015,451.39,JUN15L712,The Hornchurch Nursing Centre_a,"Children, Adults & Housing",Adult Services,Adult Community Team,Support with Memory & Cognition,RESIDENTIAL CARE INCOME
http://opendatacommunities.org/doc/london-borough-council/havering,London Borough of Havering,26/06/2015,-667.59,JUN15L713,The Hornchurch Nursing Centre_a,"Children, Adults & Housing",Adult Services,Adult Community Team,Sensory Support,RESIDENTIAL CARE INCOME
http://opendatacommunities.org/doc/london-borough-council/havering,London Borough of Havering,26/06/2015,2826.59,JUN15L714,The Hornchurch Nursing Centre_a,"Children, Adults & Housing",Adult Services,Adult Community Team,Sensory Support,RESIDENTIAL PLACEMENTS - PRIVATE CONTRACTORS PAYMENT
http://opendatacommunities.org/doc/london-borough-council/havering,London Borough of Havering,26/06/2015,1657.08,JUN15L715,The Hornchurch Nursing Centre_a,"Children, Adults & Housing",Mental Health,Mental Health - Non Section 75,Mental Health Support,NURSING HOMES - PRIVATE CONTRACTORS PAYMENT
http://opendatacommunities.org/doc/london-borough-council/havering,London Borough of Havering,26/06/2015,1970.92,JUN15L716,The Hornchurch Nursing Centre_a,"Children, Adults & Housing",Adult Services,Adult Community Team,Physical Support,NURSING HOMES - PRIVATE CONTRACTORS PAYMENT
http://opendatacommunities.org/doc/london-borough-council/havering,London Borough of Havering,26/06/2015,2689.16,JUN15L717,The Hornchurch Nursing Centre_a,"Children, Adults & Housing",Adult Services,Adult Community Team,Support with Memory & Cognition,NURSING HOMES - PRIVATE CONTRACTORS PAYMENT
http://opendatacommunities.org/doc/london-borough-council/havering,London Borough of Havering,26/06/2015,2139.04,JUN15L718,The Hornchurch Nursing Centre_a,"Children, Adults & Housing",Adult Services,Adult Community Team,Physical Support,RESIDENTIAL PLACEMENTS - PRIVATE CONTRACTORS PAYMENT
http://opendatacommunities.org/doc/london-borough-council/havering,London Borough of Havering,26/06/2015,2139.04,JUN15L719,The Hornchurch Nursing Centre_a,"Children, Adults & Housing",Adult Services,Adult Community Team,Physical Support,RESIDENTIAL PLACEMENTS - PRIVATE CONTRACTORS PAYMENT
http://opendatacommunities.org/doc/london-borough-council/havering,London Borough of Havering,26/06/2015,-505.20,JUN15L720,The Hornchurch Nursing Centre_a,"Children, Adults & Housing",Adult Services,Adult Community Team,Physical Support,NURSING CARE INCOME
http://opendatacommunities.org/doc/london-borough-council/havering,London Borough of Havering,26/06/2015,1932.28,JUN15L721,The Hornchurch Nursing Centre_a,"Children, Adults & Housing",Adult Services,Adult Community Team,Physical Support,NURSING HOMES - PRIVATE CONTRACTORS PAYMENT
http://opendatacommunities.org/doc/london-borough-council/havering,London Borough of Havering,26/06/2015,-576.00,JUN15L722,The Hornchurch Nursing Centre_a,"Children, Adults & Housing",Adult Services,Adult Community Team,Physical Support,NURSING CARE INCOME
http://opendatacommunities.org/doc/london-borough-council/havering,London Borough of Havering,26/06/2015,1970.92,JUN15L723,The Hornchurch Nursing Centre_a,"Children, Adults & Housing",Adult Services,Adult Community Team,Physical Support,NURSING HOMES - PRIVATE CONTRACTORS PAYMENT
http://opendatacommunities.org/doc/london-borough-council/havering,London Borough of Havering,26/06/2015,-493.20,JUN15L724,The Hornchurch Nursing Centre_a,"Children, Adults & Housing",Adult Services,Adult Community Team,Physical Support,NURSING CARE INCOME
http://opendatacommunities.org/doc/london-borough-council/havering,London Borough of Havering,26/06/2015,1970.92,JUN15L725,The Hornchurch Nursing Centre_a,"Children, Adults & Housing",Adult Services,Adult Community Team,Physical Support,NURSING HOMES - PRIVATE CONTRACTORS PAYMENT
http://opendatacommunities.org/doc/london-borough-council/havering,London Borough of Havering,26/06/2015,-505.20,JUN15L726,The Hornchurch Nursing Centre_a,"Children, Adults & Housing",Adult Services,Adult Community Team,Physical Support,NURSING CARE INCOME
http://opendatacommunities.org/doc/london-borough-council/havering,London Borough of Havering,26/06/2015,2033.96,JUN15L727,The Hornchurch Nursing Centre_a,"Children, Adults & Housing",Adult Services,Adult Community Team,Physical Support,NURSING HOMES - PRIVATE CONTRACTORS PAYMENT
http://opendatacommunities.org/doc/london-borough-council/havering,London Borough of Havering,26/06/2015,-910.84,JUN15L728,The Hornchurch Nursing Centre_a,"Children, Adults & Housing",Adult Services,Adult Community Team,Physical Support,NURSING CARE INCOME
http://opendatacommunities.org/doc/london-borough-council/havering,London Borough of Havering,26/06/2015,1970.92,JUN15L729,The Hornchurch Nursing Centre_a,"Children, Adults & Housing",Adult Services,Adult Community Team,Physical Support,NURSING HOMES - PRIVATE CONTRACTORS PAYMENT
http://opendatacommunities.org/doc/london-borough-council/havering,London Borough of Havering,26/06/2015,-501.20,JUN15L730,The Hornchurch Nursing Centre_a,"Children, Adults & Housing",Adult Services,Adult Community Team,Physical Support,NURSING CARE INCOME
http://opendatacommunities.org/doc/london-borough-council/havering,London Borough of Havering,26/06/2015,1970.92,JUN15L731,The Hornchurch Nursing Centre_a,"Children, Adults & Housing",Adult Services,Adult Community Team,Physical Support,NURSING HOMES - PRIVATE CONTRACTORS PAYMENT
http://opendatacommunities.org/doc/london-borough-council/havering,London Borough of Havering,26/06/2015,-583.32,JUN15L732,The Hornchurch Nursing Centre_a,"Children, Adults & Housing",Adult Services,Adult Community Team,Physical Support,NURSING CARE INCOME
http://opendatacommunities.org/doc/london-borough-council/havering,London Borough of Havering,26/06/2015,1970.92,JUN15L733,The Hornchurch Nursing Centre_a,"Children, Adults & Housing",Adult Services,Adult Community Team,Physical Support,NURSING HOMES - PRIVATE CONTRACTORS PAYMENT
http://opendatacommunities.org/doc/london-borough-council/havering,London Borough of Havering,26/06/2015,-505.20,JUN15L734,The Hornchurch Nursing Centre_a,"Children, Adults & Housing",Adult Services,Adult Community Team,Physical Support,RESIDENTIAL CARE INCOME
http://opendatacommunities.org/doc/london-borough-council/havering,London Borough of Havering,26/06/2015,1849.04,JUN15L735,The Hornchurch Nursing Centre_a,"Children, Adults & Housing",Adult Services,Adult Community Team,Physical Support,RESIDENTIAL PLACEMENTS - PRIVATE CONTRACTORS PAYMENT
http://opendatacommunities.org/doc/london-borough-council/havering,London Borough of Havering,26/06/2015,-980.24,JUN15L736,The Hornchurch Nursing Centre_a,"Children, Adults & Housing",Adult Services,Adult Community Team,Physical Support,RESIDENTIAL CARE INCOME
http://opendatacommunities.org/doc/london-borough-council/havering,London Borough of Havering,26/06/2015,1849.04,JUN15L737,The Hornchurch Nursing Centre_a,"Children, Adults & Housing",Adult Services,Adult Community Team,Physical Support,RESIDENTIAL PLACEMENTS - PRIVATE CONTRACTORS PAYMENT
http://opendatacommunities.org/doc/london-borough-council/havering,London Borough of Havering,26/06/2015,-924.24,JUN15L738,The Hornchurch Nursing Centre_a,"Children, Adults & Housing",Adult Services,Adult Community Team,Support with Memory & Cognition,NURSING CARE INCOME
http://opendatacommunities.org/doc/london-borough-council/havering,London Borough of Havering,26/06/2015,2033.96,JUN15L739,The Hornchurch Nursing Centre_a,"Children, Adults & Housing",Adult Services,Adult Community Team,Support with Memory & Cognition,NURSING HOMES - PRIVATE CONTRACTORS PAYMENT
http://opendatacommunities.org/doc/london-borough-council/havering,London Borough of Havering,26/06/2015,-573.20,JUN15L740,The Hornchurch Nursing Centre_a,"Children, Adults & Housing",Adult Services,Adult Community Team,Physical Support,RESIDENTIAL CARE INCOME
http://opendatacommunities.org/doc/london-borough-council/havering,London Borough of Havering,26/06/2015,1849.04,JUN15L741,The Hornchurch Nursing Centre_a,"Children, Adults & Housing",Adult Services,Adult Community Team,Physical Support,RESIDENTIAL PLACEMENTS - PRIVATE CONTRACTORS PAYMENT
http://opendatacommunities.org/doc/london-borough-council/havering,London Borough of Havering,26/06/2015,-627.32,JUN15L742,The Hornchurch Nursing Centre_a,"Children, Adults & Housing",Adult Services,Adult Community Team,Physical Support,NURSING CARE INCOME
http://opendatacommunities.org/doc/london-borough-council/havering,London Borough of Havering,26/06/2015,2033.96,JUN15L743,The Hornchurch Nursing Centre_a,"Children, Adults & Housing",Adult Services,Adult Community Team,Physical Support,NURSING HOMES - PRIVATE CONTRACTORS PAYMENT
http://opendatacommunities.org/doc/london-borough-council/havering,London Borough of Havering,26/06/2015,-426.44,JUN15L744,The Hornchurch Nursing Centre_a,"Children, Adults & Housing",Adult Services,Adult Community Team,Physical Support,RESIDENTIAL CARE INCOME
http://opendatacommunities.org/doc/london-borough-council/havering,London Borough of Havering,26/06/2015,1849.04,JUN15L745,The Hornchurch Nursing Centre_a,"Children, Adults & Housing",Adult Services,Adult Community Team,Physical Support,RESIDENTIAL PLACEMENTS - PRIVATE CONTRACTORS PAYMENT
http://opendatacommunities.org/doc/london-borough-council/havering,London Borough of Havering,26/06/2015,-505.20,JUN15L746,The Hornchurch Nursing Centre_a,"Children, Adults & Housing",Adult Services,Adult Community Team,Physical Support,NURSING CARE INCOME
http://opendatacommunities.org/doc/london-borough-council/havering,London Borough of Havering,26/06/2015,2033.96,JUN15L747,The Hornchurch Nursing Centre_a,"Children, Adults & Housing",Adult Services,Adult Community Team,Physical Support,NURSING HOMES - PRIVATE CONTRACTORS PAYMENT
http://opendatacommunities.org/doc/london-borough-council/havering,London Borough of Havering,26/06/2015,-505.20,JUN15L748,The Hornchurch Nursing Centre_a,"Children, Adults & Housing",Adult Services,Adult Community Team,Sensory Support,RESIDENTIAL CARE INCOME
http://opendatacommunities.org/doc/london-borough-council/havering,London Borough of Havering,26/06/2015,2139.04,JUN15L749,The Hornchurch Nursing Centre_a,"Children, Adults & Housing",Adult Services,Adult Community Team,Sensory Support,RESIDENTIAL PLACEMENTS - PRIVATE CONTRACTORS PAYMENT
http://opendatacommunities.org/doc/london-borough-council/havering,London Borough of Havering,26/06/2015,-1107.00,JUN15L750,The Hornchurch Nursing Centre_a,"Children, Adults & Housing",Adult Services,Adult Community Team,Physical Support,NURSING CARE INCOME
http://opendatacommunities.org/doc/london-borough-council/havering,London Borough of Havering,26/06/2015,2033.96,JUN15L751,The Hornchurch Nursing Centre_a,"Children, Adults & Housing",Adult Services,Adult Community Team,Physical Support,NURSING HOMES - PRIVATE CONTRACTORS PAYMENT
http://opendatacommunities.org/doc/london-borough-council/havering,London Borough of Havering,26/06/2015,-666.96,JUN15L752,The Hornchurch Nursing Centre_a,"Children, Adults & Housing",Adult Services,Adult Community Team,Support with Memory & Cognition,NURSING CARE INCOME
http://opendatacommunities.org/doc/london-borough-council/havering,London Borough of Havering,26/06/2015,2033.96,JUN15L753,The Hornchurch Nursing Centre_a,"Children, Adults & Housing",Adult Services,Adult Community Team,Support with Memory & Cognition,NURSING HOMES - PRIVATE CONTRACTORS PAYMENT
http://opendatacommunities.org/doc/london-borough-council/havering,London Borough of Havering,26/06/2015,-707.04,JUN15L754,The Hornchurch Nursing Centre_a,"Children, Adults & Housing",Adult Services,Adult Community Team,Support with Memory & Cognition,RESIDENTIAL CARE INCOME
http://opendatacommunities.org/doc/london-borough-council/havering,London Borough of Havering,26/06/2015,2139.04,JUN15L755,The Hornchurch Nursing Centre_a,"Children, Adults & Housing",Adult Services,Adult Community Team,Support with Memory & Cognition,RESIDENTIAL PLACEMENTS - PRIVATE CONTRACTORS PAYMENT
http://opendatacommunities.org/doc/london-borough-council/havering,London Borough of Havering,26/06/2015,-678.92,JUN15L756,The Hornchurch Nursing Centre_a,"Children, Adults & Housing",Adult Services,Adult Community Team,Physical Support,NURSING CARE INCOME
http://opendatacommunities.org/doc/london-borough-council/havering,London Borough of Havering,26/06/2015,2033.96,JUN15L757,The Hornchurch Nursing Centre_a,"Children, Adults & Housing",Adult Services,Adult Community Team,Physical Support,NURSING HOMES - PRIVATE CONTRACTORS PAYMENT
http://opendatacommunities.org/doc/london-borough-council/havering,London Borough of Havering,26/06/2015,-505.20,JUN15L758,The Hornchurch Nursing Centre_a,"Children, Adults & Housing",Adult Services,Adult Community Team,Support with Memory & Cognition,RESIDENTIAL CARE INCOME
http://opendatacommunities.org/doc/london-borough-council/havering,London Borough of Havering,26/06/2015,2139.04,JUN15L759,The Hornchurch Nursing Centre_a,"Children, Adults & Housing",Adult Services,Adult Community Team,Support with Memory & Cognition,RESIDENTIAL PLACEMENTS - PRIVATE CONTRACTORS PAYMENT
http://opendatacommunities.org/doc/london-borough-council/havering,London Borough of Havering,26/06/2015,-505.20,JUN15L760,The Hornchurch Nursing Centre_a,"Children, Adults & Housing",Adult Services,Adult Community Team,Support with Memory & Cognition,NURSING CARE INCOME
http://opendatacommunities.org/doc/london-borough-council/havering,London Borough of Havering,26/06/2015,2033.96,JUN15L761,The Hornchurch Nursing Centre_a,"Children, Adults & Housing",Adult Services,Adult Community Team,Support with Memory & Cognition,NURSING HOMES - PRIVATE CONTRACTORS PAYMENT
http://opendatacommunities.org/doc/london-borough-council/havering,London Borough of Havering,26/06/2015,-505.20,JUN15L762,Brandon House_a,"Children, Adults & Housing",Mental Health,Mental Health - Non Section 75,Mental Health Support,RESIDENTIAL CARE INCOME
http://opendatacommunities.org/doc/london-borough-council/havering,London Borough of Havering,26/06/2015,1880.52,JUN15L763,Brandon House_a,"Children, Adults & Housing",Mental Health,Mental Health - Non Section 75,Mental Health Support,RESIDENTIAL PLACEMENTS - PRIVATE CONTRACTORS PAYMENT
http://opendatacommunities.org/doc/london-borough-council/havering,London Borough of Havering,26/06/2015,1872.16,JUN15L764,Brandon House_a,"Children, Adults & Housing",Mental Health,Mental Health - Non Section 75,Mental Health Support,RESIDENTIAL PLACEMENTS - PRIVATE CONTRACTORS PAYMENT
http://opendatacommunities.org/doc/london-borough-council/havering,London Borough of Havering,05/06/2015,2968.87,JUN15L765,The Wendy House Day Nursery_a,"Children, Adults & Housing",DSG Learning & Achievement Service,Schools Provision and Commissioning - DSG,Nursery Educ - 3 To 4 Yr Olds,PRIVATE CONTRACTORS PAYMENT - OTHER
http://opendatacommunities.org/doc/london-borough-council/havering,London Borough of Havering,16/06/2015,866.00,JUN15L766,**Redacted Personal Data**,"Children, Adults & Housing",Childrens Services,Existing Placements,LAC Placements,IN HOUSE FOSTER CARE PLACEMENTS - PRIVATE CONTRACTORS PAYMENT
http://opendatacommunities.org/doc/london-borough-council/havering,London Borough of Havering,16/06/2015,630.00,JUN15L767,**Redacted Personal Data**,"Children, Adults & Housing",Childrens Services,Existing Placements,LAC Placements,IN HOUSE FOSTER CARE PLACEMENTS - PRIVATE CONTRACTORS PAYMENT
http://opendatacommunities.org/doc/london-borough-council/havering,London Borough of Havering,16/06/2015,1428.00,JUN15L768,**Redacted Personal Data**,"Children, Adults & Housing",Learning & Achievement,Children With Disabilities,CWD Placements,IN HOUSE FOSTER CARE PLACEMENTS - PRIVATE CONTRACTORS PAYMENT
http://opendatacommunities.org/doc/london-borough-council/havering,London Borough of Havering,30/06/2015,866.00,JUN15L769,**Redacted Personal Data**,"Children, Adults & Housing",Childrens Services,Existing Placements,LAC Placements,IN HOUSE FOSTER CARE PLACEMENTS - PRIVATE CONTRACTORS PAYMENT
http://opendatacommunities.org/doc/london-borough-council/havering,London Borough of Havering,30/06/2015,630.00,JUN15L770,**Redacted Personal Data**,"Children, Adults & Housing",Childrens Services,Existing Placements,LAC Placements,IN HOUSE FOSTER CARE PLACEMENTS - PRIVATE CONTRACTORS PAYMENT
http://opendatacommunities.org/doc/london-borough-council/havering,London Borough of Havering,30/06/2015,1428.00,JUN15L771,**Redacted Personal Data**,"Children, Adults & Housing",Learning & Achievement,Children With Disabilities,CWD Placements,IN HOUSE FOSTER CARE PLACEMENTS - PRIVATE CONTRACTORS PAYMENT
http://opendatacommunities.org/doc/london-borough-council/havering,London Borough of Havering,02/06/2015,866.00,JUN15L772,**Redacted Personal Data**,"Children, Adults & Housing",Childrens Services,Existing Placements,LAC Placements,IN HOUSE FOSTER CARE PLACEMENTS - PRIVATE CONTRACTORS PAYMENT
http://opendatacommunities.org/doc/london-borough-council/havering,London Borough of Havering,02/06/2015,630.00,JUN15L773,**Redacted Personal Data**,"Children, Adults & Housing",Childrens Services,Existing Placements,LAC Placements,IN HOUSE FOSTER CARE PLACEMENTS - PRIVATE CONTRACTORS PAYMENT
http://opendatacommunities.org/doc/london-borough-council/havering,London Borough of Havering,02/06/2015,1428.00,JUN15L774,**Redacted Personal Data**,"Children, Adults & Housing",Learning & Achievement,Children With Disabilities,CWD Placements,IN HOUSE FOSTER CARE PLACEMENTS - PRIVATE CONTRACTORS PAYMENT
http://opendatacommunities.org/doc/london-borough-council/havering,London Borough of Havering,26/06/2015,1831.12,JUN15L775,Adiemus Care Ltd t/a Brookes House_a,"Children, Adults & Housing",Adult Services,Adult Community Team,Physical Support,RESIDENTIAL PLACEMENTS - PRIVATE CONTRACTORS PAYMENT
http://opendatacommunities.org/doc/london-borough-council/havering,London Borough of Havering,26/06/2015,-548.20,JUN15L776,Adiemus Care Ltd t/a Brookes House_a,"Children, Adults & Housing",Adult Services,Adult Community Team,Physical Support,RESIDENTIAL CARE INCOME
http://opendatacommunities.org/doc/london-borough-council/havering,London Borough of Havering,26/06/2015,1849.04,JUN15L777,Adiemus Care Ltd t/a Brookes House_a,"Children, Adults & Housing",Adult Services,Adult Community Team,Physical Support,RESIDENTIAL PLACEMENTS - PRIVATE CONTRACTORS PAYMENT
http://opendatacommunities.org/doc/london-borough-council/havering,London Borough of Havering,26/06/2015,8739.36,JUN15L778,Highfield Care Homes Ltd t/a Romford Grange Care Home_a,"Children, Adults & Housing",Adult Services,Adult Community Team,Physical Support,RESIDENTIAL PLACEMENTS - PRIVATE CONTRACTORS PAYMENT
http://opendatacommunities.org/doc/london-borough-council/havering,London Borough of Havering,26/06/2015,2100.00,JUN15L779,Highfield Care Homes Ltd t/a Romford Grange Care Home_a,"Children, Adults & Housing",Adult Services,Learning Disabilities,Learning Disability Support,NURSING HOMES - PRIVATE CONTRACTORS PAYMENT
http://opendatacommunities.org/doc/london-borough-council/havering,London Borough of Havering,26/06/2015,2120.00,JUN15L780,Highfield Care Homes Ltd t/a Romford Grange Care Home_a,"Children, Adults & Housing",Adult Services,Learning Disabilities,Learning Disability Support,NURSING HOMES - PRIVATE CONTRACTORS PAYMENT
http://opendatacommunities.org/doc/london-borough-council/havering,London Borough of Havering,26/06/2015,1970.92,JUN15L781,Highfield Care Homes Ltd t/a Romford Grange Care Home_a,"Children, Adults & Housing",Adult Services,Adult Community Team,Physical Support,NURSING HOMES - PRIVATE CONTRACTORS PAYMENT
http://opendatacommunities.org/doc/london-borough-council/havering,London Borough of Havering,26/06/2015,1970.92,JUN15L782,Highfield Care Homes Ltd t/a Romford Grange Care Home_a,"Children, Adults & Housing",Adult Services,Adult Community Team,Physical Support,NURSING HOMES - PRIVATE CONTRACTORS PAYMENT
http://opendatacommunities.org/doc/london-borough-council/havering,London Borough of Havering,26/06/2015,2033.96,JUN15L783,Highfield Care Homes Ltd t/a Romford Grange Care Home_a,"Children, Adults & Housing",Adult Services,Adult Community Team,Support with Memory & Cognition,NURSING HOMES - PRIVATE CONTRACTORS PAYMENT
http://opendatacommunities.org/doc/london-borough-council/havering,London Borough of Havering,26/06/2015,2033.96,JUN15L784,Highfield Care Homes Ltd t/a Romford Grange Care Home_a,"Children, Adults & Housing",Adult Services,Adult Community Team,Physical Support,NURSING HOMES - PRIVATE CONTRACTORS PAYMENT
http://opendatacommunities.org/doc/london-borough-council/havering,London Borough of Havering,26/06/2015,1970.92,JUN15L785,Highfield Care Homes Ltd t/a Romford Grange Care Home_a,"Children, Adults & Housing",Adult Services,Adult Community Team,Physical Support,NURSING HOMES - PRIVATE CONTRACTORS PAYMENT
http://opendatacommunities.org/doc/london-borough-council/havering,London Borough of Havering,26/06/2015,1970.92,JUN15L786,Highfield Care Homes Ltd t/a Romford Grange Care Home_a,"Children, Adults & Housing",Adult Services,Adult Community Team,Physical Support,NURSING HOMES - PRIVATE CONTRACTORS PAYMENT
http://opendatacommunities.org/doc/london-borough-council/havering,London Borough of Havering,26/06/2015,1970.92,JUN15L787,Highfield Care Homes Ltd t/a Romford Grange Care Home_a,"Children, Adults & Housing",Adult Services,Adult Community Team,Physical Support,NURSING HOMES - PRIVATE CONTRACTORS PAYMENT
http://opendatacommunities.org/doc/london-borough-council/havering,London Borough of Havering,26/06/2015,1849.04,JUN15L788,Highfield Care Homes Ltd t/a Romford Grange Care Home_a,"Children, Adults & Housing",Adult Services,Adult Community Team,Physical Support,RESIDENTIAL PLACEMENTS - PRIVATE CONTRACTORS PAYMENT
http://opendatacommunities.org/doc/london-borough-council/havering,London Borough of Havering,26/06/2015,2913.12,JUN15L789,Highfield Care Homes Ltd t/a Romford Grange Care Home_a,"Children, Adults & Housing",Adult Services,Adult Community Team,Physical Support,RESIDENTIAL PLACEMENTS - PRIVATE CONTRACTORS PAYMENT
http://opendatacommunities.org/doc/london-borough-council/havering,London Borough of Havering,26/06/2015,-505.20,JUN15L790,Highfield Care Homes Ltd t/a Romford Grange Care Home_a,"Children, Adults & Housing",Adult Services,Adult Community Team,Physical Support,NURSING CARE INCOME
http://opendatacommunities.org/doc/london-borough-council/havering,London Borough of Havering,26/06/2015,1970.92,JUN15L791,Highfield Care Homes Ltd t/a Romford Grange Care Home_a,"Children, Adults & Housing",Adult Services,Adult Community Team,Physical Support,NURSING HOMES - PRIVATE CONTRACTORS PAYMENT
http://opendatacommunities.org/doc/london-borough-council/havering,London Borough of Havering,26/06/2015,-1082.60,JUN15L792,Highfield Care Homes Ltd t/a Romford Grange Care Home_a,"Children, Adults & Housing",Adult Services,Adult Community Team,Support with Memory & Cognition,NURSING CARE INCOME
http://opendatacommunities.org/doc/london-borough-council/havering,London Borough of Havering,26/06/2015,2033.96,JUN15L793,Highfield Care Homes Ltd t/a Romford Grange Care Home_a,"Children, Adults & Housing",Adult Services,Adult Community Team,Support with Memory & Cognition,NURSING HOMES - PRIVATE CONTRACTORS PAYMENT
http://opendatacommunities.org/doc/london-borough-council/havering,London Borough of Havering,26/06/2015,-528.88,JUN15L794,Highfield Care Homes Ltd t/a Romford Grange Care Home_a,"Children, Adults & Housing",Adult Services,Adult Community Team,Sensory Support,NURSING CARE INCOME
http://opendatacommunities.org/doc/london-borough-council/havering,London Borough of Havering,26/06/2015,2033.96,JUN15L795,Highfield Care Homes Ltd t/a Romford Grange Care Home_a,"Children, Adults & Housing",Adult Services,Adult Community Team,Sensory Support,NURSING HOMES - PRIVATE CONTRACTORS PAYMENT
http://opendatacommunities.org/doc/london-borough-council/havering,London Borough of Havering,26/06/2015,-505.20,JUN15L796,Highfield Care Homes Ltd t/a Romford Grange Care Home_a,"Children, Adults & Housing",Adult Services,Adult Community Team,Physical Support,NURSING CARE INCOME
http://opendatacommunities.org/doc/london-borough-council/havering,London Borough of Havering,26/06/2015,2033.96,JUN15L797,Highfield Care Homes Ltd t/a Romford Grange Care Home_a,"Children, Adults & Housing",Adult Services,Adult Community Team,Physical Support,NURSING HOMES - PRIVATE CONTRACTORS PAYMENT
http://opendatacommunities.org/doc/london-borough-council/havering,London Borough of Havering,26/06/2015,-568.08,JUN15L798,Highfield Care Homes Ltd t/a Romford Grange Care Home_a,"Children, Adults & Housing",Adult Services,Adult Community Team,Physical Support,NURSING CARE INCOME
http://opendatacommunities.org/doc/london-borough-council/havering,London Borough of Havering,26/06/2015,1970.92,JUN15L799,Highfield Care Homes Ltd t/a Romford Grange Care Home_a,"Children, Adults & Housing",Adult Services,Adult Community Team,Physical Support,NURSING HOMES - PRIVATE CONTRACTORS PAYMENT
http://opendatacommunities.org/doc/london-borough-council/havering,London Borough of Havering,26/06/2015,-505.20,JUN15L800,Highfield Care Homes Ltd t/a Romford Grange Care Home_a,"Children, Adults & Housing",Adult Services,Adult Community Team,Support with Memory & Cognition,NURSING CARE INCOME
http://opendatacommunities.org/doc/london-borough-council/havering,London Borough of Havering,26/06/2015,2033.96,JUN15L801,Highfield Care Homes Ltd t/a Romford Grange Care Home_a,"Children, Adults & Housing",Adult Services,Adult Community Team,Support with Memory & Cognition,NURSING HOMES - PRIVATE CONTRACTORS PAYMENT
http://opendatacommunities.org/doc/london-borough-council/havering,London Borough of Havering,26/06/2015,-752.16,JUN15L802,Highfield Care Homes Ltd t/a Romford Grange Care Home_a,"Children, Adults & Housing",Adult Services,Adult Community Team,Physical Support,RESIDENTIAL CARE INCOME
http://opendatacommunities.org/doc/london-borough-council/havering,London Borough of Havering,26/06/2015,2033.96,JUN15L803,Highfield Care Homes Ltd t/a Romford Grange Care Home_a,"Children, Adults & Housing",Adult Services,Adult Community Team,Physical Support,NURSING HOMES - PRIVATE CONTRACTORS PAYMENT
http://opendatacommunities.org/doc/london-borough-council/havering,London Borough of Havering,26/06/2015,-512.88,JUN15L804,Highfield Care Homes Ltd t/a Romford Grange Care Home_a,"Children, Adults & Housing",Adult Services,Adult Community Team,Physical Support,RESIDENTIAL CARE INCOME
http://opendatacommunities.org/doc/london-borough-council/havering,London Borough of Havering,26/06/2015,1849.04,JUN15L805,Highfield Care Homes Ltd t/a Romford Grange Care Home_a,"Children, Adults & Housing",Adult Services,Adult Community Team,Physical Support,RESIDENTIAL PLACEMENTS - PRIVATE CONTRACTORS PAYMENT
http://opendatacommunities.org/doc/london-borough-council/havering,London Borough of Havering,26/06/2015,-497.20,JUN15L806,Highfield Care Homes Ltd t/a Romford Grange Care Home_a,"Children, Adults & Housing",Adult Services,Adult Community Team,Physical Support,NURSING CARE INCOME
http://opendatacommunities.org/doc/london-borough-council/havering,London Borough of Havering,26/06/2015,1970.92,JUN15L807,Highfield Care Homes Ltd t/a Romford Grange Care Home_a,"Children, Adults & Housing",Adult Services,Adult Community Team,Physical Support,NURSING HOMES - PRIVATE CONTRACTORS PAYMENT
http://opendatacommunities.org/doc/london-borough-council/havering,London Borough of Havering,26/06/2015,9486.00,JUN15L808,Highfield Care Homes Ltd t/a Romford Grange Care Home_a,"Children, Adults & Housing",Adult Services,Adult Community Team,Physical Support,RESIDENTIAL PLACEMENTS - PRIVATE CONTRACTORS PAYMENT
http://opendatacommunities.org/doc/london-borough-council/havering,London Borough of Havering,15/06/2015,532.00,JUN15L809,Fuel Oils (Holdings) Ltd_a,oneSource Non-Shared LBH,Asset Management,Transport Accounts,Transport Workshop,"PURCHASE - EQUIPMENT, FURNITURE AND MATERIALS"
http://opendatacommunities.org/doc/london-borough-council/havering,London Borough of Havering,29/06/2015,532.53,JUN15L810,Fuel Oils (Holdings) Ltd_a,oneSource Non-Shared LBH,Asset Management,Transport Accounts,Transport Workshop,"PURCHASE - EQUIPMENT, FURNITURE AND MATERIALS"
http://opendatacommunities.org/doc/london-borough-council/havering,London Borough of Havering,29/06/2015,559.50,JUN15L811,Fuel Oils (Holdings) Ltd_a,oneSource Non-Shared LBH,Asset Management,Transport Accounts,Transport Workshop,"PURCHASE - EQUIPMENT, FURNITURE AND MATERIALS"
http://opendatacommunities.org/doc/london-borough-council/havering,London Borough of Havering,29/06/2015,546.45,JUN15L812,Fuel Oils (Holdings) Ltd_a,oneSource Non-Shared LBH,Asset Management,Transport Accounts,Transport Workshop,"PURCHASE - EQUIPMENT, FURNITURE AND MATERIALS"
http://opendatacommunities.org/doc/london-borough-council/havering,London Borough of Havering,15/06/2015,532.00,JUN15L813,Fuel Oils (Holdings) Ltd_a,oneSource Non-Shared LBH,Asset Management,Transport Accounts,Transport Workshop,"PURCHASE - EQUIPMENT, FURNITURE AND MATERIALS"
http://opendatacommunities.org/doc/london-borough-council/havering,London Borough of Havering,26/06/2015,2794.20,JUN15L814,Compass Fostering London & Eastern Ltd_a,"Children, Adults & Housing",Childrens Services,Existing Placements,LAC Placements,FOSTERING AGENCY PLACEMENTS - PRIVATE CONTRACTORS PAYMENT
http://opendatacommunities.org/doc/london-borough-council/havering,London Borough of Havering,26/06/2015,2794.20,JUN15L815,Compass Fostering London & Eastern Ltd_a,"Children, Adults & Housing",Childrens Services,Existing Placements,LAC Placements,FOSTERING AGENCY PLACEMENTS - PRIVATE CONTRACTORS PAYMENT
http://opendatacommunities.org/doc/london-borough-council/havering,London Borough of Havering,26/06/2015,2794.20,JUN15L816,Compass Fostering London & Eastern Ltd_a,"Children, Adults & Housing",Childrens Services,Existing Placements,LAC Placements,FOSTERING AGENCY PLACEMENTS - PRIVATE CONTRACTORS PAYMENT
http://opendatacommunities.org/doc/london-borough-council/havering,London Borough of Havering,26/06/2015,2794.20,JUN15L817,Compass Fostering London & Eastern Ltd_a,"Children, Adults & Housing",Childrens Services,Existing Placements,LAC Placements,FOSTERING AGENCY PLACEMENTS - PRIVATE CONTRACTORS PAYMENT
http://opendatacommunities.org/doc/london-borough-council/havering,London Borough of Havering,26/06/2015,2535.00,JUN15L818,Compass Fostering London & Eastern Ltd_a,"Children, Adults & Housing",Childrens Services,Existing Placements,LAC Placements,FOSTERING AGENCY PLACEMENTS - PRIVATE CONTRACTORS PAYMENT
http://opendatacommunities.org/doc/london-borough-council/havering,London Borough of Havering,26/06/2015,3567.90,JUN15L819,Compass Fostering London & Eastern Ltd_a,"Children, Adults & Housing",Childrens Services,Existing Placements,LAC Placements,FOSTERING AGENCY PLACEMENTS - PRIVATE CONTRACTORS PAYMENT
http://opendatacommunities.org/doc/london-borough-council/havering,London Borough of Havering,26/06/2015,3107.10,JUN15L820,Compass Fostering London & Eastern Ltd_a,"Children, Adults & Housing",Childrens Services,Existing Placements,LAC Placements,FOSTERING AGENCY PLACEMENTS - PRIVATE CONTRACTORS PAYMENT
http://opendatacommunities.org/doc/london-borough-council/havering,London Borough of Havering,26/06/2015,3557.10,JUN15L821,Compass Fostering London & Eastern Ltd_a,"Children, Adults & Housing",Childrens Services,Existing Placements,LAC Placements,FOSTERING AGENCY PLACEMENTS - PRIVATE CONTRACTORS PAYMENT
http://opendatacommunities.org/doc/london-borough-council/havering,London Borough of Havering,26/06/2015,1250.06,JUN15L822,Compass Fostering London & Eastern Ltd_a,"Children, Adults & Housing",Childrens Services,Existing Placements,LAC Placements,FOSTERING AGENCY PLACEMENTS - PRIVATE CONTRACTORS PAYMENT
http://opendatacommunities.org/doc/london-borough-council/havering,London Borough of Havering,24/06/2015,800.00,JUN15L823,**Redacted Personal Data**,"Children, Adults & Housing",Housing Services,Strategy,Private Sector Leasing,RENTS PAYABLE
http://opendatacommunities.org/doc/london-borough-council/havering,London Borough of Havering,02/06/2015,411.99,JUN15L824,Scarab Sweepers Ltd_a,oneSource Non-Shared LBH,Asset Management,Transport Accounts,Transport Workshop,"PURCHASE - EQUIPMENT, FURNITURE AND MATERIALS"
http://opendatacommunities.org/doc/london-borough-council/havering,London Borough of Havering,26/06/2015,4323.60,JUN15L825,Ashdene House Ltd_a,"Children, Adults & Housing",Adult Services,Learning Disabilities,Learning Disability Support,RESIDENTIAL PLACEMENTS - PRIVATE CONTRACTORS PAYMENT
http://opendatacommunities.org/doc/london-borough-council/havering,London Borough of Havering,08/06/2015,586.55,JUN15L826,Bertram Trading Ltd_a,Community and Resources,Culture & Leisure,Library Service,Bibliographical Services,"BOOKS, PUBLICATIONS AND RESOURCES"
http://opendatacommunities.org/doc/london-borough-council/havering,London Borough of Havering,16/06/2015,456.35,JUN15L827,Bertram Trading Ltd_a,Community and Resources,Culture & Leisure,Library Service,Bibliographical Services,"BOOKS, PUBLICATIONS AND RESOURCES"
http://opendatacommunities.org/doc/london-borough-council/havering,London Borough of Havering,16/06/2015,407.36,JUN15L828,Bertram Trading Ltd_a,Community and Resources,Culture & Leisure,Library Service,Bibliographical Services,"BOOKS, PUBLICATIONS AND RESOURCES"
http://opendatacommunities.org/doc/london-borough-council/havering,London Borough of Havering,03/06/2015,3359.51,JUN15L829,Safehouses Ltd_a,"Children, Adults & Housing",Childrens Services,Existing Placements,LAC Placements,FOSTERING AGENCY PLACEMENTS - PRIVATE CONTRACTORS PAYMENT
http://opendatacommunities.org/doc/london-borough-council/havering,London Borough of Havering,30/06/2015,517.86,JUN15L830,Carewatch (East London)_a,"Children, Adults & Housing",Adult Services,Adult Community Team,Physical Support,HOME CARE - PRIVATE CONTRACTORS PAYMENT
http://opendatacommunities.org/doc/london-borough-council/havering,London Borough of Havering,30/06/2015,691.04,JUN15L831,Carewatch (East London)_a,"Children, Adults & Housing",Adult Services,Adult Community Team,Physical Support,HOME CARE - PRIVATE CONTRACTORS PAYMENT
http://opendatacommunities.org/doc/london-borough-council/havering,London Borough of Havering,30/06/2015,518.28,JUN15L832,Carewatch (East London)_a,"Children, Adults & Housing",Adult Services,Adult Community Team,Physical Support,HOME CARE - PRIVATE CONTRACTORS PAYMENT
http://opendatacommunities.org/doc/london-borough-council/havering,London Borough of Havering,30/06/2015,1430.28,JUN15L833,Carewatch (East London)_a,"Children, Adults & Housing",Adult Services,Adult Community Team,Physical Support,HOME CARE - PRIVATE CONTRACTORS PAYMENT
http://opendatacommunities.org/doc/london-borough-council/havering,London Borough of Havering,30/06/2015,517.86,JUN15L834,Carewatch (East London)_a,"Children, Adults & Housing",Adult Services,Adult Community Team,Physical Support,HOME CARE - PRIVATE CONTRACTORS PAYMENT
http://opendatacommunities.org/doc/london-borough-council/havering,London Borough of Havering,30/06/2015,1387.13,JUN15L835,Carewatch (East London)_a,"Children, Adults & Housing",Adult Services,Adult Community Team,Physical Support,HOME CARE - PRIVATE CONTRACTORS PAYMENT
http://opendatacommunities.org/doc/london-borough-council/havering,London Borough of Havering,30/06/2015,1382.08,JUN15L836,Carewatch (East London)_a,"Children, Adults & Housing",Adult Services,Adult Community Team,Physical Support,HOME CARE - PRIVATE CONTRACTORS PAYMENT
http://opendatacommunities.org/doc/london-borough-council/havering,London Borough of Havering,30/06/2015,1036.56,JUN15L837,Carewatch (East London)_a,"Children, Adults & Housing",Adult Services,Adult Community Team,Physical Support,HOME CARE - PRIVATE CONTRACTORS PAYMENT
http://opendatacommunities.org/doc/london-borough-council/havering,London Borough of Havering,30/06/2015,1430.28,JUN15L838,Carewatch (East London)_a,"Children, Adults & Housing",Adult Services,Adult Community Team,Physical Support,HOME CARE - PRIVATE CONTRACTORS PAYMENT
http://opendatacommunities.org/doc/london-borough-council/havering,London Borough of Havering,30/06/2015,1382.08,JUN15L839,Carewatch (East London)_a,"Children, Adults & Housing",Adult Services,Adult Community Team,Physical Support,HOME CARE - PRIVATE CONTRACTORS PAYMENT
http://opendatacommunities.org/doc/london-borough-council/havering,London Borough of Havering,30/06/2015,691.04,JUN15L840,Carewatch (East London)_a,"Children, Adults & Housing",Adult Services,Adult Community Team,Physical Support,HOME CARE - PRIVATE CONTRACTORS PAYMENT
http://opendatacommunities.org/doc/london-borough-council/havering,London Borough of Havering,30/06/2015,1773.33,JUN15L841,Carewatch (East London)_a,"Children, Adults & Housing",Adult Services,Adult Community Team,Physical Support,HOME CARE - PRIVATE CONTRACTORS PAYMENT
http://opendatacommunities.org/doc/london-borough-council/havering,London Borough of Havering,30/06/2015,1935.01,JUN15L842,Carewatch (East London)_a,"Children, Adults & Housing",Adult Services,Adult Community Team,Physical Support,HOME CARE - PRIVATE CONTRACTORS PAYMENT
http://opendatacommunities.org/doc/london-borough-council/havering,London Borough of Havering,03/06/2015,517.86,JUN15L843,Carewatch (East London)_a,"Children, Adults & Housing",Adult Services,Adult Community Team,Physical Support,HOME CARE - PRIVATE CONTRACTORS PAYMENT
http://opendatacommunities.org/doc/london-borough-council/havering,London Borough of Havering,03/06/2015,691.04,JUN15L844,Carewatch (East London)_a,"Children, Adults & Housing",Adult Services,Adult Community Team,Physical Support,HOME CARE - PRIVATE CONTRACTORS PAYMENT
http://opendatacommunities.org/doc/london-borough-council/havering,London Borough of Havering,03/06/2015,518.28,JUN15L845,Carewatch (East London)_a,"Children, Adults & Housing",Adult Services,Adult Community Team,Physical Support,HOME CARE - PRIVATE CONTRACTORS PAYMENT
http://opendatacommunities.org/doc/london-borough-council/havering,London Borough of Havering,03/06/2015,1430.28,JUN15L846,Carewatch (East London)_a,"Children, Adults & Housing",Adult Services,Adult Community Team,Physical Support,HOME CARE - PRIVATE CONTRACTORS PAYMENT
http://opendatacommunities.org/doc/london-borough-council/havering,London Borough of Havering,03/06/2015,691.04,JUN15L847,Carewatch (East London)_a,"Children, Adults & Housing",Adult Services,Adult Community Team,Physical Support,HOME CARE - PRIVATE CONTRACTORS PAYMENT
http://opendatacommunities.org/doc/london-borough-council/havering,London Borough of Havering,03/06/2015,1382.08,JUN15L848,Carewatch (East London)_a,"Children, Adults & Housing",Adult Services,Adult Community Team,Physical Support,HOME CARE - PRIVATE CONTRACTORS PAYMENT
http://opendatacommunities.org/doc/london-borough-council/havering,London Borough of Havering,03/06/2015,1036.56,JUN15L849,Carewatch (East London)_a,"Children, Adults & Housing",Adult Services,Adult Community Team,Physical Support,HOME CARE - PRIVATE CONTRACTORS PAYMENT
http://opendatacommunities.org/doc/london-borough-council/havering,London Borough of Havering,03/06/2015,1417.95,JUN15L850,Carewatch (East London)_a,"Children, Adults & Housing",Adult Services,Adult Community Team,Physical Support,HOME CARE - PRIVATE CONTRACTORS PAYMENT
http://opendatacommunities.org/doc/london-borough-council/havering,London Borough of Havering,03/06/2015,1382.08,JUN15L851,Carewatch (East London)_a,"Children, Adults & Housing",Adult Services,Adult Community Team,Physical Support,HOME CARE - PRIVATE CONTRACTORS PAYMENT
http://opendatacommunities.org/doc/london-borough-council/havering,London Borough of Havering,03/06/2015,691.04,JUN15L852,Carewatch (East London)_a,"Children, Adults & Housing",Adult Services,Adult Community Team,Physical Support,HOME CARE - PRIVATE CONTRACTORS PAYMENT
http://opendatacommunities.org/doc/london-borough-council/havering,London Borough of Havering,03/06/2015,1953.52,JUN15L853,Carewatch (East London)_a,"Children, Adults & Housing",Adult Services,Adult Community Team,Physical Support,HOME CARE - PRIVATE CONTRACTORS PAYMENT
http://opendatacommunities.org/doc/london-borough-council/havering,London Borough of Havering,03/06/2015,2542.95,JUN15L854,Carewatch (East London)_a,"Children, Adults & Housing",Adult Services,Adult Community Team,Physical Support,HOME CARE - PRIVATE CONTRACTORS PAYMENT
http://opendatacommunities.org/doc/london-borough-council/havering,London Borough of Havering,09/06/2015,836.64,JUN15L855,Carewatch (East London)_a,"Children, Adults & Housing",Adult Services,Adult Community Team,Physical Support,HOME CARE - PRIVATE CONTRACTORS PAYMENT
http://opendatacommunities.org/doc/london-borough-council/havering,London Borough of Havering,09/06/2015,1374.48,JUN15L856,Carewatch (East London)_a,"Children, Adults & Housing",Adult Services,Adult Community Team,Physical Support,HOME CARE - PRIVATE CONTRACTORS PAYMENT
http://opendatacommunities.org/doc/london-borough-council/havering,London Borough of Havering,09/06/2015,448.20,JUN15L857,Carewatch (East London)_a,"Children, Adults & Housing",Adult Services,Adult Community Team,Physical Support,HOME CARE - PRIVATE CONTRACTORS PAYMENT
http://opendatacommunities.org/doc/london-borough-council/havering,London Borough of Havering,09/06/2015,866.52,JUN15L858,Carewatch (East London)_a,"Children, Adults & Housing",Adult Services,Adult Community Team,Physical Support,HOME CARE - PRIVATE CONTRACTORS PAYMENT
http://opendatacommunities.org/doc/london-borough-council/havering,London Borough of Havering,09/06/2015,836.64,JUN15L859,Carewatch (East London)_a,"Children, Adults & Housing",Adult Services,Adult Community Team,Physical Support,HOME CARE - PRIVATE CONTRACTORS PAYMENT
http://opendatacommunities.org/doc/london-borough-council/havering,London Borough of Havering,09/06/2015,836.64,JUN15L860,Carewatch (East London)_a,"Children, Adults & Housing",Adult Services,Adult Community Team,Physical Support,HOME CARE - PRIVATE CONTRACTORS PAYMENT
http://opendatacommunities.org/doc/london-borough-council/havering,London Borough of Havering,09/06/2015,627.48,JUN15L861,Carewatch (East London)_a,"Children, Adults & Housing",Adult Services,Adult Community Team,Physical Support,HOME CARE - PRIVATE CONTRACTORS PAYMENT
http://opendatacommunities.org/doc/london-borough-council/havering,London Borough of Havering,09/06/2015,433.26,JUN15L862,Carewatch (East London)_a,"Children, Adults & Housing",Adult Services,Adult Community Team,Physical Support,HOME CARE - PRIVATE CONTRACTORS PAYMENT
http://opendatacommunities.org/doc/london-borough-council/havering,London Borough of Havering,09/06/2015,418.32,JUN15L863,Carewatch (East London)_a,"Children, Adults & Housing",Adult Services,Adult Community Team,Physical Support,HOME CARE - PRIVATE CONTRACTORS PAYMENT
http://opendatacommunities.org/doc/london-borough-council/havering,London Borough of Havering,09/06/2015,836.64,JUN15L864,Carewatch (East London)_a,"Children, Adults & Housing",Adult Services,Adult Community Team,Physical Support,HOME CARE - PRIVATE CONTRACTORS PAYMENT
http://opendatacommunities.org/doc/london-borough-council/havering,London Borough of Havering,09/06/2015,418.32,JUN15L865,Carewatch (East London)_a,"Children, Adults & Housing",Adult Services,Adult Community Team,Physical Support,HOME CARE - PRIVATE CONTRACTORS PAYMENT
